Workbook

Sheet Cover
A7: RIIO-GT2 Cost Benefit Analysis template
A10: Publication date: | C10: 2019-09-20 | E10: Contact: | G10: Kiran Turner, Senior Manager
E14: Team: | G14: Gas Transmission Cost Assessment
E18: Tel: | G18: 020 7263 9867
E22: Email: | G22: Kiran.Turner@ofgem.gov.uk

Sheet Change Log
A3: Versions | D3: Details of Changes from Previous Version
A4: Template Version | B4: Purpose of version | C4: Version Issue Date | D4: Change number | E4: Tables Changed | F4: Description of Change | G4: Changed by
A5: v1.3 | B5: Correction of error in deperciation discount calculation | C5: 2019-06-17 | D5: 1 | E5: Template; Baseline; Option 1 - 10 | F5: Correction of error in deperciation discount calculation | G5: Scott McDougall
A6: v1.4 | B6: correction of error in calculating discount after 30 years | C6: 2019-08-15 | D6: 2 | E6: Template; Baseline; Option 1 - 10 | F6: correction of error in calculating discount after 30 years | G6: Scott McDougall
A7: v1.4 | B7: Tab added to allow detailed workings to be provided | C7: 2019-08-15 | D7: 3 | E7: Workings | F7: Tab added to allow detailed workings to be provided | G7: Scott McDougall

Sheet Summary
F3: NPVs based on Payback periods (£m)
A4: Option No. | B4: Desc. Of Option | C4: Preferred Option | D4: Total Forecast Expenditure (£m) | E4: Spend Area (RRP Table Reference) | F4: Total NPV | G4: Delta (Option to baseline) | H4: 10 Years | I4: 20 Years | J4: 30 Years | K4: 45 Years | L4: Engineering Justification | M4: Stakeholder Support Summary | N4: TO View
A5: Baseline | B5: Do Nothing | C5: N | E5: 3.01 | F5: -2.184116641 | G5: 0 | H5: -0.5223682329 | I5: -1.113433503 | J5: -1.668489359 | K5: -2.102718176 | L5: 0 | M5: 0 | N5: 0
A6: 1 | B6: Investment in Low Pressure Rig Only | C6: N | E6: 3.01 | F6: 25.80184668 | G6: 27.98596332 | H6: 12.58842107 | I6: 23.61474026 | J6: 26.55885914 | K6: 25.89620175 | L6: 0 | M6: 0 | N6: 0
A7: 2 | B7: Invest in Low & High Pressure Units | C7: Y | E7: 3.01 | F7: 27.15448072 | G7: 29.33859736 | H7: 14.32941779 | I7: 25.16868377 | J7: 28.00048406 | K7: 27.24921535 | L7: 0 | M7: 0 | N7: 0
A8: 3 | B8: 0 | C8: 0 | D8: 0 | E8: 0 | F8: 0 | G8: 0 | L8: 0 | M8: 0 | N8: 0
A9: 4 | B9: 0 | C9: 0 | D9: 0 | E9: 0 | F9: 0 | G9: 0 | L9: 0 | M9: 0 | N9: 0
A10: 5 | B10: 0 | C10: 0 | D10: 0 | E10: 0 | F10: 0 | G10: 0 | L10: 0 | M10: 0 | N10: 0
A11: 6 | B11: 0 | C11: 0 | D11: 0 | E11: 0 | F11: 0 | G11: 0 | L11: 0 | M11: 0 | N11: 0
A12: 7 | B12: 0 | C12: 0 | D12: 0 | E12: 0 | F12: 0 | G12: 0 | L12: 0 | M12: 0 | N12: 0
A13: 8 | B13: 0 | C13: 0 | D13: 0 | E13: 0 | F13: 0 | G13: 0 | L13: 0 | M13: 0 | N13: 0
A14: 9 | B14: 0 | C14: 0 | D14: 0 | E14: 0 | F14: 0 | G14: 0 | L14: 0 | M14: 0 | N14: 0
A15: 10 | B15: 0 | C15: 0 | D15: 0 | E15: 0 | F15: 0 | G15: 0 | L15: 0 | M15: 0 | N15: 0
A30: Colour code:
A31: User populated cells
A32: Formula/Calculation
A33: Timeframe
A34: Description

Sheet Blank (hidden)

Sheet Guidance
A3: Standard Naming Convention:
A5: Tab Name | B5: Brief Description | C5: Instructions
A6: Full Opt. Considered | B6: A tab providing a full summary list of options considered & rejected before full costing for the investment decision. Stated aim should reflect a brief summary of engineering justification. | C6: Provide a description of the stated aim of the investment decision & also include options that have been considered and rejected before full costing. Please use the drop down list (Y/N), to select if the option is included in the CBA. If the option has been included, then please clarify which tab it is corresponding to. Each option within the short list of those options that have been considered and costed, should provide a brief description & a clear rationale for including/excluding them in the comment section.
A7: Fixed Data/Fixed Data (CPIH) | B7: A tab containing all key sources of data & relevant static data points. | C7: This tab contains all fixed data points required for the CBA to function & provide an accurate representation of costing for the options. Please enter pre-tax WACC and prices consistent with your business plan in this tab.
A8: Risk Register | B8: A tab for documenting risks associated with the chosen investment decision, and actions to manage each risk. | C8: Please fill in this tab only for the option that has been selected; details should be provided for all risk(s) affecting the following areas: (i) Delivery Timeframe; (ii) Distinct Variance in original Forecast Cost & (iii) Criteria which may result in the Scheme being Cancelled. Each row should be treated as a single risk entry, the expectation is for relevant information on the: Risk Description; Impact; Liklihood; Mitigation/Controls & any relevant commentary would be included as supporting evidence.
A9: Template | B9: A blank pro-forma template which can be duplicated to facilitate a comparison against other CBA options. | C9: A template which can be duplicated to facilitate a comparison against other CBA options.
A10: Baseline tab | B10: A tab which captures & quantifies the Baseline approach (your 'do minimum' or 'reference scenario' e.g. do nothing, ongoing maintenance of existing asset or the option which requires the minimim investment) & feeds this information back to the Summary tab. | C10: Baseline should represent your 'do minimum' or 'reference scenario' (e.g. do nothing, ongoing maintenance of existing asset or the option which requires the minimim investment). Only the investment (lines 52-61) may be populated with non-zero values. Please refer to guidance on completing 'Option tab'.
A11: Option tabs | B11: A tab which captures & quantifies each potential option for investment & feeds this information back to the Summary tab. | C11: The user should populate the yellow cells. All other cells are either fixed or auto-populated. Enter costs / benefits in 2017/18 prices (£m). Costs should be entered as negative values. Benefits (i.e. avoided costs) should be entered as positive values. Costs entered should correspond to values set out in company Business Plans (i.e. should exclude RPEs and include ongoing efficiencies consistent with assumptions contained in your Business Plan submission). Enter costs and benefits asociated with the option. Enter the Option Name; then use the drop down in (i) Cell B8 to select one (or multiple) Investment Types & (ii) B9 to indicate if this is the preferred option. Enter the first year of investment outflow in B12. Enter Scheme Reference ID & Capitalisation rates consistent with your business plan. Authorised by section: This should detail the person signing off the CBA; this should be someone at a suitable senior management level. Output section: Please select the Asset Output from the drop down list & provide the corresponding volumes/units and any commentary which may be relevant. If further lines are required, please add after the first line of Output. Investment section: Please select the Investment Expenditure Type from the drop down list & the corresponding volume/units. If further lines are required, please add after the first line of Investment. Avoided TO Costs section: Please select the Avoided TO Costs from the drop down list & the corresponding volume/units. Societal Benefits section: Please enter any figures relevant to the reduction in emissions/losses/leakage & provide details on the reduced probability of Fatality & Non Fatal injury. Provide a brief description of the: (i) Engineering Justification (including the Engineering Justification reference in B184 of the relevant tab); (ii) Stakeholder feedback & (iii) TO view of the option. Please then highlight your chosen option by colouring the worksheet tab yellow.
A14: Colour code:
A15: User populated cells
A16: Formula/Calculation
A17: Timeframe
A18: Description

Sheet Full Opt. Considered
A3: Purpose of CBA: describe the stated aim of the investment decision
J5: HI/CI to be updated upon confirmation of NARMs methodology & terminology
A6: If investment is to replace an existing asset / investment expenditure type, please state the condition of the asset / investment expenditure type (HI / CI etc.)
A9: List below all options considered to meet the stated aim
A10: Option No. | B10: Included in this CBA? (Y/N) | C10: Corresponding Tab | D10: Description | G10: Comment
A11: 1 | B11: Y | C11: Baseline | D11: Do Nothing
A12: 2 | B12: N | C12: Option1 | D12: =#REF! -> 
A13: 3 | B13: N | C13: Option2 | D13: =#REF! -> 
A14: 4
A15: 5
A16: 6
A17: 7
A18: 8
A19: 9
A20: 10
A21: 11
A22: 12
A23: 13
A24: 14
A25: 15
A26: 16
A27: 17
A28: 18
A29: 19
A30: 20
A31: 21
A32: 22
A33: 23
A34: 24
A35: 25
A36: 26
A37: 27
A38: 28
A39: 29
A40: 30
A41: 31
A42: 32
A43: 33
A44: 34
A45: 35
A46: 36
A47: 37
A48: 38
A49: 39
A50: 40
A51: 41
A52: 42
A53: 43
A54: 44
A55: 45

Sheet Fixed Data
A4: Decarbonisation of electricity assumption: Power sector emissions are anticipated to reduce to 10g/kWh by 2050. Assume a linear decarbonisation pathway from 2017/18 until 2050. Power sector emissions reduce by 0 g/kWh p.a. between now and 2030. Beyond 2050 keep emissions at 10g/kWh 1,000 kg = 1 tonne; 1,000 kWh = 1 MWh; 1 kg = 1,000g | D4: Parameters
H5: NOx Emissions (£/t) | K5: 6199 | L5: NOx National Central Damage cost (2018 prices) | N5: Air quality damage cost guidance
D6: pre-tax WACC | E6: 0.029 | F6: enter TO specific pre-tax WACC figure
D7: Discount Rate <= 30 years | E7: 0.035 | F7: HMRC Green Book (see Discount Factors spreadsheet 'Standard Discount Factors' tab | G7: Link to HM treasury Green Book
D8: Discount Rate > 30 years | E8: 0.03 | F8: HMRC Green Book (see Discount Factors spreadsheet 'Standard Discount Factors' tab | G8: link to discount factors | H8: Methane Conversion (Equivalent kgs CO2) | K8: 28 | N8: Global Warming potential values
D9: Discount rate for safety <= 30 years | E9: 0.015 | F9: HMRC Green Book (see Discount Factors spreadsheet 'Health Discount Factors' tab | G9: link to discount factors
D10: Discount rate for safety > 30 years | E10: 0.01285714286 | F10: HMRC Green Book (see Discount Factors spreadsheet 'Health Discount Factors' tab | G10: link to discount factors
D11: Depreciation Period Length (Years) | E11: 45
D12: Cost per Fatality (£m) | E12: =F12*'Fixed Data (CPIH)'!$E$18 -> 1.694892024 | F12: 1.617 | G12: £m (16/17 prices) | H12: Link to HSE guidance
D13: Cost per Non Fatal injury (£m) | E13: =F13*'Fixed Data (CPIH)'!$E$18 -> 0.008804633891 | F13: 0.0084 | G13: £m (16/17 prices) | H13: Link to HSE Guidance | L13: BEIS Traded Carbon Price (Central)
L14: Page 3 | M14: link to carbon valuation methodology
L15: Table 3 | M15: Link to carbon prices
B16: Calendar Year | D16: g CO2e per kWh (Defra) | E16: Traded carbon price (£/t 2017/18 prices) | F16: Traded carbon price (£/t 2018/19 prices) | G16: Electricity GHG conversion factor (tonnes per MWh)3 | H16: Non-Traded carbon price (£/t 17/18 prices) | I16: Non-Traded carbon price (£/t 18/19 prices)
B17: 2010 | E17: 13.7834621 | F17: =E17*'Fixed Data (CPIH)'!$E$19 -> 14.07658936 | H17: 58.66502845 | I17: =H17*'Fixed Data (CPIH)'!$E$19 -> 59.91263366
B18: 2011 | E18: 12.40036021 | F18: =E18*'Fixed Data (CPIH)'!$E$19 -> 12.6640736 | H18: 59.54500388 | I18: =H18*'Fixed Data (CPIH)'!$E$19 -> 60.81132317
B19: 2012 | E19: 6.455123442 | F19: =E19*'Fixed Data (CPIH)'!$E$19 -> 6.592401917 | H19: 60.43817894 | I19: =H19*'Fixed Data (CPIH)'!$E$19 -> 61.72349301
B20: 2013 | E20: 4.014743959 | F20: =E20*'Fixed Data (CPIH)'!$E$19 -> 4.100123879 | H20: 61.34475162 | I20: =H20*'Fixed Data (CPIH)'!$E$19 -> 62.64934541
B21: 2014 | E21: 5.007237843 | F21: =E21*'Fixed Data (CPIH)'!$E$19 -> 5.113724725 | H21: 62.2649229 | I21: =H21*'Fixed Data (CPIH)'!$E$19 -> 63.58908559
B22: 2015 | E22: 5.773401199 | F22: =E22*'Fixed Data (CPIH)'!$E$19 -> 5.896181765 | H22: 63.19889674 | I22: =H22*'Fixed Data (CPIH)'!$E$19 -> 64.54292187
B23: 2016 | E23: 4.450799081 | F23: =E23*'Fixed Data (CPIH)'!$E$19 -> 4.545452408 | H23: 64.14688019 | I23: =H23*'Fixed Data (CPIH)'!$E$19 -> 65.5110657
A24: 1 | B24: 2017 | D24: 384.43 | E24: 4.125133038 | F24: =E24*'Fixed Data (CPIH)'!$E$19 -> 4.212860558 | G24: =D24/1000 -> 0.38443 | H24: 65.10908339 | I24: =H24*'Fixed Data (CPIH)'!$E$19 -> 66.49373169
A25: 2 | B25: 2018 | D25: 373.0836364 | E25: 4.186162113 | F25: =E25*'Fixed Data (CPIH)'!$E$19 -> 4.275187513 | G25: 0.3730836364 | H25: 66.08571965 | I25: =H25*'Fixed Data (CPIH)'!$E$19 -> 67.49113766
A26: 3 | B26: 2019 | D26: 361.7372727 | E26: 4.371332987 | F26: =E26*'Fixed Data (CPIH)'!$E$19 -> 4.464296341 | G26: 0.3617372727 | H26: 67.07700544 | I26: =H26*'Fixed Data (CPIH)'!$E$19 -> 68.50350473
A27: 4 | B27: 2020 | D27: 350.3909091 | E27: 4.563501078 | F27: =E27*'Fixed Data (CPIH)'!$E$19 -> 4.660551192 | G27: 0.3503909091 | H27: 68.08316052 | I27: =H27*'Fixed Data (CPIH)'!$E$19 -> 69.5310573
A28: 5 | B28: 2021 | D28: 339.0445455 | E28: 12.05018636 | F28: =E28*'Fixed Data (CPIH)'!$E$19 -> 12.30645276 | G28: 0.3390445455 | H28: 69.21787986 | I28: =H28*'Fixed Data (CPIH)'!$E$19 -> 70.68990825
A29: 6 | B29: 2022 | D29: 327.6981818 | E29: 19.52577069 | F29: =E29*'Fixed Data (CPIH)'!$E$19 -> 19.94101729 | G29: 0.3276981818 | H29: 70.35259921 | I29: =H29*'Fixed Data (CPIH)'!$E$19 -> 71.84875921
A30: 7 | B30: 2023 | D30: 316.3518182 | E30: 26.99136416 | F30: =E30*'Fixed Data (CPIH)'!$E$19 -> 27.56537848 | G30: 0.3163518182 | H30: 71.48731855 | I30: =H30*'Fixed Data (CPIH)'!$E$19 -> 73.00761016
A31: 8 | B31: 2024 | D31: 305.0054545 | E31: 34.44796586 | F31: =E31*'Fixed Data (CPIH)'!$E$19 -> 35.18055668 | G31: 0.3050054545 | H31: 72.62203789 | I31: =H31*'Fixed Data (CPIH)'!$E$19 -> 74.16646112
A32: 9 | B32: 2025 | D32: 293.6590909 | E32: 41.89647496 | F32: =E32*'Fixed Data (CPIH)'!$E$19 -> 42.78747018 | G32: 0.2936590909 | H32: 73.75675723 | I32: =H32*'Fixed Data (CPIH)'!$E$19 -> 75.32531207
A33: 10 | B33: 2026 | D33: 282.3127273 | E33: 49.33770072 | F33: =E33*'Fixed Data (CPIH)'!$E$19 -> 50.38694545 | G33: 0.2823127273 | H33: 74.89147657 | I33: =H33*'Fixed Data (CPIH)'!$E$19 -> 76.48416303
A34: 11 | B34: 2027 | D34: 270.9663636 | E34: 56.77237147 | F34: =E34*'Fixed Data (CPIH)'!$E$19 -> 57.97972632 | G34: 0.2709663636 | H34: 76.02619592 | I34: =H34*'Fixed Data (CPIH)'!$E$19 -> 77.64301398
A35: 12 | B35: 2028 | D35: 259.62 | E35: 64.20114273 | F35: =E35*'Fixed Data (CPIH)'!$E$19 -> 65.56648222 | G35: 0.25962 | H35: 77.16091526 | I35: =H35*'Fixed Data (CPIH)'!$E$19 -> 78.80186494
A36: 13 | B36: 2029 | D36: 248.2736364 | E36: 71.62460443 | F36: =E36*'Fixed Data (CPIH)'!$E$19 -> 73.14781564 | G36: 0.2482736364 | H36: 78.2956346 | I36: =H36*'Fixed Data (CPIH)'!$E$19 -> 79.96071589
A37: 14 | B37: 2030 | D37: 236.9272727 | E37: 79.43035394 | F37: =E37*'Fixed Data (CPIH)'!$E$19 -> 81.11956685 | G37: 0.2369272727 | H37: 79.43035394 | I37: =H37*'Fixed Data (CPIH)'!$E$19 -> 81.11956685
A38: 15 | B38: 2031 | D38: 225.5809091 | E38: 86.80602966 | F38: =E38*'Fixed Data (CPIH)'!$E$19 -> 88.65209806 | G38: 0.2255809091 | H38: 86.80602966 | I38: =H38*'Fixed Data (CPIH)'!$E$19 -> 88.65209806
A39: 16 | B39: 2032 | D39: 214.2345455 | E39: 94.18170539 | F39: =E39*'Fixed Data (CPIH)'!$E$19 -> 96.18462926 | G39: 0.2142345455 | H39: 94.18170539 | I39: =H39*'Fixed Data (CPIH)'!$E$19 -> 96.18462926
A40: 17 | B40: 2033 | D40: 202.8881818 | E40: 101.5573811 | F40: =E40*'Fixed Data (CPIH)'!$E$19 -> 103.7171605 | G40: 0.2028881818 | H40: 101.5573811 | I40: =H40*'Fixed Data (CPIH)'!$E$19 -> 103.7171605
A41: 18 | B41: 2034 | D41: 191.5418182 | E41: 108.9330568 | F41: =E41*'Fixed Data (CPIH)'!$E$19 -> 111.2496917 | G41: 0.1915418182 | H41: 108.9330568 | I41: =H41*'Fixed Data (CPIH)'!$E$19 -> 111.2496917
A42: 19 | B42: 2035 | D42: 180.1954545 | E42: 116.3087326 | F42: =E42*'Fixed Data (CPIH)'!$E$19 -> 118.7822229 | G42: 0.1801954545 | H42: 116.3087326 | I42: =H42*'Fixed Data (CPIH)'!$E$19 -> 118.7822229
A43: 20 | B43: 2036 | D43: 168.8490909 | E43: 123.6844083 | F43: =E43*'Fixed Data (CPIH)'!$E$19 -> 126.3147541 | G43: 0.1688490909 | H43: 123.6844083 | I43: =H43*'Fixed Data (CPIH)'!$E$19 -> 126.3147541
A44: 21 | B44: 2037 | D44: 157.5027273 | E44: 131.060084 | F44: =E44*'Fixed Data (CPIH)'!$E$19 -> 133.8472853 | G44: 0.1575027273 | H44: 131.060084 | I44: =H44*'Fixed Data (CPIH)'!$E$19 -> 133.8472853
A45: 22 | B45: 2038 | D45: 146.1563636 | E45: 138.4357597 | F45: =E45*'Fixed Data (CPIH)'!$E$19 -> 141.3798165 | G45: 0.1461563636 | H45: 138.4357597 | I45: =H45*'Fixed Data (CPIH)'!$E$19 -> 141.3798165
A46: 23 | B46: 2039 | D46: 134.81 | E46: 145.8114354 | F46: =E46*'Fixed Data (CPIH)'!$E$19 -> 148.9123477 | G46: 0.13481 | H46: 145.8114354 | I46: =H46*'Fixed Data (CPIH)'!$E$19 -> 148.9123477
A47: 24 | B47: 2040 | D47: 123.4636364 | E47: 153.1871112 | F47: =E47*'Fixed Data (CPIH)'!$E$19 -> 156.4448789 | G47: 0.1234636364 | H47: 153.1871112 | I47: =H47*'Fixed Data (CPIH)'!$E$19 -> 156.4448789
A48: 25 | B48: 2041 | D48: 112.1172727 | E48: 160.5627869 | F48: =E48*'Fixed Data (CPIH)'!$E$19 -> 163.9774101 | G48: 0.1121172727 | H48: 160.5627869 | I48: =H48*'Fixed Data (CPIH)'!$E$19 -> 163.9774101
A49: 26 | B49: 2042 | D49: 100.7709091 | E49: 167.9384626 | F49: =E49*'Fixed Data (CPIH)'!$E$19 -> 171.5099413 | G49: 0.1007709091 | H49: 167.9384626 | I49: =H49*'Fixed Data (CPIH)'!$E$19 -> 171.5099413
A50: 27 | B50: 2043 | D50: 89.42454545 | E50: 175.3141383 | F50: =E50*'Fixed Data (CPIH)'!$E$19 -> 179.0424725 | G50: 0.08942454545 | H50: 175.3141383 | I50: =H50*'Fixed Data (CPIH)'!$E$19 -> 179.0424725
A51: 28 | B51: 2044 | D51: 78.07818182 | E51: 182.6898141 | F51: =E51*'Fixed Data (CPIH)'!$E$19 -> 186.5750038 | G51: 0.07807818182 | H51: 182.6898141 | I51: =H51*'Fixed Data (CPIH)'!$E$19 -> 186.5750038
A52: 29 | B52: 2045 | D52: 66.73181818 | E52: 190.0654898 | F52: =E52*'Fixed Data (CPIH)'!$E$19 -> 194.107535 | G52: 0.06673181818 | H52: 190.0654898 | I52: =H52*'Fixed Data (CPIH)'!$E$19 -> 194.107535
A53: 30 | B53: 2046 | D53: 55.38545455 | E53: 197.4411655 | F53: =E53*'Fixed Data (CPIH)'!$E$19 -> 201.6400662 | G53: 0.05538545455 | H53: 197.4411655 | I53: =H53*'Fixed Data (CPIH)'!$E$19 -> 201.6400662
A54: 31 | B54: 2047 | D54: 44.03909091 | E54: 204.8168412 | F54: =E54*'Fixed Data (CPIH)'!$E$19 -> 209.1725974 | G54: 0.04403909091 | H54: 204.8168412 | I54: =H54*'Fixed Data (CPIH)'!$E$19 -> 209.1725974
A55: 32 | B55: 2048 | D55: 32.69272727 | E55: 212.192517 | F55: =E55*'Fixed Data (CPIH)'!$E$19 -> 216.7051286 | G55: 0.03269272727 | H55: 212.192517 | I55: =H55*'Fixed Data (CPIH)'!$E$19 -> 216.7051286
A56: 33 | B56: 2049 | D56: 21.34636364 | E56: 219.5681927 | F56: =E56*'Fixed Data (CPIH)'!$E$19 -> 224.2376598 | G56: =D56/1000 -> 0.02134636364 | H56: 219.5681927 | I56: =H56*'Fixed Data (CPIH)'!$E$19 -> 224.2376598
A57: 34 | B57: 2050 | D57: 10 | E57: 226.9438684 | F57: =E57*'Fixed Data (CPIH)'!$E$19 -> 231.770191 | G57: 0.01 | H57: 226.9438684 | I57: =H57*'Fixed Data (CPIH)'!$E$19 -> 231.770191
A58: 35 | B58: 2051 | D58: 10 | E58: 234.969506 | F58: =E58*'Fixed Data (CPIH)'!$E$19 -> 239.9665065 | G58: 0.01 | H58: 234.969506 | I58: =H58*'Fixed Data (CPIH)'!$E$19 -> 239.9665065
A59: 36 | B59: 2052 | D59: 10 | E59: 242.7443485 | F59: =E59*'Fixed Data (CPIH)'!$E$19 -> 247.9066934 | G59: 0.01 | H59: 242.7443485 | I59: =H59*'Fixed Data (CPIH)'!$E$19 -> 247.9066934
A60: 37 | B60: 2053 | D60: 10 | E60: 250.5570105 | F60: =E60*'Fixed Data (CPIH)'!$E$19 -> 255.8855041 | G60: 0.01 | H60: 250.5570105 | I60: =H60*'Fixed Data (CPIH)'!$E$19 -> 255.8855041
A61: 38 | B61: 2054 | D61: 10 | E61: 258.372401 | F61: =E61*'Fixed Data (CPIH)'!$E$19 -> 263.8671014 | G61: 0.01 | H61: 258.372401 | I61: =H61*'Fixed Data (CPIH)'!$E$19 -> 263.8671014
A62: 39 | B62: 2055 | D62: 10 | E62: 265.938675 | F62: =E62*'Fixed Data (CPIH)'!$E$19 -> 271.5942843 | G62: 0.01 | H62: 265.938675 | I62: =H62*'Fixed Data (CPIH)'!$E$19 -> 271.5942843
A63: 40 | B63: 2056 | D63: 10 | E63: 273.5498498 | F63: =E63*'Fixed Data (CPIH)'!$E$19 -> 279.3673227 | G63: 0.01 | H63: 273.5498498 | I63: =H63*'Fixed Data (CPIH)'!$E$19 -> 279.3673227
A64: 41 | B64: 2057 | D64: 10 | E64: 280.883978 | F64: =E64*'Fixed Data (CPIH)'!$E$19 -> 286.8574229 | G64: 0.01 | H64: 280.883978 | I64: =H64*'Fixed Data (CPIH)'!$E$19 -> 286.8574229
A65: 42 | B65: 2058 | D65: 10 | E65: 288.0436754 | F65: =E65*'Fixed Data (CPIH)'!$E$19 -> 294.1693827 | G65: 0.01 | H65: 288.0436754 | I65: =H65*'Fixed Data (CPIH)'!$E$19 -> 294.1693827
A66: 43 | B66: 2059 | D66: 10 | E66: 295.083235 | F66: =E66*'Fixed Data (CPIH)'!$E$19 -> 301.3586496 | G66: 0.01 | H66: 295.083235 | I66: =H66*'Fixed Data (CPIH)'!$E$19 -> 301.3586496
A67: 44 | B67: 2060 | D67: 10 | E67: 301.9457856 | F67: =E67*'Fixed Data (CPIH)'!$E$19 -> 308.3671433 | G67: 0.01 | H67: 301.9457856 | I67: =H67*'Fixed Data (CPIH)'!$E$19 -> 308.3671433
A68: 45 | B68: 2061 | D68: 10 | E68: 307.3925232 | F68: =E68*'Fixed Data (CPIH)'!$E$19 -> 313.9297145 | G68: 0.01 | H68: 307.3925232 | I68: =H68*'Fixed Data (CPIH)'!$E$19 -> 313.9297145
A69: 46 | B69: 2062 | D69: 10 | E69: 312.8063685 | F69: =E69*'Fixed Data (CPIH)'!$E$19 -> 319.4586939 | G69: 0.01 | H69: 312.8063685 | I69: =H69*'Fixed Data (CPIH)'!$E$19 -> 319.4586939
A70: 47 | B70: 2063 | D70: 10 | E70: 317.6717808 | F70: =E70*'Fixed Data (CPIH)'!$E$19 -> 324.4275769 | G70: 0.01 | H70: 317.6717808 | I70: =H70*'Fixed Data (CPIH)'!$E$19 -> 324.4275769
A71: 48 | B71: 2064 | D71: 10 | E71: 322.2762259 | F71: =E71*'Fixed Data (CPIH)'!$E$19 -> 329.1299428 | G71: 0.01 | H71: 322.2762259 | I71: =H71*'Fixed Data (CPIH)'!$E$19 -> 329.1299428
A72: 49 | B72: 2065 | D72: 10 | E72: 326.3258409 | F72: =E72*'Fixed Data (CPIH)'!$E$19 -> 333.2656794 | G72: 0.01 | H72: 326.3258409 | I72: =H72*'Fixed Data (CPIH)'!$E$19 -> 333.2656794
A73: 50 | B73: 2066 | D73: 10 | E73: 330.319683 | F73: =E73*'Fixed Data (CPIH)'!$E$19 -> 337.3444568 | G73: 0.01 | H73: 330.319683 | I73: =H73*'Fixed Data (CPIH)'!$E$19 -> 337.3444568
A74: 51 | B74: 2067 | D74: 10 | E74: 333.6541699 | F74: =E74*'Fixed Data (CPIH)'!$E$19 -> 340.7498569 | G74: 0.01 | H74: 333.6541699 | I74: =H74*'Fixed Data (CPIH)'!$E$19 -> 340.7498569
A75: 52 | B75: 2068 | D75: 10 | E75: 336.7035053 | F75: =E75*'Fixed Data (CPIH)'!$E$19 -> 343.8640412 | G75: 0.01 | H75: 336.7035053 | I75: =H75*'Fixed Data (CPIH)'!$E$19 -> 343.8640412
A76: 53 | B76: 2069 | D76: 10 | E76: 339.2900449 | F76: =E76*'Fixed Data (CPIH)'!$E$19 -> 346.5055878 | G76: 0.01 | H76: 339.2900449 | I76: =H76*'Fixed Data (CPIH)'!$E$19 -> 346.5055878
A77: 54 | B77: 2070 | D77: 10 | E77: 341.5208069 | F77: =E77*'Fixed Data (CPIH)'!$E$19 -> 348.7837905 | G77: 0.01 | H77: 341.5208069 | I77: =H77*'Fixed Data (CPIH)'!$E$19 -> 348.7837905
A78: 55 | B78: 2071 | D78: 10 | E78: 343.7365821 | F78: =E78*'Fixed Data (CPIH)'!$E$19 -> 351.0466877 | G78: 0.01 | H78: 343.7365821 | I78: =H78*'Fixed Data (CPIH)'!$E$19 -> 351.0466877
A79: 56 | B79: 2072 | D79: 10 | E79: 345.5729827 | F79: =E79*'Fixed Data (CPIH)'!$E$19 -> 352.9221422 | G79: 0.01 | H79: 345.5729827 | I79: =H79*'Fixed Data (CPIH)'!$E$19 -> 352.9221422
A80: 57 | B80: 2073 | D80: 10 | E80: 347.1324568 | F80: =E80*'Fixed Data (CPIH)'!$E$19 -> 354.514781 | G80: 0.01 | H80: 347.1324568 | I80: =H80*'Fixed Data (CPIH)'!$E$19 -> 354.514781
A81: 58 | B81: 2074 | D81: 10 | E81: 348.0674828 | F81: =E81*'Fixed Data (CPIH)'!$E$19 -> 355.4696918 | G81: =D81/1000 -> 0.01 | H81: 348.0674828 | I81: =H81*'Fixed Data (CPIH)'!$E$19 -> 355.4696918
A82: 59 | B82: 2075 | D82: 10 | E82: 349.0493882 | F82: =E82*'Fixed Data (CPIH)'!$E$19 -> 356.4724791 | G82: 0.01 | H82: 349.0493882 | I82: =H82*'Fixed Data (CPIH)'!$E$19 -> 356.4724791
A83: 60 | B83: 2076 | D83: 10 | E83: 349.133364 | F83: =E83*'Fixed Data (CPIH)'!$E$19 -> 356.5582407 | G83: 0.01 | H83: 349.133364 | I83: =H83*'Fixed Data (CPIH)'!$E$19 -> 356.5582407
A84: 61 | B84: 2077 | D84: 10 | E84: 349.2589533 | F84: =E84*'Fixed Data (CPIH)'!$E$19 -> 356.6865009 | G84: 0.01 | H84: 349.2589533 | I84: =H84*'Fixed Data (CPIH)'!$E$19 -> 356.6865009
A85: 62 | B85: 2078 | D85: 10 | E85: 348.8239696 | F85: =E85*'Fixed Data (CPIH)'!$E$19 -> 356.2422665 | G85: 0.01 | H85: 348.8239696 | I85: =H85*'Fixed Data (CPIH)'!$E$19 -> 356.2422665
A86: 63 | B86: 2079 | D86: 10 | E86: 348.1799998 | F86: =E86*'Fixed Data (CPIH)'!$E$19 -> 355.5846017 | G86: 0.01 | H86: 348.1799998 | I86: =H86*'Fixed Data (CPIH)'!$E$19 -> 355.5846017
A87: 64 | B87: 2080 | D87: 10 | E87: 346.9074617 | F87: =E87*'Fixed Data (CPIH)'!$E$19 -> 354.285001 | G87: 0.01 | H87: 346.9074617 | I87: =H87*'Fixed Data (CPIH)'!$E$19 -> 354.285001
A88: 65 | B88: 2081 | D88: 10 | E88: 346.7319452 | F88: =E88*'Fixed Data (CPIH)'!$E$19 -> 354.1057519 | G88: 0.01 | H88: 346.7319452 | I88: =H88*'Fixed Data (CPIH)'!$E$19 -> 354.1057519
A89: 66 | B89: 2082 | D89: 10 | E89: 345.9473699 | F89: =E89*'Fixed Data (CPIH)'!$E$19 -> 353.3044914 | G89: 0.01 | H89: 345.9473699 | I89: =H89*'Fixed Data (CPIH)'!$E$19 -> 353.3044914
A90: 67 | B90: 2083 | D90: 10 | E90: 344.8999701 | F90: =E90*'Fixed Data (CPIH)'!$E$19 -> 352.234817 | G90: 0.01 | H90: 344.8999701 | I90: =H90*'Fixed Data (CPIH)'!$E$19 -> 352.234817
A91: 68 | B91: 2084 | D91: 10 | E91: 343.6341985 | F91: =E91*'Fixed Data (CPIH)'!$E$19 -> 350.9421267 | G91: 0.01 | H91: 343.6341985 | I91: =H91*'Fixed Data (CPIH)'!$E$19 -> 350.9421267
A92: 69 | B92: 2085 | D92: 10 | E92: 342.5207353 | F92: =E92*'Fixed Data (CPIH)'!$E$19 -> 349.804984 | G92: 0.01 | H92: 342.5207353 | I92: =H92*'Fixed Data (CPIH)'!$E$19 -> 349.804984
A93: 70 | B93: 2086 | D93: 10 | E93: 340.7418254 | F93: =E93*'Fixed Data (CPIH)'!$E$19 -> 347.9882427 | G93: 0.01 | H93: 340.7418254 | I93: =H93*'Fixed Data (CPIH)'!$E$19 -> 347.9882427
A94: 71 | B94: 2087 | D94: 10 | E94: 338.6929235 | F94: =E94*'Fixed Data (CPIH)'!$E$19 -> 345.8957676 | G94: 0.01 | H94: 338.6929235 | I94: =H94*'Fixed Data (CPIH)'!$E$19 -> 345.8957676
A95: 72 | B95: 2088 | D95: 10 | E95: 336.5906439 | F95: =E95*'Fixed Data (CPIH)'!$E$19 -> 343.7487797 | G95: 0.01 | H95: 336.5906439 | I95: =H95*'Fixed Data (CPIH)'!$E$19 -> 343.7487797
A96: 73 | B96: 2089 | D96: 10 | E96: 334.1678546 | F96: =E96*'Fixed Data (CPIH)'!$E$19 -> 341.2744659 | G96: 0.01 | H96: 334.1678546 | I96: =H96*'Fixed Data (CPIH)'!$E$19 -> 341.2744659
A97: 74 | B97: 2090 | D97: 10 | E97: 331.7219126 | F97: =E97*'Fixed Data (CPIH)'!$E$19 -> 338.7765071 | G97: 0.01 | H97: 331.7219126 | I97: =H97*'Fixed Data (CPIH)'!$E$19 -> 338.7765071
A98: 75 | B98: 2091 | D98: 10 | E98: 329.6548845 | F98: =E98*'Fixed Data (CPIH)'!$E$19 -> 336.6655203 | G98: 0.01 | H98: 329.6548845 | I98: =H98*'Fixed Data (CPIH)'!$E$19 -> 336.6655203
A99: 76 | B99: 2092 | D99: 10 | E99: 327.5312584 | F99: =E99*'Fixed Data (CPIH)'!$E$19 -> 334.4967319 | G99: 0.01 | H99: 327.5312584 | I99: =H99*'Fixed Data (CPIH)'!$E$19 -> 334.4967319
A100: 77 | B100: 2093 | D100: 10 | E100: 324.8769807 | F100: =E100*'Fixed Data (CPIH)'!$E$19 -> 331.7860068 | G100: 0.01 | H100: 324.8769807 | I100: =H100*'Fixed Data (CPIH)'!$E$19 -> 331.7860068
A101: 78 | B101: 2094 | D101: 10 | E101: 322.1576937 | F101: =E101*'Fixed Data (CPIH)'!$E$19 -> 329.0088899 | G101: 0.01 | H101: 322.1576937 | I101: =H101*'Fixed Data (CPIH)'!$E$19 -> 329.0088899
A102: 79 | B102: 2095 | D102: 10 | E102: 319.3252188 | F102: =E102*'Fixed Data (CPIH)'!$E$19 -> 326.1161778 | G102: 0.01 | H102: 319.3252188 | I102: =H102*'Fixed Data (CPIH)'!$E$19 -> 326.1161778
A103: 80 | B103: 2096 | D103: 10 | E103: 316.4183004 | F103: =E103*'Fixed Data (CPIH)'!$E$19 -> 323.1474392 | G103: 0.01 | H103: 316.4183004 | I103: =H103*'Fixed Data (CPIH)'!$E$19 -> 323.1474392
A104: 81 | B104: 2097 | D104: 10 | E104: 313.6341322 | F104: =E104*'Fixed Data (CPIH)'!$E$19 -> 320.3040612 | G104: 0.01 | H104: 313.6341322 | I104: =H104*'Fixed Data (CPIH)'!$E$19 -> 320.3040612
A105: 82 | B105: 2098 | D105: 10 | E105: 310.345788 | F105: =E105*'Fixed Data (CPIH)'!$E$19 -> 316.9457851 | G105: 0.01 | H105: 310.345788 | I105: =H105*'Fixed Data (CPIH)'!$E$19 -> 316.9457851
A106: 83 | B106: 2099 | D106: 10 | E106: 307.3656959 | F106: =E106*'Fixed Data (CPIH)'!$E$19 -> 313.9023167 | G106: 0.01 | H106: 307.3656959 | I106: =H106*'Fixed Data (CPIH)'!$E$19 -> 313.9023167
A107: 84 | B107: 2100 | D107: 10 | E107: 304.0737074 | F107: =E107*'Fixed Data (CPIH)'!$E$19 -> 310.5403188 | G107: 0.01 | H107: 304.0737074 | I107: =H107*'Fixed Data (CPIH)'!$E$19 -> 310.5403188
D113: =(D24-D57)/33 -> 11.34636364
D114: note: Values taken from Central scenario from Updated short-term carbon values used for modelling purposes (2017)
D115: link to carbon valuation
D118: Drop Down List Criteria
D120: Investment Type | E120: Investment Expenditure Type | F120: Risk Register %'s | G120: Output
D122: Please specify | E122: Please specify | F122: <=20% | G122: Please specify
C123: Y | D123: Load Related - Entry | E123: ** Await NARM Asset Breakdown ** | F123: >20% & <=40% | G123: Health Index Change
C124: N | D124: Load Related - Exit | E124: 01 - CLADDING | F124: >40% & <=60% | G124: Emissions Reduction
D125: Load Related - Network Capability | E125: 02 - AFTER COOLERS | F125: >60% & <=80% | G125: **List to be expanded**
D126: Load Related - Offtakes | E126: 03 - AIR INTAKE | F126: >80% & <=100%
D127: Load Related - Other Costs | E127: 04 - EXHAUSTS | F127: 1
D128: Non Load Related - Emissions Reduction | E128: 05 - BOUNDARY CONTROLLERS
D129: Non Load Related - Asset Health (condition driven) | E129: 06 - CAB VENTILATION
D130: Non Load Related - Cyber Security | E130: 07 - CIVIL ASSETS (DRAINAGE)
D131: Non Load Related - Physical Security | E131: 08 - CIVIL ASSETS (ACCESS)
D132: Non Load Related - Decomissioning | E132: 09 - CIVIL ASSETS (BUILDINGS/ENCLOSURES)
D133: Non Load Related - Other Costs | E133: 10 - CIVIL ASSETS (DUCTING)
D134: Opex | E134: 11 - CIVIL ASSETS (BRIDGES)
D135: Business Support | E135: 12 - CIVIL ASSETS (PIPE SUPPORTS)
D136: Closely associated Indirects | E136: 13 - FUEL TANKS & BUNDS
D137: Operational Activities - Planned Inspection & Maintenance | E137: 14 - COMPRESSOR
D138: Operational Activities - Fault Repairs | E138: 15 - CATHODIC PROTECTION
D139: Operational Activities - Property Management | E139: 16 - ELECTRICAL (INCUDING STANDBY GENERATORS)
D140: Non Operational - Non Operational Capex | E140: 17 - ELECTRICAL (SAFE SHUTDOWN)
D141: System Operator Capex | E141: 18 - FILTER / SCRUBBERS
E142: 19 - FIRE AND GAS DETECTION
E143: 20 - FIRE SUPPRESSION
E144: 21 - FLOW OR PRESSURE REGULATORS
E145: 22 - GAS ANALYSER
E146: 23 - GAS GENERATOR
E147: 24 - IMPACT PROTECTION
E148: 25 - RIVER CROSSINGS
E149: 26 - MARKERS
E150: 27 - FISCAL METERING
E151: 28 - FUEL GAS METERING
E152: 29 - NETWORK CONTROL AND INSTRUMENTATION
E153: 30 - ODORISATION PLANT
E154: 31 - PIG TRAP
E155: 32 - ABOVE GROUND PIPE COATING
E156: 33 - BELOW GROUND PIPE COATING
E157: 34 - POWER TURBINE
E158: 35 - PREHEATERS
E159: 36 - STATION PROCESS CONTROL SYSTEM
E160: 37 - UNIT CONTROL SYSTEM
E161: 38 - ANTI-SURGE SYSTEM
E162: 39 - SECURITY
E163: 40 - STARTER MOTOR
E164: 41 - VENT SYSTEM
E165: 42 - ELECTRICAL VARIABLE SPEED DRIVE
E166: 43 - LOCALLY ACTUATED VALVES
E167: 44 - NON RETURN VALVES
E168: 45 - REMOTE ISOLATION VALVES
E169: 46 - PROCESS VALVES
E170: 47 - SLAMSHUT SYSTEM
E171: Risk Contingency
E172: Opex
E173: BS
E174: CAI
E175: Other

Sheet Fixed Data (CPIH)
B3: CPIH Index
B4: Regulatory Year | C4: Average Index | D4: Calendar Year | E4: Conversion from FY to 2018/19 | F4: Conversion from XX/XX to 2018/19
B5: 2003/04 | C5: 76.975 | D5: 2004 | E5: =IFERROR(($C$20/$C5),"") -> 1.38269568 | F5: =IFERROR(($C5/$C$20),"") -> 0.7232249396
B6: 2004/05 | C6: 78.125 | D6: 2005 | E6: =IFERROR(($C$20/$C6),"") -> 1.3623424 | F6: =IFERROR(($C6/$C$20),"") -> 0.7340298592
B7: 2005/06 | C7: 79.825 | D7: 2006 | E7: 1.333329158 | F7: 0.7500023489
B8: 2006/07 | C8: 81.91666667 | D8: 2007 | E8: 1.299283825 | F8: 0.769654775
B9: 2007/08 | C9: 83.825 | D9: 2008 | E9: 1.269704742 | F9: 0.7875846777
B10: 2008/09 | C10: 86.85833333 | D10: 2009 | E10: 1.225363139 | F10: 0.8160846103
B11: 2009/10 | C11: 88.43333333 | D11: 2010 | E11: 1.203539389 | F11: 0.8308826523
B12: 2010/11 | C12: 90.90833333 | D12: 2011 | E12: 1.170772756 | F12: 0.8541367182
B13: 2011/12 | C13: 94.30833333 | D13: 2012 | E13: 1.128564107 | F13: 0.8860816977
B14: 2012/13 | C14: 96.58333333 | D14: 2013 | E14: 1.101981018 | F14: 0.9074566472
B15: 2013/14 | C15: 98.6 | D15: 2014 | E15: 1.079442191 | F15: 0.9264044046
B16: 2014/15 | C16: 99.725 | D16: 2015 | E16: 1.067264979 | F16: 0.9369744346
B17: 2015/16 | C17: 100.1666667 | D17: 2016 | E17: 1.062559068 | F17: 0.9411241504
A18: 1 | B18: 2016/17 | C18: 101.5416667 | D18: 2017 | E18: 1.048170701 | F18: 0.9540430759
A19: 2 | B19: 2017/18 | C19: 104.2166667 | D19: 2018 | E19: 1.021266592 | F19: 0.9791762583
A20: 3 | B20: 2018/19 | C20: 106.433 | D20: 2019 | E20: 1 | F20: 1
A21: 4 | B21: 2019/20 | D21: 2020
A22: 5 | B22: 2020/21 | D22: 2021
A23: 6 | B23: 2021/22 | D23: 2022
A24: 7 | B24: 2022/23 | D24: 2023
A25: 8 | B25: 2023/24 | D25: 2024
A26: 9 | B26: 2024/25 | D26: 2025
A27: 10 | B27: 2025/26 | D27: 2026
A28: 11 | B28: 2026/27 | D28: 2027 | E28: =IFERROR(($C$19/$C28),"") ->  | F28: =IFERROR(($C$19/$C28),"") -> 
A29: 12 | B29: 2027/28 | D29: 2028
A30: 13 | B30: 2028/29 | D30: 2029
A31: 14 | B31: 2029/30 | D31: 2030
A32: 15 | B32: 2030/31 | D32: 2031
A33: 16 | B33: 2031/32 | D33: 2032
A34: 17 | B34: 2032/33 | D34: 2033
A35: 18 | B35: 2033/34 | D35: 2034
A36: 19 | B36: 2034/35 | D36: 2035
A37: 20 | B37: 2035/36 | D37: 2036 | E37: =IFERROR(($C$19/$C37),"") -> 
A38: 21 | B38: 2036/37 | D38: 2037
A39: 22 | B39: 2037/38 | D39: 2038
A40: 23 | B40: 2038/39 | D40: 2039
A41: 24 | B41: 2039/40 | D41: 2040
A42: 25 | B42: 2040/41 | D42: 2041
A43: 26 | B43: 2041/42 | D43: 2042
A44: 27 | B44: 2042/43 | D44: 2043
A45: 28 | B45: 2043/44 | D45: 2044
A46: 29 | B46: 2044/45 | D46: 2045
A47: 30 | B47: 2045/46 | D47: 2046
A48: 31 | B48: 2046/47 | D48: 2047
A49: 32 | B49: 2047/48 | D49: 2048
A50: 33 | B50: 2048/49 | D50: 2049
A51: 34 | B51: 2049/50 | D51: 2050
A52: 35 | B52: 2050/51 | D52: 2051
A53: 36 | B53: 2051/52 | D53: 2052
A54: 37 | B54: 2052/53 | D54: 2053
A55: 38 | B55: 2053/54 | D55: 2054
A56: 39 | B56: 2054/55 | D56: 2055
A57: 40 | B57: 2055/56 | D57: 2056
A58: 41 | B58: 2056/57 | D58: 2057
A59: 42 | B59: =(LEFT(B58,4)+1)&"/"&(RIGHT(B58,2)+1) -> 2057/58 | D59: 2058
A60: 43 | B60: 2058/59 | D60: 2059
A61: 44 | B61: 2059/60 | D61: 2060
A62: 45 | B62: 2060/61 | D62: 2061
A63: 46 | B63: 2061/62 | D63: 2062
A64: 47 | B64: 2062/63 | D64: 2063
A65: 48 | B65: 2063/64 | D65: 2064
A66: 49 | B66: 2064/65 | D66: 2065
A67: 50 | B67: 2065/66 | D67: 2066
A68: 51 | B68: 2066/67 | D68: 2067
A69: 52 | B69: 2067/68 | D69: 2068 | E69: =IFERROR(($C$19/$C69),"") -> 
A70: 53 | B70: 2068/69 | D70: 2069 | F70: =IFERROR(($C$19/$C70),"") -> 
A71: 54 | B71: 2069/70 | D71: 2070 | F71: =IFERROR(($C$19/$C71),"") -> 
A72: 55 | B72: 2070/71 | D72: 2071 | F72: =IFERROR(($C$19/$C72),"") -> 
A73: 56 | B73: 2071/72 | D73: 2072 | F73: =IFERROR(($C$19/$C73),"") -> 
A74: 57 | B74: 2072/73 | D74: 2073 | F74: =IFERROR(($C$19/$C74),"") -> 
B78: CPIH INDEX 00: ALL ITEMS 2015=100; Identifier = L522
B79: ONS Inflation price indices
B80: ONS inflation price indices
A112: Drop Down List Criteria
A114: Investment Type | B114: Investment Expenditure Type | C114: Risk Register %'s | D114: Output
A116: Please specify | B116: Please specify | C116: <=20% | D116: MW added
A117: Load | B117: Cable - 132kV Sub Cable | C117: >20% & <=40% | D117: Health Index Change
A118: Exit/Entry -check consistent treatment (Re Excl. Services) | B118: Cable - 132kV UG Cable (Gas) | C118: >40% & <=60% | D118: SGT Added
A119: Baseline Wider Works | B119: Cable - 132kV UG Cable (Non Pressurised) | C119: >60% & <=80% | D119: **List to be expanded**
A120: Strategic Wider Works | B120: Cable - 132kV UG Cable (Oil) | C120: >80% & <=100%
A121: Infrastructure Wider Works | B121: Cable - 2752kV UG Cable (Oil) | C121: 1
A122: Non-load | B122: Cable - 275kV Sub Cable
A123: Lead Asset replacement/refurbishment | B123: Cable - 275kV UG Cable (Gas)
A124: Other CAPEX (i.e. non-lead assets) | B124: Cable - 275kV UG Cable (Non Pressurised)
A125: Non-operational Capex | B125: Cable - 33kV UG Cable (Gas)
A126: Opex | B126: Cable - 33kV UG Cable (Non Pressurised)
A127: Business Support | B127: Cable - 33kV UG Cable (Oil)
A128: Closely associated Indirects | B128: Cable - 400kV Sub Cable
A129: Direct Cost: | B129: Cable - 400kV UG Cable (Gas)
A130: Fault Repairs | B130: Cable - 400kV UG Cable (Non Pressurised)
A131: Planned Inspections & Maintenance | B131: Cable - 400kV UG Cable (Oil)
A132: Vegetation Management | B132: Cable - 6.6/11kV UG Cable
A133: Operational Property Management | B133: Cable - 66kV UG Cable (Gas)
A134: BT 21 CN Teleprotection | B134: Cable - 66kV UG Cable (Non Pressurised)
A135: Offshore Transmission Project | B135: Cable - 66kV UG Cable (Oil)
B136: Cable Bridge
B137: Cable Tunnel
B138: Electrical Energy Storage
B139: Overhead Pole Line - 132kV OHL (Pole Line) Conductor
B140: Overhead Pole Line - 132kV Pole
B141: Overhead Pole Line - 275kV OHL (Pole Line) Conductor
B142: Overhead Pole Line - 275kV Pole
B143: Overhead Pole Line - 400kV OHL (Pole Line) Conductor
B144: Overhead Pole Line - 400kV Pole
B145: Overhead Tower Line - 132kV Fittings
B146: Overhead Tower Line - 132kV OHL (Tower Line) Conductor
B147: Overhead Tower Line - 132kV Tower
B148: Overhead Tower Line - 275kV Fittings
B149: Overhead Tower Line - 275kV OHL (Tower Line) Conductor
B150: Overhead Tower Line - 275kV Tower
B151: Overhead Tower Line - 400kV Fittings
B152: Overhead Tower Line - 400kV OHL (Tower Line) Conductor
B153: Overhead Tower Line - 400kV Tower
B154: Protection - Batteries at 132kV Substations
B155: Protection - Batteries at 275kV Substations
B156: Protection - Batteries at 400kV Substations
B157: Protection - Pilot Wire Overhead
B158: Protection - Pilot Wire Underground
B159: Protection - Refurbishment - Protection Schemes
B160: Protection - Standby Generators at 132kV Substations
B161: Protection - Standby Generators at 275kV Substations
B162: Protection - Standby Generators at 400kV Substations
B163: Switchgear - 132kV CB (Air Insulated Busbars)(ID) (GM)
B164: Switchgear - 132kV CB (Air Insulated Busbars)(OD) (GM)
B165: Switchgear - 132kV CB (Gas Insulated Busbars)(ID) (GM)
B166: Switchgear - 132kV CB (Gas Insulated Busbars)(OD) (GM)
B167: Switchgear - 132kV Switchgear - Other
B168: Switchgear - 275kV CB (Air Insulated Busbars)(ID) (GM)
B169: Switchgear - 275kV CB (Air Insulated Busbars)(OD) (GM)
B170: Switchgear - 275kV CB (Gas Insulated Busbars)(ID) (GM)
B171: Switchgear - 275kV CB (Gas Insulated Busbars)(OD) (GM)
B172: Switchgear - 275kV Switchgear - Other
B173: Switchgear - 33kV CB (Air Insulated Busbars)(ID) (GM)
B174: Switchgear - 33kV CB (Air Insulated Busbars)(OD) (GM)
B175: Switchgear - 33kV CB (Gas Insulated Busbars)(ID)(GM)
B176: Switchgear - 33kV CB (Gas Insulated Busbars)(OD)(GM)
B177: Switchgear - 33kV Switch (GM)
B178: Switchgear - 33kV Switchgear - Other
B179: Switchgear - 400kV CB (Air Insulated Busbars)(ID) (GM)
B180: Switchgear - 400kV CB (Air Insulated Busbars)(OD) (GM)
B181: Switchgear - 400kV CB (Gas Insulated Busbars)(ID) (GM)
B182: Switchgear - 400kV CB (Gas Insulated Busbars)(OD) (GM)
B183: Switchgear - 400kV Switchgear - Other
B184: Switchgear - 6.6/11kV CB (PM)
B185: Switchgear - 6.6/11kV Switchgear - Other (PM)
B186: Switchgear - 66kV CB (Air Insulated Busbars)(ID) (GM)
B187: Switchgear - 66kV CB (Gas Insulated Busbars)(ID)(GM)
B188: Switchgear - 66kV CB (Gas Insulated Busbars)(OD)(GM)
B189: Switchgear - 66kV Switchgear - Other
B190: Switchgear - 6.6/11kV CB (GM) Primary
B191: Switchgear - 66kV CB (Air Insulated Busbars)(OD) (GM)
B192: Transformer - 132kV Transformer (GM)
B193: Transformer - 275kV Transformer (GM)
B194: Transformer - 400kV Transformer (GM)
B195: Civils - Sub Cat. 1: Access (TBC)
B196: Civils - Sub Cat. 2: Ground Prep. (TBC)
B197: Civils - Sub Cat. 3: Other (TBC)
B198: Risk & Contingency
B199: Other

Sheet Risk Register
A3: Please fill in the below Risk Register for the selected option only.
A8: Risk No. | B8: Risk Description | C8: Impact | D8: Likelihood | E8: Mitigation/Controls | F8: Comments
A9: 1
A10: 2
A11: 3
A12: 4
A13: 5
A14: 6
A15: 7
A16: 8
A17: 9
A18: 10
A19: 11
A20: 12
A21: 13
A22: 14
A23: 15
A24: 16
A25: 17
A26: 18
A27: 19
A28: 20
A29: 21
A30: 22
A31: 23
A32: 24
A33: 25
A34: 26
A35: 27
A36: 28
A37: 29
A38: 30
A39: 31
A40: 32
A41: 33
A42: 34
A43: 35
A44: 36
A45: 37
A46: 38
A47: 39
A48: 40

Sheet Template
E3: FALSE
A4: Costs
A6: Option Name | D6: Date Undertaken: | F6: Shortcut buttons for date: 'Ctrl' & ';'
A7: Scheme Reference ID
A8: Investment Type | D8: Authorised By:
A9: Preferred Option (Y/N)
A10: Spend Area (Please include relevant RRP/BPDT Table Reference)
A12: First year of investment out flow | C12: eg 2022
A14: Term (years from first out flow) | B14: NPV (£m)
A15: 10 | B15: =IFERROR(INDEX($E$186:$BE$186,1,($B$12-2018)+$A15-1),"") -> 
A16: 20 | B16: =IFERROR(INDEX($E$186:$BE$186,1,($B$12-2018)+$A16-1),"") -> 
A17: 30 | B17: =IFERROR(INDEX($E$186:$BE$186,1,($B$12-2018)+$A17-1),"") -> 
A18: 45 | B18: =IFERROR(INDEX($E$186:$BE$186,1,($B$12-2018)+$A18-1),"") -> 
A20: Total Forecast Expenditure | B20: =SUM(E62:BE62) -> 0
A21: Total NPV | B21: =BE186 -> 0
A23: Capitalisation rates
A25: Expenditure Profile - Summary
A26: Pre T2 | B26: 2022 | C26: 2023 | D26: 2024 | E26: 2025 | F26: 2026 | G26: Post T2
A27: (£m) | B27: (£m) | C27: (£m) | D27: (£m) | E27: (£m) | F27: (£m) | G27: (£m)
A28: =SUM($E$62:$G$62) -> 0 | B28: =H62 -> 0 | C28: =I62 -> 0 | D28: =J62 -> 0 | E28: =K62 -> 0 | F28: =L62 -> 0 | G28: =SUM($M$62:$BE$62) -> 0
A31: Benefits
B34: CBA Option | C34: =B6 -> 0
B36: Asset Output | C36: Unit | D36: Comments
A37: Output
E48: Please enter all pre T2 Costs in this column
E50: 1 | F50: 2 | G50: 3 | H50: 4 | I50: 5 | J50: 6 | K50: 7 | L50: 8 | M50: 9 | N50: 10 | O50: 11 | P50: 12 | Q50: 13 | R50: 14 | S50: 15 | T50: 16 | U50: 17 | V50: 18 | W50: 19 | X50: 20 | Y50: 21 | Z50: 22 | AA50: 23 | AB50: 24 | AC50: 25 | AD50: 26 | AE50: 27 | AF50: 28 | AG50: 29 | AH50: 30 | AI50: 31 | AJ50: 32 | AK50: 33 | AL50: 34 | AM50: 35 | AN50: 36 | AO50: 37 | AP50: 38 | AQ50: 39 | AR50: 40 | AS50: 41 | AT50: 42 | AU50: 43 | AV50: 44 | AW50: 45 | AX50: 46 | AY50: 47 | AZ50: 48 | BA50: 49 | BB50: 50 | BC50: 51 | BD50: 52 | BE50: 53 | BF50: 54 | BG50: 55 | BH50: 56 | BI50: 57 | BJ50: 58 | BK50: 59 | BL50: 60 | BM50: 61 | BN50: 62 | BO50: 63 | BP50: 64 | BQ50: 65 | BR50: 66 | BS50: 67 | BT50: 68 | BU50: 69 | BV50: 70 | BW50: 71 | BX50: 72 | BY50: 73 | BZ50: 74 | CA50: 75 | CB50: 76 | CC50: 77 | CD50: 78 | CE50: 79 | CF50: 80 | CG50: 81 | CH50: 82
B51: Investment Expenditure Type | C51: Volume (km/each) | D51: Units | E51: 2019 | F51: =G51-1 -> 2020 | G51: 2021 | H51: 2022 | I51: 2023 | J51: 2024 | K51: 2025 | L51: 2026 | M51: 2027 | N51: 2028 | O51: 2029 | P51: 2030 | Q51: 2031 | R51: 2032 | S51: 2033 | T51: 2034 | U51: 2035 | V51: 2036 | W51: 2037 | X51: 2038 | Y51: 2039 | Z51: 2040 | AA51: 2041 | AB51: 2042 | AC51: 2043 | AD51: 2044 | AE51: 2045 | AF51: 2046 | AG51: 2047 | AH51: 2048 | AI51: 2049 | AJ51: 2050 | AK51: 2051 | AL51: 2052 | AM51: 2053 | AN51: 2054 | AO51: 2055 | AP51: 2056 | AQ51: 2057 | AR51: 2058 | AS51: 2059 | AT51: 2060 | AU51: 2061 | AV51: 2062 | AW51: 2063 | AX51: 2064 | AY51: 2065 | AZ51: 2066 | BA51: 2067 | BB51: 2068 | BC51: 2069 | BD51: 2070 | BE51: 2071 | BF51: 2072 | BG51: 2073 | BH51: 2074 | BI51: 2075 | BJ51: 2076 | BK51: 2077 | BL51: 2078 | BM51: 2079 | BN51: 2080 | BO51: 2081 | BP51: 2082 | BQ51: 2083 | BR51: 2084 | BS51: 2085 | BT51: 2086 | BU51: 2087 | BV51: 2088 | BW51: 2089 | BX51: 2090 | BY51: 2091 | BZ51: 2092 | CA51: 2093 | CB51: 2094 | CC51: 2095 | CD51: 2096 | CE51: 2097 | CF51: 2098 | CG51: 2099 | CH51: 2100
A52: Investment | B52: Please specify | D52: £m
B53: Please specify | D53: £m
B54: Please specify | D54: £m
B55: Please specify | D55: £m
B56: Please specify | D56: £m
B57: Please specify | D57: £m
B58: Please specify | D58: £m
B59: Please specify | D59: £m
B60: Please specify | D60: £m
B61: Please specify | D61: £m
B62: Total Investment | D62: £m | E62: =SUM(E52:E61) -> 0 | F62: =SUM(F52:F61) -> 0 | G62: =SUM(G52:G61) -> 0 | H62: =SUM(H52:H61) -> 0 | I62: 0 | J62: 0 | K62: 0 | L62: 0 | M62: 0 | N62: 0 | O62: 0 | P62: 0 | Q62: 0 | R62: 0 | S62: 0 | T62: 0 | U62: 0 | V62: 0 | W62: 0 | X62: 0 | Y62: 0 | Z62: 0 | AA62: 0 | AB62: 0 | AC62: 0 | AD62: 0 | AE62: 0 | AF62: 0 | AG62: 0 | AH62: 0 | AI62: 0 | AJ62: 0 | AK62: 0 | AL62: 0 | AM62: 0 | AN62: 0 | AO62: 0 | AP62: 0 | AQ62: 0 | AR62: 0 | AS62: 0 | AT62: 0 | AU62: 0 | AV62: 0 | AW62: 0 | AX62: 0 | AY62: 0 | AZ62: 0 | BA62: 0 | BB62: 0 | BC62: 0 | BD62: 0 | BE62: =SUM(BE52:BE61) -> 0 | BF62: =SUM(BF52:BF61) -> 0 | BG62: 0 | BH62: 0 | BI62: 0 | BJ62: 0 | BK62: 0 | BL62: 0 | BM62: 0 | BN62: 0 | BO62: 0 | BP62: 0 | BQ62: 0 | BR62: 0 | BS62: 0 | BT62: 0 | BU62: 0 | BV62: 0 | BW62: 0 | BX62: 0 | BY62: 0 | BZ62: 0 | CA62: 0 | CB62: 0 | CC62: 0 | CD62: 0 | CE62: 0 | CF62: 0 | CG62: 0 | CH62: 0
A65: NG Pass Through Costs | D65: £m
D66: £m
D67: £m
D68: £m
D69: £m
D70: £m
D71: £m
B72: Total NG Pass Through Costs | D72: £m | E72: =SUM(E65:E71) -> 0 | F72: =SUM(F65:F71) -> 0 | G72: 0 | H72: 0 | I72: 0 | J72: 0 | K72: 0 | L72: 0 | M72: 0 | N72: 0 | O72: 0 | P72: 0 | Q72: 0 | R72: 0 | S72: 0 | T72: 0 | U72: 0 | V72: 0 | W72: 0 | X72: 0 | Y72: 0 | Z72: 0 | AA72: 0 | AB72: 0 | AC72: 0 | AD72: 0 | AE72: 0 | AF72: 0 | AG72: 0 | AH72: 0 | AI72: 0 | AJ72: 0 | AK72: 0 | AL72: 0 | AM72: 0 | AN72: 0 | AO72: 0 | AP72: 0 | AQ72: 0 | AR72: 0 | AS72: 0 | AT72: 0 | AU72: 0 | AV72: 0 | AW72: 0 | AX72: 0 | AY72: 0 | AZ72: 0 | BA72: 0 | BB72: 0 | BC72: 0 | BD72: 0 | BE72: 0 | BF72: 0 | BG72: =SUM(BG65:BG65) -> 0 | BH72: 0 | BI72: 0 | BJ72: 0 | BK72: 0 | BL72: 0 | BM72: 0 | BN72: 0 | BO72: 0 | BP72: 0 | BQ72: 0 | BR72: 0 | BS72: 0 | BT72: 0 | BU72: 0 | BV72: 0 | BW72: 0 | BX72: 0 | BY72: 0 | BZ72: 0 | CA72: 0 | CB72: 0 | CC72: 0 | CD72: 0 | CE72: 0 | CF72: 0 | CG72: 0 | CH72: 0
A75: Avoided TO costs | B75: Please specify | D75: £m
B76: Please specify | D76: £m
B77: Please specify | D77: £m
B78: Please specify | D78: £m
B79: Please specify | D79: £m
B80: Please specify | D80: £m
B81: Please specify | D81: £m
B82: Please specify | D82: £m
B83: Please specify | D83: £m
B84: Please specify | D84: £m
B85: Other 1 (Specify) | D85: £m
B86: Other 2 (Specify) | D86: £m
B87: Other 3 (Specify) | D87: £m
B88: Total avoided TO costs | D88: £m | E88: =SUM(E75:E87) -> 0 | F88: =SUM(F75:F87) -> 0 | G88: =SUM(G75:G87) -> 0 | H88: 0 | I88: 0 | J88: 0 | K88: 0 | L88: 0 | M88: 0 | N88: 0 | O88: 0 | P88: 0 | Q88: 0 | R88: 0 | S88: 0 | T88: 0 | U88: 0 | V88: 0 | W88: 0 | X88: 0 | Y88: 0 | Z88: 0 | AA88: 0 | AB88: 0 | AC88: 0 | AD88: 0 | AE88: 0 | AF88: 0 | AG88: 0 | AH88: 0 | AI88: 0 | AJ88: 0 | AK88: 0 | AL88: 0 | AM88: 0 | AN88: 0 | AO88: 0 | AP88: 0 | AQ88: 0 | AR88: 0 | AS88: 0 | AT88: 0 | AU88: 0 | AV88: 0 | AW88: 0 | AX88: 0 | AY88: 0 | AZ88: 0 | BA88: 0 | BB88: 0 | BC88: 0 | BD88: 0 | BE88: 0 | BF88: =SUM(BF75:BF87) -> 0 | BG88: 0 | BH88: 0 | BI88: 0 | BJ88: 0 | BK88: 0 | BL88: 0 | BM88: 0 | BN88: 0 | BO88: 0 | BP88: 0 | BQ88: 0 | BR88: 0 | BS88: 0 | BT88: 0 | BU88: 0 | BV88: 0 | BW88: 0 | BX88: 0 | BY88: 0 | BZ88: 0 | CA88: 0 | CB88: 0 | CC88: 0 | CD88: 0 | CE88: 0 | CF88: 0 | CG88: 0 | CH88: 0
B89: Total TO net benefits before capitalisation | C89: (1) = investment + TO benefits | D89: £m | E89: =E62+E88 -> 0 | F89: =F62+F88 -> 0 | G89: 0 | H89: 0 | I89: 0 | J89: 0 | K89: 0 | L89: 0 | M89: 0 | N89: 0 | O89: 0 | P89: 0 | Q89: 0 | R89: 0 | S89: 0 | T89: 0 | U89: 0 | V89: 0 | W89: 0 | X89: 0 | Y89: 0 | Z89: 0 | AA89: 0 | AB89: 0 | AC89: 0 | AD89: 0 | AE89: 0 | AF89: 0 | AG89: 0 | AH89: 0 | AI89: 0 | AJ89: 0 | AK89: 0 | AL89: 0 | AM89: 0 | AN89: 0 | AO89: 0 | AP89: 0 | AQ89: 0 | AR89: 0 | AS89: 0 | AT89: 0 | AU89: 0 | AV89: 0 | AW89: 0 | AX89: 0 | AY89: 0 | AZ89: 0 | BA89: 0 | BB89: 0 | BC89: 0 | BD89: 0 | BE89: 0 | BF89: 0 | BG89: =BG62+BG72+BG88 -> 0 | BH89: 0 | BI89: 0 | BJ89: 0 | BK89: 0 | BL89: 0 | BM89: 0 | BN89: 0 | BO89: 0 | BP89: 0 | BQ89: 0 | BR89: 0 | BS89: 0 | BT89: 0 | BU89: 0 | BV89: 0 | BW89: 0 | BX89: 0 | BY89: 0 | BZ89: 0 | CA89: 0 | CB89: 0 | CC89: 0 | CD89: 0 | CE89: 0 | CF89: 0 | CG89: 0 | CH89: 0
B90: Capitalisation rates | C90: (2) | D90: % | E90: =$B$23 -> 0 | F90: 0 | G90: 0 | H90: 0 | I90: 0 | J90: 0 | K90: 0 | L90: 0 | M90: 0 | N90: 0 | O90: 0 | P90: 0 | Q90: 0 | R90: 0 | S90: 0 | T90: 0 | U90: 0 | V90: 0 | W90: 0 | X90: 0 | Y90: 0 | Z90: 0 | AA90: 0 | AB90: 0 | AC90: 0 | AD90: 0 | AE90: 0 | AF90: 0 | AG90: 0 | AH90: 0 | AI90: 0 | AJ90: 0 | AK90: 0 | AL90: =$B$23 -> 0 | AM90: 0 | AN90: 0 | AO90: 0 | AP90: 0 | AQ90: 0 | AR90: 0 | AS90: 0 | AT90: 0 | AU90: 0 | AV90: 0 | AW90: 0 | AX90: 0 | AY90: 0 | AZ90: 0 | BA90: 0 | BB90: 0 | BC90: 0 | BD90: 0 | BE90: 0 | BF90: 0 | BG90: 0 | BH90: 0 | BI90: 0 | BJ90: 0 | BK90: 0 | BL90: 0 | BM90: 0 | BN90: 0 | BO90: 0 | BP90: 0 | BQ90: 0 | BR90: 0 | BS90: 0 | BT90: 0 | BU90: 0 | BV90: 0 | BW90: 0 | BX90: 0 | BY90: 0 | BZ90: 0 | CA90: 0 | CB90: 0 | CC90: 0 | CD90: 0 | CE90: 0 | CF90: 0 | CG90: 0 | CH90: 0
B91: Capitalised investment | C91: (3)=(1)x(2) | D91: £m | E91: =E89*E90 -> 0 | F91: =F89*F90 -> 0 | G91: =G89*G90 -> 0 | H91: =H89*H90 -> 0 | I91: 0 | J91: 0 | K91: 0 | L91: 0 | M91: 0 | N91: 0 | O91: 0 | P91: 0 | Q91: 0 | R91: 0 | S91: 0 | T91: 0 | U91: 0 | V91: 0 | W91: 0 | X91: 0 | Y91: 0 | Z91: 0 | AA91: 0 | AB91: 0 | AC91: 0 | AD91: 0 | AE91: 0 | AF91: 0 | AG91: 0 | AH91: 0 | AI91: 0 | AJ91: 0 | AK91: 0 | AL91: 0 | AM91: 0 | AN91: 0 | AO91: 0 | AP91: 0 | AQ91: 0 | AR91: 0 | AS91: 0 | AT91: 0 | AU91: 0 | AV91: 0 | AW91: 0 | AX91: 0 | AY91: 0 | AZ91: 0 | BA91: 0 | BB91: 0 | BC91: 0 | BD91: 0 | BE91: =BE89*BE90 -> 0 | BF91: =BF89*BF90 -> 0 | BG91: 0 | BH91: 0 | BI91: 0 | BJ91: 0 | BK91: 0 | BL91: 0 | BM91: 0 | BN91: 0 | BO91: 0 | BP91: 0 | BQ91: 0 | BR91: 0 | BS91: 0 | BT91: 0 | BU91: 0 | BV91: 0 | BW91: 0 | BX91: 0 | BY91: 0 | BZ91: 0 | CA91: 0 | CB91: 0 | CC91: 0 | CD91: 0 | CE91: 0 | CF91: 0 | CG91: 0 | CH91: 0
B92: Investment to be expensed | C92: (4)=(1)-(3) | D92: £m | E92: =E89-E91 -> 0 | F92: =F89-F91 -> 0 | G92: =G89-G91 -> 0 | H92: =H89-H91 -> 0 | I92: 0 | J92: 0 | K92: 0 | L92: 0 | M92: 0 | N92: 0 | O92: 0 | P92: 0 | Q92: 0 | R92: 0 | S92: 0 | T92: 0 | U92: 0 | V92: 0 | W92: 0 | X92: 0 | Y92: 0 | Z92: 0 | AA92: 0 | AB92: 0 | AC92: 0 | AD92: 0 | AE92: 0 | AF92: 0 | AG92: 0 | AH92: 0 | AI92: 0 | AJ92: 0 | AK92: 0 | AL92: 0 | AM92: 0 | AN92: 0 | AO92: 0 | AP92: 0 | AQ92: 0 | AR92: 0 | AS92: 0 | AT92: 0 | AU92: 0 | AV92: 0 | AW92: 0 | AX92: 0 | AY92: 0 | AZ92: 0 | BA92: 0 | BB92: 0 | BC92: 0 | BD92: 0 | BE92: =BE89-BE91 -> 0 | BF92: =BF89-BF91 -> 0 | BG92: 0 | BH92: 0 | BI92: 0 | BJ92: 0 | BK92: 0 | BL92: 0 | BM92: 0 | BN92: 0 | BO92: 0 | BP92: 0 | BQ92: 0 | BR92: 0 | BS92: 0 | BT92: 0 | BU92: 0 | BV92: 0 | BW92: 0 | BX92: 0 | BY92: 0 | BZ92: 0 | CA92: 0 | CB92: 0 | CC92: 0 | CD92: 0 | CE92: 0 | CF92: 0 | CG92: 0 | CH92: 0
B93: 2020 Depreciation | C93: (5)2021=(3)2021*Dep_ratet | D93: £m
B94: 2021 Depreciation | C94: (5)2021=(3)2021*Dep_ratet | D94: £m | H94: =$G$91/'Fixed Data'!$E$11 -> 0 | I94: =$G$91/'Fixed Data'!$E$11 -> 0 | J94: =$G$91/'Fixed Data'!$E$11 -> 0 | K94: =$G$91/'Fixed Data'!$E$11 -> 0 | L94: =$G$91/'Fixed Data'!$E$11 -> 0 | M94: =$G$91/'Fixed Data'!$E$11 -> 0 | N94: =$G$91/'Fixed Data'!$E$11 -> 0 | O94: =$G$91/'Fixed Data'!$E$11 -> 0 | P94: =$G$91/'Fixed Data'!$E$11 -> 0 | Q94: =$G$91/'Fixed Data'!$E$11 -> 0 | R94: =$G$91/'Fixed Data'!$E$11 -> 0 | S94: =$G$91/'Fixed Data'!$E$11 -> 0 | T94: =$G$91/'Fixed Data'!$E$11 -> 0 | U94: =$G$91/'Fixed Data'!$E$11 -> 0 | V94: =$G$91/'Fixed Data'!$E$11 -> 0 | W94: =$G$91/'Fixed Data'!$E$11 -> 0 | X94: =$G$91/'Fixed Data'!$E$11 -> 0 | Y94: =$G$91/'Fixed Data'!$E$11 -> 0 | Z94: =$G$91/'Fixed Data'!$E$11 -> 0 | AA94: =$G$91/'Fixed Data'!$E$11 -> 0 | AB94: =$G$91/'Fixed Data'!$E$11 -> 0 | AC94: =$G$91/'Fixed Data'!$E$11 -> 0 | AD94: =$G$91/'Fixed Data'!$E$11 -> 0 | AE94: =$G$91/'Fixed Data'!$E$11 -> 0 | AF94: =$G$91/'Fixed Data'!$E$11 -> 0 | AG94: =$G$91/'Fixed Data'!$E$11 -> 0 | AH94: =$G$91/'Fixed Data'!$E$11 -> 0 | AI94: =$G$91/'Fixed Data'!$E$11 -> 0 | AJ94: =$G$91/'Fixed Data'!$E$11 -> 0 | AK94: =$G$91/'Fixed Data'!$E$11 -> 0 | AL94: =$G$91/'Fixed Data'!$E$11 -> 0 | AM94: =$G$91/'Fixed Data'!$E$11 -> 0 | AN94: =$G$91/'Fixed Data'!$E$11 -> 0 | AO94: =$G$91/'Fixed Data'!$E$11 -> 0 | AP94: =$G$91/'Fixed Data'!$E$11 -> 0 | AQ94: =$G$91/'Fixed Data'!$E$11 -> 0 | AR94: =$G$91/'Fixed Data'!$E$11 -> 0 | AS94: =$G$91/'Fixed Data'!$E$11 -> 0 | AT94: =$G$91/'Fixed Data'!$E$11 -> 0 | AU94: =$G$91/'Fixed Data'!$E$11 -> 0 | AV94: =$G$91/'Fixed Data'!$E$11 -> 0 | AW94: =$G$91/'Fixed Data'!$E$11 -> 0 | AX94: =$G$91/'Fixed Data'!$E$11 -> 0 | AY94: =$G$91/'Fixed Data'!$E$11 -> 0 | AZ94: =$G$91/'Fixed Data'!$E$11 -> 0
B95: 2022 Depreciation | C95: (5)2022=(3)2022*Dep_ratet | D95: £m | I95: =$H$91/'Fixed Data'!$E$11 -> 0 | J95: =$H$91/'Fixed Data'!$E$11 -> 0 | K95: =$H$91/'Fixed Data'!$E$11 -> 0 | L95: =$H$91/'Fixed Data'!$E$11 -> 0 | M95: =$H$91/'Fixed Data'!$E$11 -> 0 | N95: =$H$91/'Fixed Data'!$E$11 -> 0 | O95: =$H$91/'Fixed Data'!$E$11 -> 0 | P95: =$H$91/'Fixed Data'!$E$11 -> 0 | Q95: =$H$91/'Fixed Data'!$E$11 -> 0 | R95: =$H$91/'Fixed Data'!$E$11 -> 0 | S95: =$H$91/'Fixed Data'!$E$11 -> 0 | T95: =$H$91/'Fixed Data'!$E$11 -> 0 | U95: =$H$91/'Fixed Data'!$E$11 -> 0 | V95: =$H$91/'Fixed Data'!$E$11 -> 0 | W95: =$H$91/'Fixed Data'!$E$11 -> 0 | X95: =$H$91/'Fixed Data'!$E$11 -> 0 | Y95: =$H$91/'Fixed Data'!$E$11 -> 0 | Z95: =$H$91/'Fixed Data'!$E$11 -> 0 | AA95: =$H$91/'Fixed Data'!$E$11 -> 0 | AB95: =$H$91/'Fixed Data'!$E$11 -> 0 | AC95: =$H$91/'Fixed Data'!$E$11 -> 0 | AD95: =$H$91/'Fixed Data'!$E$11 -> 0 | AE95: =$H$91/'Fixed Data'!$E$11 -> 0 | AF95: =$H$91/'Fixed Data'!$E$11 -> 0 | AG95: =$H$91/'Fixed Data'!$E$11 -> 0 | AH95: =$H$91/'Fixed Data'!$E$11 -> 0 | AI95: =$H$91/'Fixed Data'!$E$11 -> 0 | AJ95: =$H$91/'Fixed Data'!$E$11 -> 0 | AK95: =$H$91/'Fixed Data'!$E$11 -> 0 | AL95: =$H$91/'Fixed Data'!$E$11 -> 0 | AM95: =$H$91/'Fixed Data'!$E$11 -> 0 | AN95: =$H$91/'Fixed Data'!$E$11 -> 0 | AO95: =$H$91/'Fixed Data'!$E$11 -> 0 | AP95: =$H$91/'Fixed Data'!$E$11 -> 0 | AQ95: =$H$91/'Fixed Data'!$E$11 -> 0 | AR95: =$H$91/'Fixed Data'!$E$11 -> 0 | AS95: =$H$91/'Fixed Data'!$E$11 -> 0 | AT95: =$H$91/'Fixed Data'!$E$11 -> 0 | AU95: =$H$91/'Fixed Data'!$E$11 -> 0 | AV95: =$H$91/'Fixed Data'!$E$11 -> 0 | AW95: =$H$91/'Fixed Data'!$E$11 -> 0 | AX95: =$H$91/'Fixed Data'!$E$11 -> 0 | AY95: =$H$91/'Fixed Data'!$E$11 -> 0 | AZ95: =$H$91/'Fixed Data'!$E$11 -> 0 | BA95: =$H$91/'Fixed Data'!$E$11 -> 0
B96: 2023 Depreciation | C96: (5)2023=(3)2023*Dep_ratet | D96: £m | J96: =$I$91/'Fixed Data'!$E$11 -> 0 | K96: =$I$91/'Fixed Data'!$E$11 -> 0 | L96: =$I$91/'Fixed Data'!$E$11 -> 0 | M96: =$I$91/'Fixed Data'!$E$11 -> 0 | N96: =$I$91/'Fixed Data'!$E$11 -> 0 | O96: =$I$91/'Fixed Data'!$E$11 -> 0 | P96: =$I$91/'Fixed Data'!$E$11 -> 0 | Q96: =$I$91/'Fixed Data'!$E$11 -> 0 | R96: =$I$91/'Fixed Data'!$E$11 -> 0 | S96: =$I$91/'Fixed Data'!$E$11 -> 0 | T96: =$I$91/'Fixed Data'!$E$11 -> 0 | U96: =$I$91/'Fixed Data'!$E$11 -> 0 | V96: =$I$91/'Fixed Data'!$E$11 -> 0 | W96: =$I$91/'Fixed Data'!$E$11 -> 0 | X96: =$I$91/'Fixed Data'!$E$11 -> 0 | Y96: =$I$91/'Fixed Data'!$E$11 -> 0 | Z96: =$I$91/'Fixed Data'!$E$11 -> 0 | AA96: =$I$91/'Fixed Data'!$E$11 -> 0 | AB96: =$I$91/'Fixed Data'!$E$11 -> 0 | AC96: =$I$91/'Fixed Data'!$E$11 -> 0 | AD96: =$I$91/'Fixed Data'!$E$11 -> 0 | AE96: =$I$91/'Fixed Data'!$E$11 -> 0 | AF96: =$I$91/'Fixed Data'!$E$11 -> 0 | AG96: =$I$91/'Fixed Data'!$E$11 -> 0 | AH96: =$I$91/'Fixed Data'!$E$11 -> 0 | AI96: =$I$91/'Fixed Data'!$E$11 -> 0 | AJ96: =$I$91/'Fixed Data'!$E$11 -> 0 | AK96: =$I$91/'Fixed Data'!$E$11 -> 0 | AL96: =$I$91/'Fixed Data'!$E$11 -> 0 | AM96: =$I$91/'Fixed Data'!$E$11 -> 0 | AN96: =$I$91/'Fixed Data'!$E$11 -> 0 | AO96: =$I$91/'Fixed Data'!$E$11 -> 0 | AP96: =$I$91/'Fixed Data'!$E$11 -> 0 | AQ96: =$I$91/'Fixed Data'!$E$11 -> 0 | AR96: =$I$91/'Fixed Data'!$E$11 -> 0 | AS96: =$I$91/'Fixed Data'!$E$11 -> 0 | AT96: =$I$91/'Fixed Data'!$E$11 -> 0 | AU96: =$I$91/'Fixed Data'!$E$11 -> 0 | AV96: =$I$91/'Fixed Data'!$E$11 -> 0 | AW96: =$I$91/'Fixed Data'!$E$11 -> 0 | AX96: =$I$91/'Fixed Data'!$E$11 -> 0 | AY96: =$I$91/'Fixed Data'!$E$11 -> 0 | AZ96: =$I$91/'Fixed Data'!$E$11 -> 0 | BA96: =$I$91/'Fixed Data'!$E$11 -> 0 | BB96: =$I$91/'Fixed Data'!$E$11 -> 0
B97: 2024 Depreciation | C97: (5)2024=(3)2024*Dep_ratet | D97: £m | K97: =$J$91/'Fixed Data'!$E$11 -> 0 | L97: =$J$91/'Fixed Data'!$E$11 -> 0 | M97: =$J$91/'Fixed Data'!$E$11 -> 0 | N97: =$J$91/'Fixed Data'!$E$11 -> 0 | O97: =$J$91/'Fixed Data'!$E$11 -> 0 | P97: =$J$91/'Fixed Data'!$E$11 -> 0 | Q97: =$J$91/'Fixed Data'!$E$11 -> 0 | R97: =$J$91/'Fixed Data'!$E$11 -> 0 | S97: =$J$91/'Fixed Data'!$E$11 -> 0 | T97: =$J$91/'Fixed Data'!$E$11 -> 0 | U97: =$J$91/'Fixed Data'!$E$11 -> 0 | V97: =$J$91/'Fixed Data'!$E$11 -> 0 | W97: =$J$91/'Fixed Data'!$E$11 -> 0 | X97: =$J$91/'Fixed Data'!$E$11 -> 0 | Y97: =$J$91/'Fixed Data'!$E$11 -> 0 | Z97: =$J$91/'Fixed Data'!$E$11 -> 0 | AA97: =$J$91/'Fixed Data'!$E$11 -> 0 | AB97: =$J$91/'Fixed Data'!$E$11 -> 0 | AC97: =$J$91/'Fixed Data'!$E$11 -> 0 | AD97: =$J$91/'Fixed Data'!$E$11 -> 0 | AE97: =$J$91/'Fixed Data'!$E$11 -> 0 | AF97: =$J$91/'Fixed Data'!$E$11 -> 0 | AG97: =$J$91/'Fixed Data'!$E$11 -> 0 | AH97: =$J$91/'Fixed Data'!$E$11 -> 0 | AI97: =$J$91/'Fixed Data'!$E$11 -> 0 | AJ97: =$J$91/'Fixed Data'!$E$11 -> 0 | AK97: =$J$91/'Fixed Data'!$E$11 -> 0 | AL97: =$J$91/'Fixed Data'!$E$11 -> 0 | AM97: =$J$91/'Fixed Data'!$E$11 -> 0 | AN97: =$J$91/'Fixed Data'!$E$11 -> 0 | AO97: =$J$91/'Fixed Data'!$E$11 -> 0 | AP97: =$J$91/'Fixed Data'!$E$11 -> 0 | AQ97: =$J$91/'Fixed Data'!$E$11 -> 0 | AR97: =$J$91/'Fixed Data'!$E$11 -> 0 | AS97: =$J$91/'Fixed Data'!$E$11 -> 0 | AT97: =$J$91/'Fixed Data'!$E$11 -> 0 | AU97: =$J$91/'Fixed Data'!$E$11 -> 0 | AV97: =$J$91/'Fixed Data'!$E$11 -> 0 | AW97: =$J$91/'Fixed Data'!$E$11 -> 0 | AX97: =$J$91/'Fixed Data'!$E$11 -> 0 | AY97: =$J$91/'Fixed Data'!$E$11 -> 0 | AZ97: =$J$91/'Fixed Data'!$E$11 -> 0 | BA97: =$J$91/'Fixed Data'!$E$11 -> 0 | BB97: =$J$91/'Fixed Data'!$E$11 -> 0 | BC97: =$J$91/'Fixed Data'!$E$11 -> 0
B98: 2025 Depreciation | C98: (5)2025=(3)2025*Dep_ratet | D98: £m | L98: =$K$91/'Fixed Data'!$E$11 -> 0 | M98: =$K$91/'Fixed Data'!$E$11 -> 0 | N98: =$K$91/'Fixed Data'!$E$11 -> 0 | O98: =$K$91/'Fixed Data'!$E$11 -> 0 | P98: =$K$91/'Fixed Data'!$E$11 -> 0 | Q98: =$K$91/'Fixed Data'!$E$11 -> 0 | R98: =$K$91/'Fixed Data'!$E$11 -> 0 | S98: =$K$91/'Fixed Data'!$E$11 -> 0 | T98: =$K$91/'Fixed Data'!$E$11 -> 0 | U98: =$K$91/'Fixed Data'!$E$11 -> 0 | V98: =$K$91/'Fixed Data'!$E$11 -> 0 | W98: =$K$91/'Fixed Data'!$E$11 -> 0 | X98: =$K$91/'Fixed Data'!$E$11 -> 0 | Y98: =$K$91/'Fixed Data'!$E$11 -> 0 | Z98: =$K$91/'Fixed Data'!$E$11 -> 0 | AA98: =$K$91/'Fixed Data'!$E$11 -> 0 | AB98: =$K$91/'Fixed Data'!$E$11 -> 0 | AC98: =$K$91/'Fixed Data'!$E$11 -> 0 | AD98: =$K$91/'Fixed Data'!$E$11 -> 0 | AE98: =$K$91/'Fixed Data'!$E$11 -> 0 | AF98: =$K$91/'Fixed Data'!$E$11 -> 0 | AG98: =$K$91/'Fixed Data'!$E$11 -> 0 | AH98: =$K$91/'Fixed Data'!$E$11 -> 0 | AI98: =$K$91/'Fixed Data'!$E$11 -> 0 | AJ98: =$K$91/'Fixed Data'!$E$11 -> 0 | AK98: =$K$91/'Fixed Data'!$E$11 -> 0 | AL98: =$K$91/'Fixed Data'!$E$11 -> 0 | AM98: =$K$91/'Fixed Data'!$E$11 -> 0 | AN98: =$K$91/'Fixed Data'!$E$11 -> 0 | AO98: =$K$91/'Fixed Data'!$E$11 -> 0 | AP98: =$K$91/'Fixed Data'!$E$11 -> 0 | AQ98: =$K$91/'Fixed Data'!$E$11 -> 0 | AR98: =$K$91/'Fixed Data'!$E$11 -> 0 | AS98: =$K$91/'Fixed Data'!$E$11 -> 0 | AT98: =$K$91/'Fixed Data'!$E$11 -> 0 | AU98: =$K$91/'Fixed Data'!$E$11 -> 0 | AV98: =$K$91/'Fixed Data'!$E$11 -> 0 | AW98: =$K$91/'Fixed Data'!$E$11 -> 0 | AX98: =$K$91/'Fixed Data'!$E$11 -> 0 | AY98: =$K$91/'Fixed Data'!$E$11 -> 0 | AZ98: =$K$91/'Fixed Data'!$E$11 -> 0 | BA98: =$K$91/'Fixed Data'!$E$11 -> 0 | BB98: =$K$91/'Fixed Data'!$E$11 -> 0 | BC98: =$K$91/'Fixed Data'!$E$11 -> 0 | BD98: =$K$91/'Fixed Data'!$E$11 -> 0
B99: 2026 Depreciation | C99: (5)2026=(3)2026*Dep_ratet | D99: £m | M99: =$L$91/'Fixed Data'!$E$11 -> 0 | N99: =$L$91/'Fixed Data'!$E$11 -> 0 | O99: =$L$91/'Fixed Data'!$E$11 -> 0 | P99: =$L$91/'Fixed Data'!$E$11 -> 0 | Q99: =$L$91/'Fixed Data'!$E$11 -> 0 | R99: =$L$91/'Fixed Data'!$E$11 -> 0 | S99: =$L$91/'Fixed Data'!$E$11 -> 0 | T99: =$L$91/'Fixed Data'!$E$11 -> 0 | U99: =$L$91/'Fixed Data'!$E$11 -> 0 | V99: =$L$91/'Fixed Data'!$E$11 -> 0 | W99: =$L$91/'Fixed Data'!$E$11 -> 0 | X99: =$L$91/'Fixed Data'!$E$11 -> 0 | Y99: =$L$91/'Fixed Data'!$E$11 -> 0 | Z99: =$L$91/'Fixed Data'!$E$11 -> 0 | AA99: =$L$91/'Fixed Data'!$E$11 -> 0 | AB99: =$L$91/'Fixed Data'!$E$11 -> 0 | AC99: =$L$91/'Fixed Data'!$E$11 -> 0 | AD99: =$L$91/'Fixed Data'!$E$11 -> 0 | AE99: =$L$91/'Fixed Data'!$E$11 -> 0 | AF99: =$L$91/'Fixed Data'!$E$11 -> 0 | AG99: =$L$91/'Fixed Data'!$E$11 -> 0 | AH99: =$L$91/'Fixed Data'!$E$11 -> 0 | AI99: =$L$91/'Fixed Data'!$E$11 -> 0 | AJ99: =$L$91/'Fixed Data'!$E$11 -> 0 | AK99: =$L$91/'Fixed Data'!$E$11 -> 0 | AL99: =$L$91/'Fixed Data'!$E$11 -> 0 | AM99: =$L$91/'Fixed Data'!$E$11 -> 0 | AN99: =$L$91/'Fixed Data'!$E$11 -> 0 | AO99: =$L$91/'Fixed Data'!$E$11 -> 0 | AP99: =$L$91/'Fixed Data'!$E$11 -> 0 | AQ99: =$L$91/'Fixed Data'!$E$11 -> 0 | AR99: =$L$91/'Fixed Data'!$E$11 -> 0 | AS99: =$L$91/'Fixed Data'!$E$11 -> 0 | AT99: =$L$91/'Fixed Data'!$E$11 -> 0 | AU99: =$L$91/'Fixed Data'!$E$11 -> 0 | AV99: =$L$91/'Fixed Data'!$E$11 -> 0 | AW99: =$L$91/'Fixed Data'!$E$11 -> 0 | AX99: =$L$91/'Fixed Data'!$E$11 -> 0 | AY99: =$L$91/'Fixed Data'!$E$11 -> 0 | AZ99: =$L$91/'Fixed Data'!$E$11 -> 0 | BA99: =$L$91/'Fixed Data'!$E$11 -> 0 | BB99: =$L$91/'Fixed Data'!$E$11 -> 0 | BC99: =$L$91/'Fixed Data'!$E$11 -> 0 | BD99: =$L$91/'Fixed Data'!$E$11 -> 0 | BE99: =$L$91/'Fixed Data'!$E$11 -> 0
B100: 2027 Depreciation | C100: (5)2027=(3)2027*Dep_ratet | D100: £m | N100: =$M$91/'Fixed Data'!$E$11 -> 0 | O100: =$M$91/'Fixed Data'!$E$11 -> 0 | P100: =$M$91/'Fixed Data'!$E$11 -> 0 | Q100: =$M$91/'Fixed Data'!$E$11 -> 0 | R100: =$M$91/'Fixed Data'!$E$11 -> 0 | S100: =$M$91/'Fixed Data'!$E$11 -> 0 | T100: =$M$91/'Fixed Data'!$E$11 -> 0 | U100: =$M$91/'Fixed Data'!$E$11 -> 0 | V100: =$M$91/'Fixed Data'!$E$11 -> 0 | W100: =$M$91/'Fixed Data'!$E$11 -> 0 | X100: =$M$91/'Fixed Data'!$E$11 -> 0 | Y100: =$M$91/'Fixed Data'!$E$11 -> 0 | Z100: =$M$91/'Fixed Data'!$E$11 -> 0 | AA100: =$M$91/'Fixed Data'!$E$11 -> 0 | AB100: =$M$91/'Fixed Data'!$E$11 -> 0 | AC100: =$M$91/'Fixed Data'!$E$11 -> 0 | AD100: =$M$91/'Fixed Data'!$E$11 -> 0 | AE100: =$M$91/'Fixed Data'!$E$11 -> 0 | AF100: =$M$91/'Fixed Data'!$E$11 -> 0 | AG100: =$M$91/'Fixed Data'!$E$11 -> 0 | AH100: =$M$91/'Fixed Data'!$E$11 -> 0 | AI100: =$M$91/'Fixed Data'!$E$11 -> 0 | AJ100: =$M$91/'Fixed Data'!$E$11 -> 0 | AK100: =$M$91/'Fixed Data'!$E$11 -> 0 | AL100: =$M$91/'Fixed Data'!$E$11 -> 0 | AM100: =$M$91/'Fixed Data'!$E$11 -> 0 | AN100: =$M$91/'Fixed Data'!$E$11 -> 0 | AO100: =$M$91/'Fixed Data'!$E$11 -> 0 | AP100: =$M$91/'Fixed Data'!$E$11 -> 0 | AQ100: =$M$91/'Fixed Data'!$E$11 -> 0 | AR100: =$M$91/'Fixed Data'!$E$11 -> 0 | AS100: =$M$91/'Fixed Data'!$E$11 -> 0 | AT100: =$M$91/'Fixed Data'!$E$11 -> 0 | AU100: =$M$91/'Fixed Data'!$E$11 -> 0 | AV100: =$M$91/'Fixed Data'!$E$11 -> 0 | AW100: =$M$91/'Fixed Data'!$E$11 -> 0 | AX100: =$M$91/'Fixed Data'!$E$11 -> 0 | AY100: =$M$91/'Fixed Data'!$E$11 -> 0 | AZ100: =$M$91/'Fixed Data'!$E$11 -> 0 | BA100: =$M$91/'Fixed Data'!$E$11 -> 0 | BB100: =$M$91/'Fixed Data'!$E$11 -> 0 | BC100: =$M$91/'Fixed Data'!$E$11 -> 0 | BD100: =$M$91/'Fixed Data'!$E$11 -> 0 | BE100: =$M$91/'Fixed Data'!$E$11 -> 0 | BF100: =$M$91/'Fixed Data'!$E$11 -> 0
B101: 2028 Depreciation | C101: (5)2028=(3)2028*Dep_ratet | D101: £m | O101: =$N$91/'Fixed Data'!$E$11 -> 0 | P101: =$N$91/'Fixed Data'!$E$11 -> 0 | Q101: =$N$91/'Fixed Data'!$E$11 -> 0 | R101: =$N$91/'Fixed Data'!$E$11 -> 0 | S101: =$N$91/'Fixed Data'!$E$11 -> 0 | T101: =$N$91/'Fixed Data'!$E$11 -> 0 | U101: =$N$91/'Fixed Data'!$E$11 -> 0 | V101: =$N$91/'Fixed Data'!$E$11 -> 0 | W101: =$N$91/'Fixed Data'!$E$11 -> 0 | X101: =$N$91/'Fixed Data'!$E$11 -> 0 | Y101: =$N$91/'Fixed Data'!$E$11 -> 0 | Z101: =$N$91/'Fixed Data'!$E$11 -> 0 | AA101: =$N$91/'Fixed Data'!$E$11 -> 0 | AB101: =$N$91/'Fixed Data'!$E$11 -> 0 | AC101: =$N$91/'Fixed Data'!$E$11 -> 0 | AD101: =$N$91/'Fixed Data'!$E$11 -> 0 | AE101: =$N$91/'Fixed Data'!$E$11 -> 0 | AF101: =$N$91/'Fixed Data'!$E$11 -> 0 | AG101: =$N$91/'Fixed Data'!$E$11 -> 0 | AH101: =$N$91/'Fixed Data'!$E$11 -> 0 | AI101: =$N$91/'Fixed Data'!$E$11 -> 0 | AJ101: =$N$91/'Fixed Data'!$E$11 -> 0 | AK101: =$N$91/'Fixed Data'!$E$11 -> 0 | AL101: =$N$91/'Fixed Data'!$E$11 -> 0 | AM101: =$N$91/'Fixed Data'!$E$11 -> 0 | AN101: =$N$91/'Fixed Data'!$E$11 -> 0 | AO101: =$N$91/'Fixed Data'!$E$11 -> 0 | AP101: =$N$91/'Fixed Data'!$E$11 -> 0 | AQ101: =$N$91/'Fixed Data'!$E$11 -> 0 | AR101: =$N$91/'Fixed Data'!$E$11 -> 0 | AS101: =$N$91/'Fixed Data'!$E$11 -> 0 | AT101: =$N$91/'Fixed Data'!$E$11 -> 0 | AU101: =$N$91/'Fixed Data'!$E$11 -> 0 | AV101: =$N$91/'Fixed Data'!$E$11 -> 0 | AW101: =$N$91/'Fixed Data'!$E$11 -> 0 | AX101: =$N$91/'Fixed Data'!$E$11 -> 0 | AY101: =$N$91/'Fixed Data'!$E$11 -> 0 | AZ101: =$N$91/'Fixed Data'!$E$11 -> 0 | BA101: =$N$91/'Fixed Data'!$E$11 -> 0 | BB101: =$N$91/'Fixed Data'!$E$11 -> 0 | BC101: =$N$91/'Fixed Data'!$E$11 -> 0 | BD101: =$N$91/'Fixed Data'!$E$11 -> 0 | BE101: =$N$91/'Fixed Data'!$E$11 -> 0 | BF101: =$N$91/'Fixed Data'!$E$11 -> 0 | BG101: =$N$91/'Fixed Data'!$E$11 -> 0
B102: 2029 Depreciation | C102: (5)2029=(3)2029*Dep_ratet | D102: £m | P102: =$O$91/'Fixed Data'!$E$11 -> 0 | Q102: =$O$91/'Fixed Data'!$E$11 -> 0 | R102: =$O$91/'Fixed Data'!$E$11 -> 0 | S102: =$O$91/'Fixed Data'!$E$11 -> 0 | T102: =$O$91/'Fixed Data'!$E$11 -> 0 | U102: =$O$91/'Fixed Data'!$E$11 -> 0 | V102: =$O$91/'Fixed Data'!$E$11 -> 0 | W102: =$O$91/'Fixed Data'!$E$11 -> 0 | X102: =$O$91/'Fixed Data'!$E$11 -> 0 | Y102: =$O$91/'Fixed Data'!$E$11 -> 0 | Z102: =$O$91/'Fixed Data'!$E$11 -> 0 | AA102: =$O$91/'Fixed Data'!$E$11 -> 0 | AB102: =$O$91/'Fixed Data'!$E$11 -> 0 | AC102: =$O$91/'Fixed Data'!$E$11 -> 0 | AD102: =$O$91/'Fixed Data'!$E$11 -> 0 | AE102: =$O$91/'Fixed Data'!$E$11 -> 0 | AF102: =$O$91/'Fixed Data'!$E$11 -> 0 | AG102: =$O$91/'Fixed Data'!$E$11 -> 0 | AH102: =$O$91/'Fixed Data'!$E$11 -> 0 | AI102: =$O$91/'Fixed Data'!$E$11 -> 0 | AJ102: =$O$91/'Fixed Data'!$E$11 -> 0 | AK102: =$O$91/'Fixed Data'!$E$11 -> 0 | AL102: =$O$91/'Fixed Data'!$E$11 -> 0 | AM102: =$O$91/'Fixed Data'!$E$11 -> 0 | AN102: =$O$91/'Fixed Data'!$E$11 -> 0 | AO102: =$O$91/'Fixed Data'!$E$11 -> 0 | AP102: =$O$91/'Fixed Data'!$E$11 -> 0 | AQ102: =$O$91/'Fixed Data'!$E$11 -> 0 | AR102: =$O$91/'Fixed Data'!$E$11 -> 0 | AS102: =$O$91/'Fixed Data'!$E$11 -> 0 | AT102: =$O$91/'Fixed Data'!$E$11 -> 0 | AU102: =$O$91/'Fixed Data'!$E$11 -> 0 | AV102: =$O$91/'Fixed Data'!$E$11 -> 0 | AW102: =$O$91/'Fixed Data'!$E$11 -> 0 | AX102: =$O$91/'Fixed Data'!$E$11 -> 0 | AY102: =$O$91/'Fixed Data'!$E$11 -> 0 | AZ102: =$O$91/'Fixed Data'!$E$11 -> 0 | BA102: =$O$91/'Fixed Data'!$E$11 -> 0 | BB102: =$O$91/'Fixed Data'!$E$11 -> 0 | BC102: =$O$91/'Fixed Data'!$E$11 -> 0 | BD102: =$O$91/'Fixed Data'!$E$11 -> 0 | BE102: =$O$91/'Fixed Data'!$E$11 -> 0 | BF102: =$O$91/'Fixed Data'!$E$11 -> 0 | BG102: =$O$91/'Fixed Data'!$E$11 -> 0 | BH102: =$O$91/'Fixed Data'!$E$11 -> 0
B103: 2030 Depreciation | C103: (5)2030=(3)2030*Dep_ratet | D103: £m | Q103: =$P$91/'Fixed Data'!$E$11 -> 0 | R103: =$P$91/'Fixed Data'!$E$11 -> 0 | S103: =$P$91/'Fixed Data'!$E$11 -> 0 | T103: =$P$91/'Fixed Data'!$E$11 -> 0 | U103: =$P$91/'Fixed Data'!$E$11 -> 0 | V103: =$P$91/'Fixed Data'!$E$11 -> 0 | W103: =$P$91/'Fixed Data'!$E$11 -> 0 | X103: =$P$91/'Fixed Data'!$E$11 -> 0 | Y103: =$P$91/'Fixed Data'!$E$11 -> 0 | Z103: =$P$91/'Fixed Data'!$E$11 -> 0 | AA103: =$P$91/'Fixed Data'!$E$11 -> 0 | AB103: =$P$91/'Fixed Data'!$E$11 -> 0 | AC103: =$P$91/'Fixed Data'!$E$11 -> 0 | AD103: =$P$91/'Fixed Data'!$E$11 -> 0 | AE103: =$P$91/'Fixed Data'!$E$11 -> 0 | AF103: =$P$91/'Fixed Data'!$E$11 -> 0 | AG103: =$P$91/'Fixed Data'!$E$11 -> 0 | AH103: =$P$91/'Fixed Data'!$E$11 -> 0 | AI103: =$P$91/'Fixed Data'!$E$11 -> 0 | AJ103: =$P$91/'Fixed Data'!$E$11 -> 0 | AK103: =$P$91/'Fixed Data'!$E$11 -> 0 | AL103: =$P$91/'Fixed Data'!$E$11 -> 0 | AM103: =$P$91/'Fixed Data'!$E$11 -> 0 | AN103: =$P$91/'Fixed Data'!$E$11 -> 0 | AO103: =$P$91/'Fixed Data'!$E$11 -> 0 | AP103: =$P$91/'Fixed Data'!$E$11 -> 0 | AQ103: =$P$91/'Fixed Data'!$E$11 -> 0 | AR103: =$P$91/'Fixed Data'!$E$11 -> 0 | AS103: =$P$91/'Fixed Data'!$E$11 -> 0 | AT103: =$P$91/'Fixed Data'!$E$11 -> 0 | AU103: =$P$91/'Fixed Data'!$E$11 -> 0 | AV103: =$P$91/'Fixed Data'!$E$11 -> 0 | AW103: =$P$91/'Fixed Data'!$E$11 -> 0 | AX103: =$P$91/'Fixed Data'!$E$11 -> 0 | AY103: =$P$91/'Fixed Data'!$E$11 -> 0 | AZ103: =$P$91/'Fixed Data'!$E$11 -> 0 | BA103: =$P$91/'Fixed Data'!$E$11 -> 0 | BB103: =$P$91/'Fixed Data'!$E$11 -> 0 | BC103: =$P$91/'Fixed Data'!$E$11 -> 0 | BD103: =$P$91/'Fixed Data'!$E$11 -> 0 | BE103: =$P$91/'Fixed Data'!$E$11 -> 0 | BF103: =$P$91/'Fixed Data'!$E$11 -> 0 | BG103: =$P$91/'Fixed Data'!$E$11 -> 0 | BH103: =$P$91/'Fixed Data'!$E$11 -> 0 | BI103: =$P$91/'Fixed Data'!$E$11 -> 0
B104: 2031 Depreciation | C104: (5)2031=(3)2031*Dep_ratet | D104: £m | R104: =$Q$91/'Fixed Data'!$E$11 -> 0 | S104: =$Q$91/'Fixed Data'!$E$11 -> 0 | T104: =$Q$91/'Fixed Data'!$E$11 -> 0 | U104: =$Q$91/'Fixed Data'!$E$11 -> 0 | V104: =$Q$91/'Fixed Data'!$E$11 -> 0 | W104: =$Q$91/'Fixed Data'!$E$11 -> 0 | X104: =$Q$91/'Fixed Data'!$E$11 -> 0 | Y104: =$Q$91/'Fixed Data'!$E$11 -> 0 | Z104: =$Q$91/'Fixed Data'!$E$11 -> 0 | AA104: =$Q$91/'Fixed Data'!$E$11 -> 0 | AB104: =$Q$91/'Fixed Data'!$E$11 -> 0 | AC104: =$Q$91/'Fixed Data'!$E$11 -> 0 | AD104: =$Q$91/'Fixed Data'!$E$11 -> 0 | AE104: =$Q$91/'Fixed Data'!$E$11 -> 0 | AF104: =$Q$91/'Fixed Data'!$E$11 -> 0 | AG104: =$Q$91/'Fixed Data'!$E$11 -> 0 | AH104: =$Q$91/'Fixed Data'!$E$11 -> 0 | AI104: =$Q$91/'Fixed Data'!$E$11 -> 0 | AJ104: =$Q$91/'Fixed Data'!$E$11 -> 0 | AK104: =$Q$91/'Fixed Data'!$E$11 -> 0 | AL104: =$Q$91/'Fixed Data'!$E$11 -> 0 | AM104: =$Q$91/'Fixed Data'!$E$11 -> 0 | AN104: =$Q$91/'Fixed Data'!$E$11 -> 0 | AO104: =$Q$91/'Fixed Data'!$E$11 -> 0 | AP104: =$Q$91/'Fixed Data'!$E$11 -> 0 | AQ104: =$Q$91/'Fixed Data'!$E$11 -> 0 | AR104: =$Q$91/'Fixed Data'!$E$11 -> 0 | AS104: =$Q$91/'Fixed Data'!$E$11 -> 0 | AT104: =$Q$91/'Fixed Data'!$E$11 -> 0 | AU104: =$Q$91/'Fixed Data'!$E$11 -> 0 | AV104: =$Q$91/'Fixed Data'!$E$11 -> 0 | AW104: =$Q$91/'Fixed Data'!$E$11 -> 0 | AX104: =$Q$91/'Fixed Data'!$E$11 -> 0 | AY104: =$Q$91/'Fixed Data'!$E$11 -> 0 | AZ104: =$Q$91/'Fixed Data'!$E$11 -> 0 | BA104: =$Q$91/'Fixed Data'!$E$11 -> 0 | BB104: =$Q$91/'Fixed Data'!$E$11 -> 0 | BC104: =$Q$91/'Fixed Data'!$E$11 -> 0 | BD104: =$Q$91/'Fixed Data'!$E$11 -> 0 | BE104: =$Q$91/'Fixed Data'!$E$11 -> 0 | BF104: =$Q$91/'Fixed Data'!$E$11 -> 0 | BG104: =$Q$91/'Fixed Data'!$E$11 -> 0 | BH104: =$Q$91/'Fixed Data'!$E$11 -> 0 | BI104: =$Q$91/'Fixed Data'!$E$11 -> 0 | BJ104: =$Q$91/'Fixed Data'!$E$11 -> 0
B105: 2032 Depreciation | C105: (5)2032=(3)2032*Dep_ratet | D105: £m | S105: =$R$91/'Fixed Data'!$E$11 -> 0 | T105: =$R$91/'Fixed Data'!$E$11 -> 0 | U105: =$R$91/'Fixed Data'!$E$11 -> 0 | V105: =$R$91/'Fixed Data'!$E$11 -> 0 | W105: =$R$91/'Fixed Data'!$E$11 -> 0 | X105: =$R$91/'Fixed Data'!$E$11 -> 0 | Y105: =$R$91/'Fixed Data'!$E$11 -> 0 | Z105: =$R$91/'Fixed Data'!$E$11 -> 0 | AA105: =$R$91/'Fixed Data'!$E$11 -> 0 | AB105: =$R$91/'Fixed Data'!$E$11 -> 0 | AC105: =$R$91/'Fixed Data'!$E$11 -> 0 | AD105: =$R$91/'Fixed Data'!$E$11 -> 0 | AE105: =$R$91/'Fixed Data'!$E$11 -> 0 | AF105: =$R$91/'Fixed Data'!$E$11 -> 0 | AG105: =$R$91/'Fixed Data'!$E$11 -> 0 | AH105: =$R$91/'Fixed Data'!$E$11 -> 0 | AI105: =$R$91/'Fixed Data'!$E$11 -> 0 | AJ105: =$R$91/'Fixed Data'!$E$11 -> 0 | AK105: =$R$91/'Fixed Data'!$E$11 -> 0 | AL105: =$R$91/'Fixed Data'!$E$11 -> 0 | AM105: =$R$91/'Fixed Data'!$E$11 -> 0 | AN105: =$R$91/'Fixed Data'!$E$11 -> 0 | AO105: =$R$91/'Fixed Data'!$E$11 -> 0 | AP105: =$R$91/'Fixed Data'!$E$11 -> 0 | AQ105: =$R$91/'Fixed Data'!$E$11 -> 0 | AR105: =$R$91/'Fixed Data'!$E$11 -> 0 | AS105: =$R$91/'Fixed Data'!$E$11 -> 0 | AT105: =$R$91/'Fixed Data'!$E$11 -> 0 | AU105: =$R$91/'Fixed Data'!$E$11 -> 0 | AV105: =$R$91/'Fixed Data'!$E$11 -> 0 | AW105: =$R$91/'Fixed Data'!$E$11 -> 0 | AX105: =$R$91/'Fixed Data'!$E$11 -> 0 | AY105: =$R$91/'Fixed Data'!$E$11 -> 0 | AZ105: =$R$91/'Fixed Data'!$E$11 -> 0 | BA105: =$R$91/'Fixed Data'!$E$11 -> 0 | BB105: =$R$91/'Fixed Data'!$E$11 -> 0 | BC105: =$R$91/'Fixed Data'!$E$11 -> 0 | BD105: =$R$91/'Fixed Data'!$E$11 -> 0 | BE105: =$R$91/'Fixed Data'!$E$11 -> 0 | BF105: =$R$91/'Fixed Data'!$E$11 -> 0 | BG105: =$R$91/'Fixed Data'!$E$11 -> 0 | BH105: =$R$91/'Fixed Data'!$E$11 -> 0 | BI105: =$R$91/'Fixed Data'!$E$11 -> 0 | BJ105: =$R$91/'Fixed Data'!$E$11 -> 0 | BK105: =$R$91/'Fixed Data'!$E$11 -> 0
B106: 2033 Depreciation | C106: (5)2033=(3)2033*Dep_ratet | D106: £m | T106: =$S$91/'Fixed Data'!$E$11 -> 0 | U106: =$S$91/'Fixed Data'!$E$11 -> 0 | V106: =$S$91/'Fixed Data'!$E$11 -> 0 | W106: =$S$91/'Fixed Data'!$E$11 -> 0 | X106: =$S$91/'Fixed Data'!$E$11 -> 0 | Y106: =$S$91/'Fixed Data'!$E$11 -> 0 | Z106: =$S$91/'Fixed Data'!$E$11 -> 0 | AA106: =$S$91/'Fixed Data'!$E$11 -> 0 | AB106: =$S$91/'Fixed Data'!$E$11 -> 0 | AC106: =$S$91/'Fixed Data'!$E$11 -> 0 | AD106: =$S$91/'Fixed Data'!$E$11 -> 0 | AE106: =$S$91/'Fixed Data'!$E$11 -> 0 | AF106: =$S$91/'Fixed Data'!$E$11 -> 0 | AG106: =$S$91/'Fixed Data'!$E$11 -> 0 | AH106: =$S$91/'Fixed Data'!$E$11 -> 0 | AI106: =$S$91/'Fixed Data'!$E$11 -> 0 | AJ106: =$S$91/'Fixed Data'!$E$11 -> 0 | AK106: =$S$91/'Fixed Data'!$E$11 -> 0 | AL106: =$S$91/'Fixed Data'!$E$11 -> 0 | AM106: =$S$91/'Fixed Data'!$E$11 -> 0 | AN106: =$S$91/'Fixed Data'!$E$11 -> 0 | AO106: =$S$91/'Fixed Data'!$E$11 -> 0 | AP106: =$S$91/'Fixed Data'!$E$11 -> 0 | AQ106: =$S$91/'Fixed Data'!$E$11 -> 0 | AR106: =$S$91/'Fixed Data'!$E$11 -> 0 | AS106: =$S$91/'Fixed Data'!$E$11 -> 0 | AT106: =$S$91/'Fixed Data'!$E$11 -> 0 | AU106: =$S$91/'Fixed Data'!$E$11 -> 0 | AV106: =$S$91/'Fixed Data'!$E$11 -> 0 | AW106: =$S$91/'Fixed Data'!$E$11 -> 0 | AX106: =$S$91/'Fixed Data'!$E$11 -> 0 | AY106: =$S$91/'Fixed Data'!$E$11 -> 0 | AZ106: =$S$91/'Fixed Data'!$E$11 -> 0 | BA106: =$S$91/'Fixed Data'!$E$11 -> 0 | BB106: =$S$91/'Fixed Data'!$E$11 -> 0 | BC106: =$S$91/'Fixed Data'!$E$11 -> 0 | BD106: =$S$91/'Fixed Data'!$E$11 -> 0 | BE106: =$S$91/'Fixed Data'!$E$11 -> 0 | BF106: =$S$91/'Fixed Data'!$E$11 -> 0 | BG106: =$S$91/'Fixed Data'!$E$11 -> 0 | BH106: =$S$91/'Fixed Data'!$E$11 -> 0 | BI106: =$S$91/'Fixed Data'!$E$11 -> 0 | BJ106: =$S$91/'Fixed Data'!$E$11 -> 0 | BK106: =$S$91/'Fixed Data'!$E$11 -> 0 | BL106: =$S$91/'Fixed Data'!$E$11 -> 0
B107: 2034 Depreciation | C107: (5)2034=(3)2034*Dep_ratet | D107: £m | U107: =$T$91/'Fixed Data'!$E$11 -> 0 | V107: =$T$91/'Fixed Data'!$E$11 -> 0 | W107: =$T$91/'Fixed Data'!$E$11 -> 0 | X107: =$T$91/'Fixed Data'!$E$11 -> 0 | Y107: =$T$91/'Fixed Data'!$E$11 -> 0 | Z107: =$T$91/'Fixed Data'!$E$11 -> 0 | AA107: =$T$91/'Fixed Data'!$E$11 -> 0 | AB107: =$T$91/'Fixed Data'!$E$11 -> 0 | AC107: =$T$91/'Fixed Data'!$E$11 -> 0 | AD107: =$T$91/'Fixed Data'!$E$11 -> 0 | AE107: =$T$91/'Fixed Data'!$E$11 -> 0 | AF107: =$T$91/'Fixed Data'!$E$11 -> 0 | AG107: =$T$91/'Fixed Data'!$E$11 -> 0 | AH107: =$T$91/'Fixed Data'!$E$11 -> 0 | AI107: =$T$91/'Fixed Data'!$E$11 -> 0 | AJ107: =$T$91/'Fixed Data'!$E$11 -> 0 | AK107: =$T$91/'Fixed Data'!$E$11 -> 0 | AL107: =$T$91/'Fixed Data'!$E$11 -> 0 | AM107: =$T$91/'Fixed Data'!$E$11 -> 0 | AN107: =$T$91/'Fixed Data'!$E$11 -> 0 | AO107: =$T$91/'Fixed Data'!$E$11 -> 0 | AP107: =$T$91/'Fixed Data'!$E$11 -> 0 | AQ107: =$T$91/'Fixed Data'!$E$11 -> 0 | AR107: =$T$91/'Fixed Data'!$E$11 -> 0 | AS107: =$T$91/'Fixed Data'!$E$11 -> 0 | AT107: =$T$91/'Fixed Data'!$E$11 -> 0 | AU107: =$T$91/'Fixed Data'!$E$11 -> 0 | AV107: =$T$91/'Fixed Data'!$E$11 -> 0 | AW107: =$T$91/'Fixed Data'!$E$11 -> 0 | AX107: =$T$91/'Fixed Data'!$E$11 -> 0 | AY107: =$T$91/'Fixed Data'!$E$11 -> 0 | AZ107: =$T$91/'Fixed Data'!$E$11 -> 0 | BA107: =$T$91/'Fixed Data'!$E$11 -> 0 | BB107: =$T$91/'Fixed Data'!$E$11 -> 0 | BC107: =$T$91/'Fixed Data'!$E$11 -> 0 | BD107: =$T$91/'Fixed Data'!$E$11 -> 0 | BE107: =$T$91/'Fixed Data'!$E$11 -> 0 | BF107: =$T$91/'Fixed Data'!$E$11 -> 0 | BG107: =$T$91/'Fixed Data'!$E$11 -> 0 | BH107: =$T$91/'Fixed Data'!$E$11 -> 0 | BI107: =$T$91/'Fixed Data'!$E$11 -> 0 | BJ107: =$T$91/'Fixed Data'!$E$11 -> 0 | BK107: =$T$91/'Fixed Data'!$E$11 -> 0 | BL107: =$T$91/'Fixed Data'!$E$11 -> 0 | BM107: =$T$91/'Fixed Data'!$E$11 -> 0
B108: 2035 Depreciation | C108: (5)2035=(3)2035*Dep_ratet | D108: £m | V108: =$U$91/'Fixed Data'!$E$11 -> 0 | W108: =$U$91/'Fixed Data'!$E$11 -> 0 | X108: =$U$91/'Fixed Data'!$E$11 -> 0 | Y108: =$U$91/'Fixed Data'!$E$11 -> 0 | Z108: =$U$91/'Fixed Data'!$E$11 -> 0 | AA108: =$U$91/'Fixed Data'!$E$11 -> 0 | AB108: =$U$91/'Fixed Data'!$E$11 -> 0 | AC108: =$U$91/'Fixed Data'!$E$11 -> 0 | AD108: =$U$91/'Fixed Data'!$E$11 -> 0 | AE108: =$U$91/'Fixed Data'!$E$11 -> 0 | AF108: =$U$91/'Fixed Data'!$E$11 -> 0 | AG108: =$U$91/'Fixed Data'!$E$11 -> 0 | AH108: =$U$91/'Fixed Data'!$E$11 -> 0 | AI108: =$U$91/'Fixed Data'!$E$11 -> 0 | AJ108: =$U$91/'Fixed Data'!$E$11 -> 0 | AK108: =$U$91/'Fixed Data'!$E$11 -> 0 | AL108: =$U$91/'Fixed Data'!$E$11 -> 0 | AM108: =$U$91/'Fixed Data'!$E$11 -> 0 | AN108: =$U$91/'Fixed Data'!$E$11 -> 0 | AO108: =$U$91/'Fixed Data'!$E$11 -> 0 | AP108: =$U$91/'Fixed Data'!$E$11 -> 0 | AQ108: =$U$91/'Fixed Data'!$E$11 -> 0 | AR108: =$U$91/'Fixed Data'!$E$11 -> 0 | AS108: =$U$91/'Fixed Data'!$E$11 -> 0 | AT108: =$U$91/'Fixed Data'!$E$11 -> 0 | AU108: =$U$91/'Fixed Data'!$E$11 -> 0 | AV108: =$U$91/'Fixed Data'!$E$11 -> 0 | AW108: =$U$91/'Fixed Data'!$E$11 -> 0 | AX108: =$U$91/'Fixed Data'!$E$11 -> 0 | AY108: =$U$91/'Fixed Data'!$E$11 -> 0 | AZ108: =$U$91/'Fixed Data'!$E$11 -> 0 | BA108: =$U$91/'Fixed Data'!$E$11 -> 0 | BB108: =$U$91/'Fixed Data'!$E$11 -> 0 | BC108: =$U$91/'Fixed Data'!$E$11 -> 0 | BD108: =$U$91/'Fixed Data'!$E$11 -> 0 | BE108: =$U$91/'Fixed Data'!$E$11 -> 0 | BF108: =$U$91/'Fixed Data'!$E$11 -> 0 | BG108: =$U$91/'Fixed Data'!$E$11 -> 0 | BH108: =$U$91/'Fixed Data'!$E$11 -> 0 | BI108: =$U$91/'Fixed Data'!$E$11 -> 0 | BJ108: =$U$91/'Fixed Data'!$E$11 -> 0 | BK108: =$U$91/'Fixed Data'!$E$11 -> 0 | BL108: =$U$91/'Fixed Data'!$E$11 -> 0 | BM108: =$U$91/'Fixed Data'!$E$11 -> 0 | BN108: =$U$91/'Fixed Data'!$E$11 -> 0
B109: 2036 Depreciation | C109: (5)2036=(3)2036*Dep_ratet | D109: £m | W109: =$V$91/'Fixed Data'!$E$11 -> 0 | X109: =$V$91/'Fixed Data'!$E$11 -> 0 | Y109: =$V$91/'Fixed Data'!$E$11 -> 0 | Z109: =$V$91/'Fixed Data'!$E$11 -> 0 | AA109: =$V$91/'Fixed Data'!$E$11 -> 0 | AB109: =$V$91/'Fixed Data'!$E$11 -> 0 | AC109: =$V$91/'Fixed Data'!$E$11 -> 0 | AD109: =$V$91/'Fixed Data'!$E$11 -> 0 | AE109: =$V$91/'Fixed Data'!$E$11 -> 0 | AF109: =$V$91/'Fixed Data'!$E$11 -> 0 | AG109: =$V$91/'Fixed Data'!$E$11 -> 0 | AH109: =$V$91/'Fixed Data'!$E$11 -> 0 | AI109: =$V$91/'Fixed Data'!$E$11 -> 0 | AJ109: =$V$91/'Fixed Data'!$E$11 -> 0 | AK109: =$V$91/'Fixed Data'!$E$11 -> 0 | AL109: =$V$91/'Fixed Data'!$E$11 -> 0 | AM109: =$V$91/'Fixed Data'!$E$11 -> 0 | AN109: =$V$91/'Fixed Data'!$E$11 -> 0 | AO109: =$V$91/'Fixed Data'!$E$11 -> 0 | AP109: =$V$91/'Fixed Data'!$E$11 -> 0 | AQ109: =$V$91/'Fixed Data'!$E$11 -> 0 | AR109: =$V$91/'Fixed Data'!$E$11 -> 0 | AS109: =$V$91/'Fixed Data'!$E$11 -> 0 | AT109: =$V$91/'Fixed Data'!$E$11 -> 0 | AU109: =$V$91/'Fixed Data'!$E$11 -> 0 | AV109: =$V$91/'Fixed Data'!$E$11 -> 0 | AW109: =$V$91/'Fixed Data'!$E$11 -> 0 | AX109: =$V$91/'Fixed Data'!$E$11 -> 0 | AY109: =$V$91/'Fixed Data'!$E$11 -> 0 | AZ109: =$V$91/'Fixed Data'!$E$11 -> 0 | BA109: =$V$91/'Fixed Data'!$E$11 -> 0 | BB109: =$V$91/'Fixed Data'!$E$11 -> 0 | BC109: =$V$91/'Fixed Data'!$E$11 -> 0 | BD109: =$V$91/'Fixed Data'!$E$11 -> 0 | BE109: =$V$91/'Fixed Data'!$E$11 -> 0 | BF109: =$V$91/'Fixed Data'!$E$11 -> 0 | BG109: =$V$91/'Fixed Data'!$E$11 -> 0 | BH109: =$V$91/'Fixed Data'!$E$11 -> 0 | BI109: =$V$91/'Fixed Data'!$E$11 -> 0 | BJ109: =$V$91/'Fixed Data'!$E$11 -> 0 | BK109: =$V$91/'Fixed Data'!$E$11 -> 0 | BL109: =$V$91/'Fixed Data'!$E$11 -> 0 | BM109: =$V$91/'Fixed Data'!$E$11 -> 0 | BN109: =$V$91/'Fixed Data'!$E$11 -> 0 | BO109: =$V$91/'Fixed Data'!$E$11 -> 0
B110: 2037 Depreciation | C110: (5)2037=(3)2037*Dep_ratet | D110: £m | X110: =$W$91/'Fixed Data'!$E$11 -> 0 | Y110: =$W$91/'Fixed Data'!$E$11 -> 0 | Z110: =$W$91/'Fixed Data'!$E$11 -> 0 | AA110: =$W$91/'Fixed Data'!$E$11 -> 0 | AB110: =$W$91/'Fixed Data'!$E$11 -> 0 | AC110: =$W$91/'Fixed Data'!$E$11 -> 0 | AD110: =$W$91/'Fixed Data'!$E$11 -> 0 | AE110: =$W$91/'Fixed Data'!$E$11 -> 0 | AF110: =$W$91/'Fixed Data'!$E$11 -> 0 | AG110: =$W$91/'Fixed Data'!$E$11 -> 0 | AH110: =$W$91/'Fixed Data'!$E$11 -> 0 | AI110: =$W$91/'Fixed Data'!$E$11 -> 0 | AJ110: =$W$91/'Fixed Data'!$E$11 -> 0 | AK110: =$W$91/'Fixed Data'!$E$11 -> 0 | AL110: =$W$91/'Fixed Data'!$E$11 -> 0 | AM110: =$W$91/'Fixed Data'!$E$11 -> 0 | AN110: =$W$91/'Fixed Data'!$E$11 -> 0 | AO110: =$W$91/'Fixed Data'!$E$11 -> 0 | AP110: =$W$91/'Fixed Data'!$E$11 -> 0 | AQ110: =$W$91/'Fixed Data'!$E$11 -> 0 | AR110: =$W$91/'Fixed Data'!$E$11 -> 0 | AS110: =$W$91/'Fixed Data'!$E$11 -> 0 | AT110: =$W$91/'Fixed Data'!$E$11 -> 0 | AU110: =$W$91/'Fixed Data'!$E$11 -> 0 | AV110: =$W$91/'Fixed Data'!$E$11 -> 0 | AW110: =$W$91/'Fixed Data'!$E$11 -> 0 | AX110: =$W$91/'Fixed Data'!$E$11 -> 0 | AY110: =$W$91/'Fixed Data'!$E$11 -> 0 | AZ110: =$W$91/'Fixed Data'!$E$11 -> 0 | BA110: =$W$91/'Fixed Data'!$E$11 -> 0 | BB110: =$W$91/'Fixed Data'!$E$11 -> 0 | BC110: =$W$91/'Fixed Data'!$E$11 -> 0 | BD110: =$W$91/'Fixed Data'!$E$11 -> 0 | BE110: =$W$91/'Fixed Data'!$E$11 -> 0 | BF110: =$W$91/'Fixed Data'!$E$11 -> 0 | BG110: =$W$91/'Fixed Data'!$E$11 -> 0 | BH110: =$W$91/'Fixed Data'!$E$11 -> 0 | BI110: =$W$91/'Fixed Data'!$E$11 -> 0 | BJ110: =$W$91/'Fixed Data'!$E$11 -> 0 | BK110: =$W$91/'Fixed Data'!$E$11 -> 0 | BL110: =$W$91/'Fixed Data'!$E$11 -> 0 | BM110: =$W$91/'Fixed Data'!$E$11 -> 0 | BN110: =$W$91/'Fixed Data'!$E$11 -> 0 | BO110: =$W$91/'Fixed Data'!$E$11 -> 0 | BP110: =$W$91/'Fixed Data'!$E$11 -> 0
B111: 2038 Depreciation | C111: (5)2038=(3)2038*Dep_ratet | D111: £m | Y111: =$X$91/'Fixed Data'!$E$11 -> 0 | Z111: =$X$91/'Fixed Data'!$E$11 -> 0 | AA111: =$X$91/'Fixed Data'!$E$11 -> 0 | AB111: =$X$91/'Fixed Data'!$E$11 -> 0 | AC111: =$X$91/'Fixed Data'!$E$11 -> 0 | AD111: =$X$91/'Fixed Data'!$E$11 -> 0 | AE111: =$X$91/'Fixed Data'!$E$11 -> 0 | AF111: =$X$91/'Fixed Data'!$E$11 -> 0 | AG111: =$X$91/'Fixed Data'!$E$11 -> 0 | AH111: =$X$91/'Fixed Data'!$E$11 -> 0 | AI111: =$X$91/'Fixed Data'!$E$11 -> 0 | AJ111: =$X$91/'Fixed Data'!$E$11 -> 0 | AK111: =$X$91/'Fixed Data'!$E$11 -> 0 | AL111: =$X$91/'Fixed Data'!$E$11 -> 0 | AM111: =$X$91/'Fixed Data'!$E$11 -> 0 | AN111: =$X$91/'Fixed Data'!$E$11 -> 0 | AO111: =$X$91/'Fixed Data'!$E$11 -> 0 | AP111: =$X$91/'Fixed Data'!$E$11 -> 0 | AQ111: =$X$91/'Fixed Data'!$E$11 -> 0 | AR111: =$X$91/'Fixed Data'!$E$11 -> 0 | AS111: =$X$91/'Fixed Data'!$E$11 -> 0 | AT111: =$X$91/'Fixed Data'!$E$11 -> 0 | AU111: =$X$91/'Fixed Data'!$E$11 -> 0 | AV111: =$X$91/'Fixed Data'!$E$11 -> 0 | AW111: =$X$91/'Fixed Data'!$E$11 -> 0 | AX111: =$X$91/'Fixed Data'!$E$11 -> 0 | AY111: =$X$91/'Fixed Data'!$E$11 -> 0 | AZ111: =$X$91/'Fixed Data'!$E$11 -> 0 | BA111: =$X$91/'Fixed Data'!$E$11 -> 0 | BB111: =$X$91/'Fixed Data'!$E$11 -> 0 | BC111: =$X$91/'Fixed Data'!$E$11 -> 0 | BD111: =$X$91/'Fixed Data'!$E$11 -> 0 | BE111: =$X$91/'Fixed Data'!$E$11 -> 0 | BF111: =$X$91/'Fixed Data'!$E$11 -> 0 | BG111: =$X$91/'Fixed Data'!$E$11 -> 0 | BH111: =$X$91/'Fixed Data'!$E$11 -> 0 | BI111: =$X$91/'Fixed Data'!$E$11 -> 0 | BJ111: =$X$91/'Fixed Data'!$E$11 -> 0 | BK111: =$X$91/'Fixed Data'!$E$11 -> 0 | BL111: =$X$91/'Fixed Data'!$E$11 -> 0 | BM111: =$X$91/'Fixed Data'!$E$11 -> 0 | BN111: =$X$91/'Fixed Data'!$E$11 -> 0 | BO111: =$X$91/'Fixed Data'!$E$11 -> 0 | BP111: =$X$91/'Fixed Data'!$E$11 -> 0 | BQ111: =$X$91/'Fixed Data'!$E$11 -> 0
B112: 2039 Depreciation | C112: (5)2039=(3)2039*Dep_ratet | D112: £m | Z112: =$Y$91/'Fixed Data'!$E$11 -> 0 | AA112: =$Y$91/'Fixed Data'!$E$11 -> 0 | AB112: =$Y$91/'Fixed Data'!$E$11 -> 0 | AC112: =$Y$91/'Fixed Data'!$E$11 -> 0 | AD112: =$Y$91/'Fixed Data'!$E$11 -> 0 | AE112: =$Y$91/'Fixed Data'!$E$11 -> 0 | AF112: =$Y$91/'Fixed Data'!$E$11 -> 0 | AG112: =$Y$91/'Fixed Data'!$E$11 -> 0 | AH112: =$Y$91/'Fixed Data'!$E$11 -> 0 | AI112: =$Y$91/'Fixed Data'!$E$11 -> 0 | AJ112: =$Y$91/'Fixed Data'!$E$11 -> 0 | AK112: =$Y$91/'Fixed Data'!$E$11 -> 0 | AL112: =$Y$91/'Fixed Data'!$E$11 -> 0 | AM112: =$Y$91/'Fixed Data'!$E$11 -> 0 | AN112: =$Y$91/'Fixed Data'!$E$11 -> 0 | AO112: =$Y$91/'Fixed Data'!$E$11 -> 0 | AP112: =$Y$91/'Fixed Data'!$E$11 -> 0 | AQ112: =$Y$91/'Fixed Data'!$E$11 -> 0 | AR112: =$Y$91/'Fixed Data'!$E$11 -> 0 | AS112: =$Y$91/'Fixed Data'!$E$11 -> 0 | AT112: =$Y$91/'Fixed Data'!$E$11 -> 0 | AU112: =$Y$91/'Fixed Data'!$E$11 -> 0 | AV112: =$Y$91/'Fixed Data'!$E$11 -> 0 | AW112: =$Y$91/'Fixed Data'!$E$11 -> 0 | AX112: =$Y$91/'Fixed Data'!$E$11 -> 0 | AY112: =$Y$91/'Fixed Data'!$E$11 -> 0 | AZ112: =$Y$91/'Fixed Data'!$E$11 -> 0 | BA112: =$Y$91/'Fixed Data'!$E$11 -> 0 | BB112: =$Y$91/'Fixed Data'!$E$11 -> 0 | BC112: =$Y$91/'Fixed Data'!$E$11 -> 0 | BD112: =$Y$91/'Fixed Data'!$E$11 -> 0 | BE112: =$Y$91/'Fixed Data'!$E$11 -> 0 | BF112: =$Y$91/'Fixed Data'!$E$11 -> 0 | BG112: =$Y$91/'Fixed Data'!$E$11 -> 0 | BH112: =$Y$91/'Fixed Data'!$E$11 -> 0 | BI112: =$Y$91/'Fixed Data'!$E$11 -> 0 | BJ112: =$Y$91/'Fixed Data'!$E$11 -> 0 | BK112: =$Y$91/'Fixed Data'!$E$11 -> 0 | BL112: =$Y$91/'Fixed Data'!$E$11 -> 0 | BM112: =$Y$91/'Fixed Data'!$E$11 -> 0 | BN112: =$Y$91/'Fixed Data'!$E$11 -> 0 | BO112: =$Y$91/'Fixed Data'!$E$11 -> 0 | BP112: =$Y$91/'Fixed Data'!$E$11 -> 0 | BQ112: =$Y$91/'Fixed Data'!$E$11 -> 0 | BR112: =$Y$91/'Fixed Data'!$E$11 -> 0
B113: 2040 Depreciation | C113: (5)2040=(3)2040*Dep_ratet | D113: £m | AA113: =$Z$91/'Fixed Data'!$E$11 -> 0 | AB113: =$Z$91/'Fixed Data'!$E$11 -> 0 | AC113: =$Z$91/'Fixed Data'!$E$11 -> 0 | AD113: =$Z$91/'Fixed Data'!$E$11 -> 0 | AE113: =$Z$91/'Fixed Data'!$E$11 -> 0 | AF113: =$Z$91/'Fixed Data'!$E$11 -> 0 | AG113: =$Z$91/'Fixed Data'!$E$11 -> 0 | AH113: =$Z$91/'Fixed Data'!$E$11 -> 0 | AI113: =$Z$91/'Fixed Data'!$E$11 -> 0 | AJ113: =$Z$91/'Fixed Data'!$E$11 -> 0 | AK113: =$Z$91/'Fixed Data'!$E$11 -> 0 | AL113: =$Z$91/'Fixed Data'!$E$11 -> 0 | AM113: =$Z$91/'Fixed Data'!$E$11 -> 0 | AN113: =$Z$91/'Fixed Data'!$E$11 -> 0 | AO113: =$Z$91/'Fixed Data'!$E$11 -> 0 | AP113: =$Z$91/'Fixed Data'!$E$11 -> 0 | AQ113: =$Z$91/'Fixed Data'!$E$11 -> 0 | AR113: =$Z$91/'Fixed Data'!$E$11 -> 0 | AS113: =$Z$91/'Fixed Data'!$E$11 -> 0 | AT113: =$Z$91/'Fixed Data'!$E$11 -> 0 | AU113: =$Z$91/'Fixed Data'!$E$11 -> 0 | AV113: =$Z$91/'Fixed Data'!$E$11 -> 0 | AW113: =$Z$91/'Fixed Data'!$E$11 -> 0 | AX113: =$Z$91/'Fixed Data'!$E$11 -> 0 | AY113: =$Z$91/'Fixed Data'!$E$11 -> 0 | AZ113: =$Z$91/'Fixed Data'!$E$11 -> 0 | BA113: =$Z$91/'Fixed Data'!$E$11 -> 0 | BB113: =$Z$91/'Fixed Data'!$E$11 -> 0 | BC113: =$Z$91/'Fixed Data'!$E$11 -> 0 | BD113: =$Z$91/'Fixed Data'!$E$11 -> 0 | BE113: =$Z$91/'Fixed Data'!$E$11 -> 0 | BF113: =$Z$91/'Fixed Data'!$E$11 -> 0 | BG113: =$Z$91/'Fixed Data'!$E$11 -> 0 | BH113: =$Z$91/'Fixed Data'!$E$11 -> 0 | BI113: =$Z$91/'Fixed Data'!$E$11 -> 0 | BJ113: =$Z$91/'Fixed Data'!$E$11 -> 0 | BK113: =$Z$91/'Fixed Data'!$E$11 -> 0 | BL113: =$Z$91/'Fixed Data'!$E$11 -> 0 | BM113: =$Z$91/'Fixed Data'!$E$11 -> 0 | BN113: =$Z$91/'Fixed Data'!$E$11 -> 0 | BO113: =$Z$91/'Fixed Data'!$E$11 -> 0 | BP113: =$Z$91/'Fixed Data'!$E$11 -> 0 | BQ113: =$Z$91/'Fixed Data'!$E$11 -> 0 | BR113: =$Z$91/'Fixed Data'!$E$11 -> 0 | BS113: =$Z$91/'Fixed Data'!$E$11 -> 0
B114: 2041 Depreciation | C114: (5)2041=(3)2041*Dep_ratet | D114: £m | AB114: =$AA$91/'Fixed Data'!$E$11 -> 0 | AC114: =$AA$91/'Fixed Data'!$E$11 -> 0 | AD114: =$AA$91/'Fixed Data'!$E$11 -> 0 | AE114: =$AA$91/'Fixed Data'!$E$11 -> 0 | AF114: =$AA$91/'Fixed Data'!$E$11 -> 0 | AG114: =$AA$91/'Fixed Data'!$E$11 -> 0 | AH114: =$AA$91/'Fixed Data'!$E$11 -> 0 | AI114: =$AA$91/'Fixed Data'!$E$11 -> 0 | AJ114: =$AA$91/'Fixed Data'!$E$11 -> 0 | AK114: =$AA$91/'Fixed Data'!$E$11 -> 0 | AL114: =$AA$91/'Fixed Data'!$E$11 -> 0 | AM114: =$AA$91/'Fixed Data'!$E$11 -> 0 | AN114: =$AA$91/'Fixed Data'!$E$11 -> 0 | AO114: =$AA$91/'Fixed Data'!$E$11 -> 0 | AP114: =$AA$91/'Fixed Data'!$E$11 -> 0 | AQ114: =$AA$91/'Fixed Data'!$E$11 -> 0 | AR114: =$AA$91/'Fixed Data'!$E$11 -> 0 | AS114: =$AA$91/'Fixed Data'!$E$11 -> 0 | AT114: =$AA$91/'Fixed Data'!$E$11 -> 0 | AU114: =$AA$91/'Fixed Data'!$E$11 -> 0 | AV114: =$AA$91/'Fixed Data'!$E$11 -> 0 | AW114: =$AA$91/'Fixed Data'!$E$11 -> 0 | AX114: =$AA$91/'Fixed Data'!$E$11 -> 0 | AY114: =$AA$91/'Fixed Data'!$E$11 -> 0 | AZ114: =$AA$91/'Fixed Data'!$E$11 -> 0 | BA114: =$AA$91/'Fixed Data'!$E$11 -> 0 | BB114: =$AA$91/'Fixed Data'!$E$11 -> 0 | BC114: =$AA$91/'Fixed Data'!$E$11 -> 0 | BD114: =$AA$91/'Fixed Data'!$E$11 -> 0 | BE114: =$AA$91/'Fixed Data'!$E$11 -> 0 | BF114: =$AA$91/'Fixed Data'!$E$11 -> 0 | BG114: =$AA$91/'Fixed Data'!$E$11 -> 0 | BH114: =$AA$91/'Fixed Data'!$E$11 -> 0 | BI114: =$AA$91/'Fixed Data'!$E$11 -> 0 | BJ114: =$AA$91/'Fixed Data'!$E$11 -> 0 | BK114: =$AA$91/'Fixed Data'!$E$11 -> 0 | BL114: =$AA$91/'Fixed Data'!$E$11 -> 0 | BM114: =$AA$91/'Fixed Data'!$E$11 -> 0 | BN114: =$AA$91/'Fixed Data'!$E$11 -> 0 | BO114: =$AA$91/'Fixed Data'!$E$11 -> 0 | BP114: =$AA$91/'Fixed Data'!$E$11 -> 0 | BQ114: =$AA$91/'Fixed Data'!$E$11 -> 0 | BR114: =$AA$91/'Fixed Data'!$E$11 -> 0 | BS114: =$AA$91/'Fixed Data'!$E$11 -> 0 | BT114: =$AA$91/'Fixed Data'!$E$11 -> 0
B115: 2042 Depreciation | C115: (5)2042=(3)2042*Dep_ratet | D115: £m | AC115: =$AB$91/'Fixed Data'!$E$11 -> 0 | AD115: =$AB$91/'Fixed Data'!$E$11 -> 0 | AE115: =$AB$91/'Fixed Data'!$E$11 -> 0 | AF115: =$AB$91/'Fixed Data'!$E$11 -> 0 | AG115: =$AB$91/'Fixed Data'!$E$11 -> 0 | AH115: =$AB$91/'Fixed Data'!$E$11 -> 0 | AI115: =$AB$91/'Fixed Data'!$E$11 -> 0 | AJ115: =$AB$91/'Fixed Data'!$E$11 -> 0 | AK115: =$AB$91/'Fixed Data'!$E$11 -> 0 | AL115: =$AB$91/'Fixed Data'!$E$11 -> 0 | AM115: =$AB$91/'Fixed Data'!$E$11 -> 0 | AN115: =$AB$91/'Fixed Data'!$E$11 -> 0 | AO115: =$AB$91/'Fixed Data'!$E$11 -> 0 | AP115: =$AB$91/'Fixed Data'!$E$11 -> 0 | AQ115: =$AB$91/'Fixed Data'!$E$11 -> 0 | AR115: =$AB$91/'Fixed Data'!$E$11 -> 0 | AS115: =$AB$91/'Fixed Data'!$E$11 -> 0 | AT115: =$AB$91/'Fixed Data'!$E$11 -> 0 | AU115: =$AB$91/'Fixed Data'!$E$11 -> 0 | AV115: =$AB$91/'Fixed Data'!$E$11 -> 0 | AW115: =$AB$91/'Fixed Data'!$E$11 -> 0 | AX115: =$AB$91/'Fixed Data'!$E$11 -> 0 | AY115: =$AB$91/'Fixed Data'!$E$11 -> 0 | AZ115: =$AB$91/'Fixed Data'!$E$11 -> 0 | BA115: =$AB$91/'Fixed Data'!$E$11 -> 0 | BB115: =$AB$91/'Fixed Data'!$E$11 -> 0 | BC115: =$AB$91/'Fixed Data'!$E$11 -> 0 | BD115: =$AB$91/'Fixed Data'!$E$11 -> 0 | BE115: =$AB$91/'Fixed Data'!$E$11 -> 0 | BF115: =$AB$91/'Fixed Data'!$E$11 -> 0 | BG115: =$AB$91/'Fixed Data'!$E$11 -> 0 | BH115: =$AB$91/'Fixed Data'!$E$11 -> 0 | BI115: =$AB$91/'Fixed Data'!$E$11 -> 0 | BJ115: =$AB$91/'Fixed Data'!$E$11 -> 0 | BK115: =$AB$91/'Fixed Data'!$E$11 -> 0 | BL115: =$AB$91/'Fixed Data'!$E$11 -> 0 | BM115: =$AB$91/'Fixed Data'!$E$11 -> 0 | BN115: =$AB$91/'Fixed Data'!$E$11 -> 0 | BO115: =$AB$91/'Fixed Data'!$E$11 -> 0 | BP115: =$AB$91/'Fixed Data'!$E$11 -> 0 | BQ115: =$AB$91/'Fixed Data'!$E$11 -> 0 | BR115: =$AB$91/'Fixed Data'!$E$11 -> 0 | BS115: =$AB$91/'Fixed Data'!$E$11 -> 0 | BT115: =$AB$91/'Fixed Data'!$E$11 -> 0 | BU115: =$AB$91/'Fixed Data'!$E$11 -> 0
B116: 2043 Depreciation | C116: (5)2043=(3)2043*Dep_ratet | D116: £m | AD116: =$AC$91/'Fixed Data'!$E$11 -> 0 | AE116: =$AC$91/'Fixed Data'!$E$11 -> 0 | AF116: =$AC$91/'Fixed Data'!$E$11 -> 0 | AG116: =$AC$91/'Fixed Data'!$E$11 -> 0 | AH116: =$AC$91/'Fixed Data'!$E$11 -> 0 | AI116: =$AC$91/'Fixed Data'!$E$11 -> 0 | AJ116: =$AC$91/'Fixed Data'!$E$11 -> 0 | AK116: =$AC$91/'Fixed Data'!$E$11 -> 0 | AL116: =$AC$91/'Fixed Data'!$E$11 -> 0 | AM116: =$AC$91/'Fixed Data'!$E$11 -> 0 | AN116: =$AC$91/'Fixed Data'!$E$11 -> 0 | AO116: =$AC$91/'Fixed Data'!$E$11 -> 0 | AP116: =$AC$91/'Fixed Data'!$E$11 -> 0 | AQ116: =$AC$91/'Fixed Data'!$E$11 -> 0 | AR116: =$AC$91/'Fixed Data'!$E$11 -> 0 | AS116: =$AC$91/'Fixed Data'!$E$11 -> 0 | AT116: =$AC$91/'Fixed Data'!$E$11 -> 0 | AU116: =$AC$91/'Fixed Data'!$E$11 -> 0 | AV116: =$AC$91/'Fixed Data'!$E$11 -> 0 | AW116: =$AC$91/'Fixed Data'!$E$11 -> 0 | AX116: =$AC$91/'Fixed Data'!$E$11 -> 0 | AY116: =$AC$91/'Fixed Data'!$E$11 -> 0 | AZ116: =$AC$91/'Fixed Data'!$E$11 -> 0 | BA116: =$AC$91/'Fixed Data'!$E$11 -> 0 | BB116: =$AC$91/'Fixed Data'!$E$11 -> 0 | BC116: =$AC$91/'Fixed Data'!$E$11 -> 0 | BD116: =$AC$91/'Fixed Data'!$E$11 -> 0 | BE116: =$AC$91/'Fixed Data'!$E$11 -> 0 | BF116: =$AC$91/'Fixed Data'!$E$11 -> 0 | BG116: =$AC$91/'Fixed Data'!$E$11 -> 0 | BH116: =$AC$91/'Fixed Data'!$E$11 -> 0 | BI116: =$AC$91/'Fixed Data'!$E$11 -> 0 | BJ116: =$AC$91/'Fixed Data'!$E$11 -> 0 | BK116: =$AC$91/'Fixed Data'!$E$11 -> 0 | BL116: =$AC$91/'Fixed Data'!$E$11 -> 0 | BM116: =$AC$91/'Fixed Data'!$E$11 -> 0 | BN116: =$AC$91/'Fixed Data'!$E$11 -> 0 | BO116: =$AC$91/'Fixed Data'!$E$11 -> 0 | BP116: =$AC$91/'Fixed Data'!$E$11 -> 0 | BQ116: =$AC$91/'Fixed Data'!$E$11 -> 0 | BR116: =$AC$91/'Fixed Data'!$E$11 -> 0 | BS116: =$AC$91/'Fixed Data'!$E$11 -> 0 | BT116: =$AC$91/'Fixed Data'!$E$11 -> 0 | BU116: =$AC$91/'Fixed Data'!$E$11 -> 0 | BV116: =$AC$91/'Fixed Data'!$E$11 -> 0
B117: 2044 Depreciation | C117: (5)2044=(3)2044*Dep_ratet | D117: £m | AE117: =$AD$91/'Fixed Data'!$E$11 -> 0 | AF117: =$AD$91/'Fixed Data'!$E$11 -> 0 | AG117: =$AD$91/'Fixed Data'!$E$11 -> 0 | AH117: =$AD$91/'Fixed Data'!$E$11 -> 0 | AI117: =$AD$91/'Fixed Data'!$E$11 -> 0 | AJ117: =$AD$91/'Fixed Data'!$E$11 -> 0 | AK117: =$AD$91/'Fixed Data'!$E$11 -> 0 | AL117: =$AD$91/'Fixed Data'!$E$11 -> 0 | AM117: =$AD$91/'Fixed Data'!$E$11 -> 0 | AN117: =$AD$91/'Fixed Data'!$E$11 -> 0 | AO117: =$AD$91/'Fixed Data'!$E$11 -> 0 | AP117: =$AD$91/'Fixed Data'!$E$11 -> 0 | AQ117: =$AD$91/'Fixed Data'!$E$11 -> 0 | AR117: =$AD$91/'Fixed Data'!$E$11 -> 0 | AS117: =$AD$91/'Fixed Data'!$E$11 -> 0 | AT117: =$AD$91/'Fixed Data'!$E$11 -> 0 | AU117: =$AD$91/'Fixed Data'!$E$11 -> 0 | AV117: =$AD$91/'Fixed Data'!$E$11 -> 0 | AW117: =$AD$91/'Fixed Data'!$E$11 -> 0 | AX117: =$AD$91/'Fixed Data'!$E$11 -> 0 | AY117: =$AD$91/'Fixed Data'!$E$11 -> 0 | AZ117: =$AD$91/'Fixed Data'!$E$11 -> 0 | BA117: =$AD$91/'Fixed Data'!$E$11 -> 0 | BB117: =$AD$91/'Fixed Data'!$E$11 -> 0 | BC117: =$AD$91/'Fixed Data'!$E$11 -> 0 | BD117: =$AD$91/'Fixed Data'!$E$11 -> 0 | BE117: =$AD$91/'Fixed Data'!$E$11 -> 0 | BF117: =$AD$91/'Fixed Data'!$E$11 -> 0 | BG117: =$AD$91/'Fixed Data'!$E$11 -> 0 | BH117: =$AD$91/'Fixed Data'!$E$11 -> 0 | BI117: =$AD$91/'Fixed Data'!$E$11 -> 0 | BJ117: =$AD$91/'Fixed Data'!$E$11 -> 0 | BK117: =$AD$91/'Fixed Data'!$E$11 -> 0 | BL117: =$AD$91/'Fixed Data'!$E$11 -> 0 | BM117: =$AD$91/'Fixed Data'!$E$11 -> 0 | BN117: =$AD$91/'Fixed Data'!$E$11 -> 0 | BO117: =$AD$91/'Fixed Data'!$E$11 -> 0 | BP117: =$AD$91/'Fixed Data'!$E$11 -> 0 | BQ117: =$AD$91/'Fixed Data'!$E$11 -> 0 | BR117: =$AD$91/'Fixed Data'!$E$11 -> 0 | BS117: =$AD$91/'Fixed Data'!$E$11 -> 0 | BT117: =$AD$91/'Fixed Data'!$E$11 -> 0 | BU117: =$AD$91/'Fixed Data'!$E$11 -> 0 | BV117: =$AD$91/'Fixed Data'!$E$11 -> 0 | BW117: =$AD$91/'Fixed Data'!$E$11 -> 0
B118: 2045 Depreciation | C118: (5)2045=(3)2045*Dep_ratet | D118: £m | AF118: =$AE$91/'Fixed Data'!$E$11 -> 0 | AG118: =$AE$91/'Fixed Data'!$E$11 -> 0 | AH118: =$AE$91/'Fixed Data'!$E$11 -> 0 | AI118: =$AE$91/'Fixed Data'!$E$11 -> 0 | AJ118: =$AE$91/'Fixed Data'!$E$11 -> 0 | AK118: =$AE$91/'Fixed Data'!$E$11 -> 0 | AL118: =$AE$91/'Fixed Data'!$E$11 -> 0 | AM118: =$AE$91/'Fixed Data'!$E$11 -> 0 | AN118: =$AE$91/'Fixed Data'!$E$11 -> 0 | AO118: =$AE$91/'Fixed Data'!$E$11 -> 0 | AP118: =$AE$91/'Fixed Data'!$E$11 -> 0 | AQ118: =$AE$91/'Fixed Data'!$E$11 -> 0 | AR118: =$AE$91/'Fixed Data'!$E$11 -> 0 | AS118: =$AE$91/'Fixed Data'!$E$11 -> 0 | AT118: =$AE$91/'Fixed Data'!$E$11 -> 0 | AU118: =$AE$91/'Fixed Data'!$E$11 -> 0 | AV118: =$AE$91/'Fixed Data'!$E$11 -> 0 | AW118: =$AE$91/'Fixed Data'!$E$11 -> 0 | AX118: =$AE$91/'Fixed Data'!$E$11 -> 0 | AY118: =$AE$91/'Fixed Data'!$E$11 -> 0 | AZ118: =$AE$91/'Fixed Data'!$E$11 -> 0 | BA118: =$AE$91/'Fixed Data'!$E$11 -> 0 | BB118: =$AE$91/'Fixed Data'!$E$11 -> 0 | BC118: =$AE$91/'Fixed Data'!$E$11 -> 0 | BD118: =$AE$91/'Fixed Data'!$E$11 -> 0 | BE118: =$AE$91/'Fixed Data'!$E$11 -> 0 | BF118: =$AE$91/'Fixed Data'!$E$11 -> 0 | BG118: =$AE$91/'Fixed Data'!$E$11 -> 0 | BH118: =$AE$91/'Fixed Data'!$E$11 -> 0 | BI118: =$AE$91/'Fixed Data'!$E$11 -> 0 | BJ118: =$AE$91/'Fixed Data'!$E$11 -> 0 | BK118: =$AE$91/'Fixed Data'!$E$11 -> 0 | BL118: =$AE$91/'Fixed Data'!$E$11 -> 0 | BM118: =$AE$91/'Fixed Data'!$E$11 -> 0 | BN118: =$AE$91/'Fixed Data'!$E$11 -> 0 | BO118: =$AE$91/'Fixed Data'!$E$11 -> 0 | BP118: =$AE$91/'Fixed Data'!$E$11 -> 0 | BQ118: =$AE$91/'Fixed Data'!$E$11 -> 0 | BR118: =$AE$91/'Fixed Data'!$E$11 -> 0 | BS118: =$AE$91/'Fixed Data'!$E$11 -> 0 | BT118: =$AE$91/'Fixed Data'!$E$11 -> 0 | BU118: =$AE$91/'Fixed Data'!$E$11 -> 0 | BV118: =$AE$91/'Fixed Data'!$E$11 -> 0 | BW118: =$AE$91/'Fixed Data'!$E$11 -> 0 | BX118: =$AE$91/'Fixed Data'!$E$11 -> 0
B119: 2046 Depreciation | C119: (5)2046=(3)2046*Dep_ratet | D119: £m | AG119: =$AF$91/'Fixed Data'!$E$11 -> 0 | AH119: =$AF$91/'Fixed Data'!$E$11 -> 0 | AI119: =$AF$91/'Fixed Data'!$E$11 -> 0 | AJ119: =$AF$91/'Fixed Data'!$E$11 -> 0 | AK119: =$AF$91/'Fixed Data'!$E$11 -> 0 | AL119: =$AF$91/'Fixed Data'!$E$11 -> 0 | AM119: =$AF$91/'Fixed Data'!$E$11 -> 0 | AN119: =$AF$91/'Fixed Data'!$E$11 -> 0 | AO119: =$AF$91/'Fixed Data'!$E$11 -> 0 | AP119: =$AF$91/'Fixed Data'!$E$11 -> 0 | AQ119: =$AF$91/'Fixed Data'!$E$11 -> 0 | AR119: =$AF$91/'Fixed Data'!$E$11 -> 0 | AS119: =$AF$91/'Fixed Data'!$E$11 -> 0 | AT119: =$AF$91/'Fixed Data'!$E$11 -> 0 | AU119: =$AF$91/'Fixed Data'!$E$11 -> 0 | AV119: =$AF$91/'Fixed Data'!$E$11 -> 0 | AW119: =$AF$91/'Fixed Data'!$E$11 -> 0 | AX119: =$AF$91/'Fixed Data'!$E$11 -> 0 | AY119: =$AF$91/'Fixed Data'!$E$11 -> 0 | AZ119: =$AF$91/'Fixed Data'!$E$11 -> 0 | BA119: =$AF$91/'Fixed Data'!$E$11 -> 0 | BB119: =$AF$91/'Fixed Data'!$E$11 -> 0 | BC119: =$AF$91/'Fixed Data'!$E$11 -> 0 | BD119: =$AF$91/'Fixed Data'!$E$11 -> 0 | BE119: =$AF$91/'Fixed Data'!$E$11 -> 0 | BF119: =$AF$91/'Fixed Data'!$E$11 -> 0 | BG119: =$AF$91/'Fixed Data'!$E$11 -> 0 | BH119: =$AF$91/'Fixed Data'!$E$11 -> 0 | BI119: =$AF$91/'Fixed Data'!$E$11 -> 0 | BJ119: =$AF$91/'Fixed Data'!$E$11 -> 0 | BK119: =$AF$91/'Fixed Data'!$E$11 -> 0 | BL119: =$AF$91/'Fixed Data'!$E$11 -> 0 | BM119: =$AF$91/'Fixed Data'!$E$11 -> 0 | BN119: =$AF$91/'Fixed Data'!$E$11 -> 0 | BO119: =$AF$91/'Fixed Data'!$E$11 -> 0 | BP119: =$AF$91/'Fixed Data'!$E$11 -> 0 | BQ119: =$AF$91/'Fixed Data'!$E$11 -> 0 | BR119: =$AF$91/'Fixed Data'!$E$11 -> 0 | BS119: =$AF$91/'Fixed Data'!$E$11 -> 0 | BT119: =$AF$91/'Fixed Data'!$E$11 -> 0 | BU119: =$AF$91/'Fixed Data'!$E$11 -> 0 | BV119: =$AF$91/'Fixed Data'!$E$11 -> 0 | BW119: =$AF$91/'Fixed Data'!$E$11 -> 0 | BX119: =$AF$91/'Fixed Data'!$E$11 -> 0 | BY119: =$AF$91/'Fixed Data'!$E$11 -> 0
B120: 2047 Depreciation | C120: (5)2047=(3)2047*Dep_ratet | D120: £m | AH120: =$AG$91/'Fixed Data'!$E$11 -> 0 | AI120: =$AG$91/'Fixed Data'!$E$11 -> 0 | AJ120: =$AG$91/'Fixed Data'!$E$11 -> 0 | AK120: =$AG$91/'Fixed Data'!$E$11 -> 0 | AL120: =$AG$91/'Fixed Data'!$E$11 -> 0 | AM120: =$AG$91/'Fixed Data'!$E$11 -> 0 | AN120: =$AG$91/'Fixed Data'!$E$11 -> 0 | AO120: =$AG$91/'Fixed Data'!$E$11 -> 0 | AP120: =$AG$91/'Fixed Data'!$E$11 -> 0 | AQ120: =$AG$91/'Fixed Data'!$E$11 -> 0 | AR120: =$AG$91/'Fixed Data'!$E$11 -> 0 | AS120: =$AG$91/'Fixed Data'!$E$11 -> 0 | AT120: =$AG$91/'Fixed Data'!$E$11 -> 0 | AU120: =$AG$91/'Fixed Data'!$E$11 -> 0 | AV120: =$AG$91/'Fixed Data'!$E$11 -> 0 | AW120: =$AG$91/'Fixed Data'!$E$11 -> 0 | AX120: =$AG$91/'Fixed Data'!$E$11 -> 0 | AY120: =$AG$91/'Fixed Data'!$E$11 -> 0 | AZ120: =$AG$91/'Fixed Data'!$E$11 -> 0 | BA120: =$AG$91/'Fixed Data'!$E$11 -> 0 | BB120: =$AG$91/'Fixed Data'!$E$11 -> 0 | BC120: =$AG$91/'Fixed Data'!$E$11 -> 0 | BD120: =$AG$91/'Fixed Data'!$E$11 -> 0 | BE120: =$AG$91/'Fixed Data'!$E$11 -> 0 | BF120: =$AG$91/'Fixed Data'!$E$11 -> 0 | BG120: =$AG$91/'Fixed Data'!$E$11 -> 0 | BH120: =$AG$91/'Fixed Data'!$E$11 -> 0 | BI120: =$AG$91/'Fixed Data'!$E$11 -> 0 | BJ120: =$AG$91/'Fixed Data'!$E$11 -> 0 | BK120: =$AG$91/'Fixed Data'!$E$11 -> 0 | BL120: =$AG$91/'Fixed Data'!$E$11 -> 0 | BM120: =$AG$91/'Fixed Data'!$E$11 -> 0 | BN120: =$AG$91/'Fixed Data'!$E$11 -> 0 | BO120: =$AG$91/'Fixed Data'!$E$11 -> 0 | BP120: =$AG$91/'Fixed Data'!$E$11 -> 0 | BQ120: =$AG$91/'Fixed Data'!$E$11 -> 0 | BR120: =$AG$91/'Fixed Data'!$E$11 -> 0 | BS120: =$AG$91/'Fixed Data'!$E$11 -> 0 | BT120: =$AG$91/'Fixed Data'!$E$11 -> 0 | BU120: =$AG$91/'Fixed Data'!$E$11 -> 0 | BV120: =$AG$91/'Fixed Data'!$E$11 -> 0 | BW120: =$AG$91/'Fixed Data'!$E$11 -> 0 | BX120: =$AG$91/'Fixed Data'!$E$11 -> 0 | BY120: =$AG$91/'Fixed Data'!$E$11 -> 0 | BZ120: =$AG$91/'Fixed Data'!$E$11 -> 0
B121: 2048 Depreciation | C121: (5)2048=(3)2048*Dep_ratet | D121: £m | AI121: =$AH$91/'Fixed Data'!$E$11 -> 0 | AJ121: =$AH$91/'Fixed Data'!$E$11 -> 0 | AK121: =$AH$91/'Fixed Data'!$E$11 -> 0 | AL121: =$AH$91/'Fixed Data'!$E$11 -> 0 | AM121: =$AH$91/'Fixed Data'!$E$11 -> 0 | AN121: =$AH$91/'Fixed Data'!$E$11 -> 0 | AO121: =$AH$91/'Fixed Data'!$E$11 -> 0 | AP121: =$AH$91/'Fixed Data'!$E$11 -> 0 | AQ121: =$AH$91/'Fixed Data'!$E$11 -> 0 | AR121: =$AH$91/'Fixed Data'!$E$11 -> 0 | AS121: =$AH$91/'Fixed Data'!$E$11 -> 0 | AT121: =$AH$91/'Fixed Data'!$E$11 -> 0 | AU121: =$AH$91/'Fixed Data'!$E$11 -> 0 | AV121: =$AH$91/'Fixed Data'!$E$11 -> 0 | AW121: =$AH$91/'Fixed Data'!$E$11 -> 0 | AX121: =$AH$91/'Fixed Data'!$E$11 -> 0 | AY121: =$AH$91/'Fixed Data'!$E$11 -> 0 | AZ121: =$AH$91/'Fixed Data'!$E$11 -> 0 | BA121: =$AH$91/'Fixed Data'!$E$11 -> 0 | BB121: =$AH$91/'Fixed Data'!$E$11 -> 0 | BC121: =$AH$91/'Fixed Data'!$E$11 -> 0 | BD121: =$AH$91/'Fixed Data'!$E$11 -> 0 | BE121: =$AH$91/'Fixed Data'!$E$11 -> 0 | BF121: =$AH$91/'Fixed Data'!$E$11 -> 0 | BG121: =$AH$91/'Fixed Data'!$E$11 -> 0 | BH121: =$AH$91/'Fixed Data'!$E$11 -> 0 | BI121: =$AH$91/'Fixed Data'!$E$11 -> 0 | BJ121: =$AH$91/'Fixed Data'!$E$11 -> 0 | BK121: =$AH$91/'Fixed Data'!$E$11 -> 0 | BL121: =$AH$91/'Fixed Data'!$E$11 -> 0 | BM121: =$AH$91/'Fixed Data'!$E$11 -> 0 | BN121: =$AH$91/'Fixed Data'!$E$11 -> 0 | BO121: =$AH$91/'Fixed Data'!$E$11 -> 0 | BP121: =$AH$91/'Fixed Data'!$E$11 -> 0 | BQ121: =$AH$91/'Fixed Data'!$E$11 -> 0 | BR121: =$AH$91/'Fixed Data'!$E$11 -> 0 | BS121: =$AH$91/'Fixed Data'!$E$11 -> 0 | BT121: =$AH$91/'Fixed Data'!$E$11 -> 0 | BU121: =$AH$91/'Fixed Data'!$E$11 -> 0 | BV121: =$AH$91/'Fixed Data'!$E$11 -> 0 | BW121: =$AH$91/'Fixed Data'!$E$11 -> 0 | BX121: =$AH$91/'Fixed Data'!$E$11 -> 0 | BY121: =$AH$91/'Fixed Data'!$E$11 -> 0 | BZ121: =$AH$91/'Fixed Data'!$E$11 -> 0 | CA121: =$AH$91/'Fixed Data'!$E$11 -> 0
B122: 2049 Depreciation | C122: (5)2049=(3)2049*Dep_ratet | D122: £m | AJ122: =$AI$91/'Fixed Data'!$E$11 -> 0 | AK122: =$AI$91/'Fixed Data'!$E$11 -> 0 | AL122: =$AI$91/'Fixed Data'!$E$11 -> 0 | AM122: =$AI$91/'Fixed Data'!$E$11 -> 0 | AN122: =$AI$91/'Fixed Data'!$E$11 -> 0 | AO122: =$AI$91/'Fixed Data'!$E$11 -> 0 | AP122: =$AI$91/'Fixed Data'!$E$11 -> 0 | AQ122: =$AI$91/'Fixed Data'!$E$11 -> 0 | AR122: =$AI$91/'Fixed Data'!$E$11 -> 0 | AS122: =$AI$91/'Fixed Data'!$E$11 -> 0 | AT122: =$AI$91/'Fixed Data'!$E$11 -> 0 | AU122: =$AI$91/'Fixed Data'!$E$11 -> 0 | AV122: =$AI$91/'Fixed Data'!$E$11 -> 0 | AW122: =$AI$91/'Fixed Data'!$E$11 -> 0 | AX122: =$AI$91/'Fixed Data'!$E$11 -> 0 | AY122: =$AI$91/'Fixed Data'!$E$11 -> 0 | AZ122: =$AI$91/'Fixed Data'!$E$11 -> 0 | BA122: =$AI$91/'Fixed Data'!$E$11 -> 0 | BB122: =$AI$91/'Fixed Data'!$E$11 -> 0 | BC122: =$AI$91/'Fixed Data'!$E$11 -> 0 | BD122: =$AI$91/'Fixed Data'!$E$11 -> 0 | BE122: =$AI$91/'Fixed Data'!$E$11 -> 0 | BF122: =$AI$91/'Fixed Data'!$E$11 -> 0 | BG122: =$AI$91/'Fixed Data'!$E$11 -> 0 | BH122: =$AI$91/'Fixed Data'!$E$11 -> 0 | BI122: =$AI$91/'Fixed Data'!$E$11 -> 0 | BJ122: =$AI$91/'Fixed Data'!$E$11 -> 0 | BK122: =$AI$91/'Fixed Data'!$E$11 -> 0 | BL122: =$AI$91/'Fixed Data'!$E$11 -> 0 | BM122: =$AI$91/'Fixed Data'!$E$11 -> 0 | BN122: =$AI$91/'Fixed Data'!$E$11 -> 0 | BO122: =$AI$91/'Fixed Data'!$E$11 -> 0 | BP122: =$AI$91/'Fixed Data'!$E$11 -> 0 | BQ122: =$AI$91/'Fixed Data'!$E$11 -> 0 | BR122: =$AI$91/'Fixed Data'!$E$11 -> 0 | BS122: =$AI$91/'Fixed Data'!$E$11 -> 0 | BT122: =$AI$91/'Fixed Data'!$E$11 -> 0 | BU122: =$AI$91/'Fixed Data'!$E$11 -> 0 | BV122: =$AI$91/'Fixed Data'!$E$11 -> 0 | BW122: =$AI$91/'Fixed Data'!$E$11 -> 0 | BX122: =$AI$91/'Fixed Data'!$E$11 -> 0 | BY122: =$AI$91/'Fixed Data'!$E$11 -> 0 | BZ122: =$AI$91/'Fixed Data'!$E$11 -> 0 | CA122: =$AI$91/'Fixed Data'!$E$11 -> 0 | CB122: =$AI$91/'Fixed Data'!$E$11 -> 0
B123: 2050 Depreciation | C123: (5)2050=(3)2050*Dep_ratet | D123: £m | AK123: =$AJ$91/'Fixed Data'!$E$11 -> 0 | AL123: =$AJ$91/'Fixed Data'!$E$11 -> 0 | AM123: =$AJ$91/'Fixed Data'!$E$11 -> 0 | AN123: =$AJ$91/'Fixed Data'!$E$11 -> 0 | AO123: =$AJ$91/'Fixed Data'!$E$11 -> 0 | AP123: =$AJ$91/'Fixed Data'!$E$11 -> 0 | AQ123: =$AJ$91/'Fixed Data'!$E$11 -> 0 | AR123: =$AJ$91/'Fixed Data'!$E$11 -> 0 | AS123: =$AJ$91/'Fixed Data'!$E$11 -> 0 | AT123: =$AJ$91/'Fixed Data'!$E$11 -> 0 | AU123: =$AJ$91/'Fixed Data'!$E$11 -> 0 | AV123: =$AJ$91/'Fixed Data'!$E$11 -> 0 | AW123: =$AJ$91/'Fixed Data'!$E$11 -> 0 | AX123: =$AJ$91/'Fixed Data'!$E$11 -> 0 | AY123: =$AJ$91/'Fixed Data'!$E$11 -> 0 | AZ123: =$AJ$91/'Fixed Data'!$E$11 -> 0 | BA123: =$AJ$91/'Fixed Data'!$E$11 -> 0 | BB123: =$AJ$91/'Fixed Data'!$E$11 -> 0 | BC123: =$AJ$91/'Fixed Data'!$E$11 -> 0 | BD123: =$AJ$91/'Fixed Data'!$E$11 -> 0 | BE123: =$AJ$91/'Fixed Data'!$E$11 -> 0 | BF123: =$AJ$91/'Fixed Data'!$E$11 -> 0 | BG123: =$AJ$91/'Fixed Data'!$E$11 -> 0 | BH123: =$AJ$91/'Fixed Data'!$E$11 -> 0 | BI123: =$AJ$91/'Fixed Data'!$E$11 -> 0 | BJ123: =$AJ$91/'Fixed Data'!$E$11 -> 0 | BK123: =$AJ$91/'Fixed Data'!$E$11 -> 0 | BL123: =$AJ$91/'Fixed Data'!$E$11 -> 0 | BM123: =$AJ$91/'Fixed Data'!$E$11 -> 0 | BN123: =$AJ$91/'Fixed Data'!$E$11 -> 0 | BO123: =$AJ$91/'Fixed Data'!$E$11 -> 0 | BP123: =$AJ$91/'Fixed Data'!$E$11 -> 0 | BQ123: =$AJ$91/'Fixed Data'!$E$11 -> 0 | BR123: =$AJ$91/'Fixed Data'!$E$11 -> 0 | BS123: =$AJ$91/'Fixed Data'!$E$11 -> 0 | BT123: =$AJ$91/'Fixed Data'!$E$11 -> 0 | BU123: =$AJ$91/'Fixed Data'!$E$11 -> 0 | BV123: =$AJ$91/'Fixed Data'!$E$11 -> 0 | BW123: =$AJ$91/'Fixed Data'!$E$11 -> 0 | BX123: =$AJ$91/'Fixed Data'!$E$11 -> 0 | BY123: =$AJ$91/'Fixed Data'!$E$11 -> 0 | BZ123: =$AJ$91/'Fixed Data'!$E$11 -> 0 | CA123: =$AJ$91/'Fixed Data'!$E$11 -> 0 | CB123: =$AJ$91/'Fixed Data'!$E$11 -> 0 | CC123: =$AJ$91/'Fixed Data'!$E$11 -> 0
B124: 2051 Depreciation | C124: (5)2051=(3)2051*Dep_ratet | D124: £m | AL124: =$AK$91/'Fixed Data'!$E$11 -> 0 | AM124: =$AK$91/'Fixed Data'!$E$11 -> 0 | AN124: =$AK$91/'Fixed Data'!$E$11 -> 0 | AO124: =$AK$91/'Fixed Data'!$E$11 -> 0 | AP124: =$AK$91/'Fixed Data'!$E$11 -> 0 | AQ124: =$AK$91/'Fixed Data'!$E$11 -> 0 | AR124: =$AK$91/'Fixed Data'!$E$11 -> 0 | AS124: =$AK$91/'Fixed Data'!$E$11 -> 0 | AT124: =$AK$91/'Fixed Data'!$E$11 -> 0 | AU124: =$AK$91/'Fixed Data'!$E$11 -> 0 | AV124: =$AK$91/'Fixed Data'!$E$11 -> 0 | AW124: =$AK$91/'Fixed Data'!$E$11 -> 0 | AX124: =$AK$91/'Fixed Data'!$E$11 -> 0 | AY124: =$AK$91/'Fixed Data'!$E$11 -> 0 | AZ124: =$AK$91/'Fixed Data'!$E$11 -> 0 | BA124: =$AK$91/'Fixed Data'!$E$11 -> 0 | BB124: =$AK$91/'Fixed Data'!$E$11 -> 0 | BC124: =$AK$91/'Fixed Data'!$E$11 -> 0 | BD124: =$AK$91/'Fixed Data'!$E$11 -> 0 | BE124: =$AK$91/'Fixed Data'!$E$11 -> 0 | BF124: =$AK$91/'Fixed Data'!$E$11 -> 0 | BG124: =$AK$91/'Fixed Data'!$E$11 -> 0 | BH124: =$AK$91/'Fixed Data'!$E$11 -> 0 | BI124: =$AK$91/'Fixed Data'!$E$11 -> 0 | BJ124: =$AK$91/'Fixed Data'!$E$11 -> 0 | BK124: =$AK$91/'Fixed Data'!$E$11 -> 0 | BL124: =$AK$91/'Fixed Data'!$E$11 -> 0 | BM124: =$AK$91/'Fixed Data'!$E$11 -> 0 | BN124: =$AK$91/'Fixed Data'!$E$11 -> 0 | BO124: =$AK$91/'Fixed Data'!$E$11 -> 0 | BP124: =$AK$91/'Fixed Data'!$E$11 -> 0 | BQ124: =$AK$91/'Fixed Data'!$E$11 -> 0 | BR124: =$AK$91/'Fixed Data'!$E$11 -> 0 | BS124: =$AK$91/'Fixed Data'!$E$11 -> 0 | BT124: =$AK$91/'Fixed Data'!$E$11 -> 0 | BU124: =$AK$91/'Fixed Data'!$E$11 -> 0 | BV124: =$AK$91/'Fixed Data'!$E$11 -> 0 | BW124: =$AK$91/'Fixed Data'!$E$11 -> 0 | BX124: =$AK$91/'Fixed Data'!$E$11 -> 0 | BY124: =$AK$91/'Fixed Data'!$E$11 -> 0 | BZ124: =$AK$91/'Fixed Data'!$E$11 -> 0 | CA124: =$AK$91/'Fixed Data'!$E$11 -> 0 | CB124: =$AK$91/'Fixed Data'!$E$11 -> 0 | CC124: =$AK$91/'Fixed Data'!$E$11 -> 0 | CD124: =$AK$91/'Fixed Data'!$E$11 -> 0
B125: 2052 Depreciation | C125: (5)2052=(3)2052*Dep_ratet | D125: £m | AM125: =$AL$91/'Fixed Data'!$E$11 -> 0 | AN125: =$AL$91/'Fixed Data'!$E$11 -> 0 | AO125: =$AL$91/'Fixed Data'!$E$11 -> 0 | AP125: =$AL$91/'Fixed Data'!$E$11 -> 0 | AQ125: =$AL$91/'Fixed Data'!$E$11 -> 0 | AR125: =$AL$91/'Fixed Data'!$E$11 -> 0 | AS125: =$AL$91/'Fixed Data'!$E$11 -> 0 | AT125: =$AL$91/'Fixed Data'!$E$11 -> 0 | AU125: =$AL$91/'Fixed Data'!$E$11 -> 0 | AV125: =$AL$91/'Fixed Data'!$E$11 -> 0 | AW125: =$AL$91/'Fixed Data'!$E$11 -> 0 | AX125: =$AL$91/'Fixed Data'!$E$11 -> 0 | AY125: =$AL$91/'Fixed Data'!$E$11 -> 0 | AZ125: =$AL$91/'Fixed Data'!$E$11 -> 0 | BA125: =$AL$91/'Fixed Data'!$E$11 -> 0 | BB125: =$AL$91/'Fixed Data'!$E$11 -> 0 | BC125: =$AL$91/'Fixed Data'!$E$11 -> 0 | BD125: =$AL$91/'Fixed Data'!$E$11 -> 0 | BE125: =$AL$91/'Fixed Data'!$E$11 -> 0 | BF125: =$AL$91/'Fixed Data'!$E$11 -> 0 | BG125: =$AL$91/'Fixed Data'!$E$11 -> 0 | BH125: =$AL$91/'Fixed Data'!$E$11 -> 0 | BI125: =$AL$91/'Fixed Data'!$E$11 -> 0 | BJ125: =$AL$91/'Fixed Data'!$E$11 -> 0 | BK125: =$AL$91/'Fixed Data'!$E$11 -> 0 | BL125: =$AL$91/'Fixed Data'!$E$11 -> 0 | BM125: =$AL$91/'Fixed Data'!$E$11 -> 0 | BN125: =$AL$91/'Fixed Data'!$E$11 -> 0 | BO125: =$AL$91/'Fixed Data'!$E$11 -> 0 | BP125: =$AL$91/'Fixed Data'!$E$11 -> 0 | BQ125: =$AL$91/'Fixed Data'!$E$11 -> 0 | BR125: =$AL$91/'Fixed Data'!$E$11 -> 0 | BS125: =$AL$91/'Fixed Data'!$E$11 -> 0 | BT125: =$AL$91/'Fixed Data'!$E$11 -> 0 | BU125: =$AL$91/'Fixed Data'!$E$11 -> 0 | BV125: =$AL$91/'Fixed Data'!$E$11 -> 0 | BW125: =$AL$91/'Fixed Data'!$E$11 -> 0 | BX125: =$AL$91/'Fixed Data'!$E$11 -> 0 | BY125: =$AL$91/'Fixed Data'!$E$11 -> 0 | BZ125: =$AL$91/'Fixed Data'!$E$11 -> 0 | CA125: =$AL$91/'Fixed Data'!$E$11 -> 0 | CB125: =$AL$91/'Fixed Data'!$E$11 -> 0 | CC125: =$AL$91/'Fixed Data'!$E$11 -> 0 | CD125: =$AL$91/'Fixed Data'!$E$11 -> 0 | CE125: =$AL$91/'Fixed Data'!$E$11 -> 0
B126: 2053 Depreciation | C126: (5)2053=(3)2053*Dep_ratet | D126: £m | AN126: =$AM$91/'Fixed Data'!$E$11 -> 0 | AO126: =$AM$91/'Fixed Data'!$E$11 -> 0 | AP126: =$AM$91/'Fixed Data'!$E$11 -> 0 | AQ126: =$AM$91/'Fixed Data'!$E$11 -> 0 | AR126: =$AM$91/'Fixed Data'!$E$11 -> 0 | AS126: =$AM$91/'Fixed Data'!$E$11 -> 0 | AT126: =$AM$91/'Fixed Data'!$E$11 -> 0 | AU126: =$AM$91/'Fixed Data'!$E$11 -> 0 | AV126: =$AM$91/'Fixed Data'!$E$11 -> 0 | AW126: =$AM$91/'Fixed Data'!$E$11 -> 0 | AX126: =$AM$91/'Fixed Data'!$E$11 -> 0 | AY126: =$AM$91/'Fixed Data'!$E$11 -> 0 | AZ126: =$AM$91/'Fixed Data'!$E$11 -> 0 | BA126: =$AM$91/'Fixed Data'!$E$11 -> 0 | BB126: =$AM$91/'Fixed Data'!$E$11 -> 0 | BC126: =$AM$91/'Fixed Data'!$E$11 -> 0 | BD126: =$AM$91/'Fixed Data'!$E$11 -> 0 | BE126: =$AM$91/'Fixed Data'!$E$11 -> 0 | BF126: =$AM$91/'Fixed Data'!$E$11 -> 0 | BG126: =$AM$91/'Fixed Data'!$E$11 -> 0 | BH126: =$AM$91/'Fixed Data'!$E$11 -> 0 | BI126: =$AM$91/'Fixed Data'!$E$11 -> 0 | BJ126: =$AM$91/'Fixed Data'!$E$11 -> 0 | BK126: =$AM$91/'Fixed Data'!$E$11 -> 0 | BL126: =$AM$91/'Fixed Data'!$E$11 -> 0 | BM126: =$AM$91/'Fixed Data'!$E$11 -> 0 | BN126: =$AM$91/'Fixed Data'!$E$11 -> 0 | BO126: =$AM$91/'Fixed Data'!$E$11 -> 0 | BP126: =$AM$91/'Fixed Data'!$E$11 -> 0 | BQ126: =$AM$91/'Fixed Data'!$E$11 -> 0 | BR126: =$AM$91/'Fixed Data'!$E$11 -> 0 | BS126: =$AM$91/'Fixed Data'!$E$11 -> 0 | BT126: =$AM$91/'Fixed Data'!$E$11 -> 0 | BU126: =$AM$91/'Fixed Data'!$E$11 -> 0 | BV126: =$AM$91/'Fixed Data'!$E$11 -> 0 | BW126: =$AM$91/'Fixed Data'!$E$11 -> 0 | BX126: =$AM$91/'Fixed Data'!$E$11 -> 0 | BY126: =$AM$91/'Fixed Data'!$E$11 -> 0 | BZ126: =$AM$91/'Fixed Data'!$E$11 -> 0 | CA126: =$AM$91/'Fixed Data'!$E$11 -> 0 | CB126: =$AM$91/'Fixed Data'!$E$11 -> 0 | CC126: =$AM$91/'Fixed Data'!$E$11 -> 0 | CD126: =$AM$91/'Fixed Data'!$E$11 -> 0 | CE126: =$AM$91/'Fixed Data'!$E$11 -> 0 | CF126: =$AM$91/'Fixed Data'!$E$11 -> 0
B127: 2054 Depreciation | C127: (5)2054=(3)2054*Dep_ratet | D127: £m | AO127: =$AN$91/'Fixed Data'!$E$11 -> 0 | AP127: =$AN$91/'Fixed Data'!$E$11 -> 0 | AQ127: =$AN$91/'Fixed Data'!$E$11 -> 0 | AR127: =$AN$91/'Fixed Data'!$E$11 -> 0 | AS127: =$AN$91/'Fixed Data'!$E$11 -> 0 | AT127: =$AN$91/'Fixed Data'!$E$11 -> 0 | AU127: =$AN$91/'Fixed Data'!$E$11 -> 0 | AV127: =$AN$91/'Fixed Data'!$E$11 -> 0 | AW127: =$AN$91/'Fixed Data'!$E$11 -> 0 | AX127: =$AN$91/'Fixed Data'!$E$11 -> 0 | AY127: =$AN$91/'Fixed Data'!$E$11 -> 0 | AZ127: =$AN$91/'Fixed Data'!$E$11 -> 0 | BA127: =$AN$91/'Fixed Data'!$E$11 -> 0 | BB127: =$AN$91/'Fixed Data'!$E$11 -> 0 | BC127: =$AN$91/'Fixed Data'!$E$11 -> 0 | BD127: =$AN$91/'Fixed Data'!$E$11 -> 0 | BE127: =$AN$91/'Fixed Data'!$E$11 -> 0 | BF127: =$AN$91/'Fixed Data'!$E$11 -> 0 | BG127: =$AN$91/'Fixed Data'!$E$11 -> 0 | BH127: =$AN$91/'Fixed Data'!$E$11 -> 0 | BI127: =$AN$91/'Fixed Data'!$E$11 -> 0 | BJ127: =$AN$91/'Fixed Data'!$E$11 -> 0 | BK127: =$AN$91/'Fixed Data'!$E$11 -> 0 | BL127: =$AN$91/'Fixed Data'!$E$11 -> 0 | BM127: =$AN$91/'Fixed Data'!$E$11 -> 0 | BN127: =$AN$91/'Fixed Data'!$E$11 -> 0 | BO127: =$AN$91/'Fixed Data'!$E$11 -> 0 | BP127: =$AN$91/'Fixed Data'!$E$11 -> 0 | BQ127: =$AN$91/'Fixed Data'!$E$11 -> 0 | BR127: =$AN$91/'Fixed Data'!$E$11 -> 0 | BS127: =$AN$91/'Fixed Data'!$E$11 -> 0 | BT127: =$AN$91/'Fixed Data'!$E$11 -> 0 | BU127: =$AN$91/'Fixed Data'!$E$11 -> 0 | BV127: =$AN$91/'Fixed Data'!$E$11 -> 0 | BW127: =$AN$91/'Fixed Data'!$E$11 -> 0 | BX127: =$AN$91/'Fixed Data'!$E$11 -> 0 | BY127: =$AN$91/'Fixed Data'!$E$11 -> 0 | BZ127: =$AN$91/'Fixed Data'!$E$11 -> 0 | CA127: =$AN$91/'Fixed Data'!$E$11 -> 0 | CB127: =$AN$91/'Fixed Data'!$E$11 -> 0 | CC127: =$AN$91/'Fixed Data'!$E$11 -> 0 | CD127: =$AN$91/'Fixed Data'!$E$11 -> 0 | CE127: =$AN$91/'Fixed Data'!$E$11 -> 0 | CF127: =$AN$91/'Fixed Data'!$E$11 -> 0 | CG127: =$AN$91/'Fixed Data'!$E$11 -> 0
B128: 2055 Depreciation | C128: (5)2055=(3)2055*Dep_ratet | D128: £m | AP128: =$AO$91/'Fixed Data'!$E$11 -> 0 | AQ128: =$AO$91/'Fixed Data'!$E$11 -> 0 | AR128: =$AO$91/'Fixed Data'!$E$11 -> 0 | AS128: =$AO$91/'Fixed Data'!$E$11 -> 0 | AT128: =$AO$91/'Fixed Data'!$E$11 -> 0 | AU128: =$AO$91/'Fixed Data'!$E$11 -> 0 | AV128: =$AO$91/'Fixed Data'!$E$11 -> 0 | AW128: =$AO$91/'Fixed Data'!$E$11 -> 0 | AX128: =$AO$91/'Fixed Data'!$E$11 -> 0 | AY128: =$AO$91/'Fixed Data'!$E$11 -> 0 | AZ128: =$AO$91/'Fixed Data'!$E$11 -> 0 | BA128: =$AO$91/'Fixed Data'!$E$11 -> 0 | BB128: =$AO$91/'Fixed Data'!$E$11 -> 0 | BC128: =$AO$91/'Fixed Data'!$E$11 -> 0 | BD128: =$AO$91/'Fixed Data'!$E$11 -> 0 | BE128: =$AO$91/'Fixed Data'!$E$11 -> 0 | BF128: =$AO$91/'Fixed Data'!$E$11 -> 0 | BG128: =$AO$91/'Fixed Data'!$E$11 -> 0 | BH128: =$AO$91/'Fixed Data'!$E$11 -> 0 | BI128: =$AO$91/'Fixed Data'!$E$11 -> 0 | BJ128: =$AO$91/'Fixed Data'!$E$11 -> 0 | BK128: =$AO$91/'Fixed Data'!$E$11 -> 0 | BL128: =$AO$91/'Fixed Data'!$E$11 -> 0 | BM128: =$AO$91/'Fixed Data'!$E$11 -> 0 | BN128: =$AO$91/'Fixed Data'!$E$11 -> 0 | BO128: =$AO$91/'Fixed Data'!$E$11 -> 0 | BP128: =$AO$91/'Fixed Data'!$E$11 -> 0 | BQ128: =$AO$91/'Fixed Data'!$E$11 -> 0 | BR128: =$AO$91/'Fixed Data'!$E$11 -> 0 | BS128: =$AO$91/'Fixed Data'!$E$11 -> 0 | BT128: =$AO$91/'Fixed Data'!$E$11 -> 0 | BU128: =$AO$91/'Fixed Data'!$E$11 -> 0 | BV128: =$AO$91/'Fixed Data'!$E$11 -> 0 | BW128: =$AO$91/'Fixed Data'!$E$11 -> 0 | BX128: =$AO$91/'Fixed Data'!$E$11 -> 0 | BY128: =$AO$91/'Fixed Data'!$E$11 -> 0 | BZ128: =$AO$91/'Fixed Data'!$E$11 -> 0 | CA128: =$AO$91/'Fixed Data'!$E$11 -> 0 | CB128: =$AO$91/'Fixed Data'!$E$11 -> 0 | CC128: =$AO$91/'Fixed Data'!$E$11 -> 0 | CD128: =$AO$91/'Fixed Data'!$E$11 -> 0 | CE128: =$AO$91/'Fixed Data'!$E$11 -> 0 | CF128: =$AO$91/'Fixed Data'!$E$11 -> 0 | CG128: =$AO$91/'Fixed Data'!$E$11 -> 0 | CH128: =$AO$91/'Fixed Data'!$E$11 -> 0
B129: 2056 Depreciation | C129: (5)2056=(3)2056*Dep_ratet | D129: £m | AQ129: =$AP$91/'Fixed Data'!$E$11 -> 0 | AR129: =$AP$91/'Fixed Data'!$E$11 -> 0 | AS129: =$AP$91/'Fixed Data'!$E$11 -> 0 | AT129: =$AP$91/'Fixed Data'!$E$11 -> 0 | AU129: =$AP$91/'Fixed Data'!$E$11 -> 0 | AV129: =$AP$91/'Fixed Data'!$E$11 -> 0 | AW129: =$AP$91/'Fixed Data'!$E$11 -> 0 | AX129: =$AP$91/'Fixed Data'!$E$11 -> 0 | AY129: =$AP$91/'Fixed Data'!$E$11 -> 0 | AZ129: =$AP$91/'Fixed Data'!$E$11 -> 0 | BA129: =$AP$91/'Fixed Data'!$E$11 -> 0 | BB129: =$AP$91/'Fixed Data'!$E$11 -> 0 | BC129: =$AP$91/'Fixed Data'!$E$11 -> 0 | BD129: =$AP$91/'Fixed Data'!$E$11 -> 0 | BE129: =$AP$91/'Fixed Data'!$E$11 -> 0 | BF129: =$AP$91/'Fixed Data'!$E$11 -> 0 | BG129: =$AP$91/'Fixed Data'!$E$11 -> 0 | BH129: =$AP$91/'Fixed Data'!$E$11 -> 0 | BI129: =$AP$91/'Fixed Data'!$E$11 -> 0 | BJ129: =$AP$91/'Fixed Data'!$E$11 -> 0 | BK129: =$AP$91/'Fixed Data'!$E$11 -> 0 | BL129: =$AP$91/'Fixed Data'!$E$11 -> 0 | BM129: =$AP$91/'Fixed Data'!$E$11 -> 0 | BN129: =$AP$91/'Fixed Data'!$E$11 -> 0 | BO129: =$AP$91/'Fixed Data'!$E$11 -> 0 | BP129: =$AP$91/'Fixed Data'!$E$11 -> 0 | BQ129: =$AP$91/'Fixed Data'!$E$11 -> 0 | BR129: =$AP$91/'Fixed Data'!$E$11 -> 0 | BS129: =$AP$91/'Fixed Data'!$E$11 -> 0 | BT129: =$AP$91/'Fixed Data'!$E$11 -> 0 | BU129: =$AP$91/'Fixed Data'!$E$11 -> 0 | BV129: =$AP$91/'Fixed Data'!$E$11 -> 0 | BW129: =$AP$91/'Fixed Data'!$E$11 -> 0 | BX129: =$AP$91/'Fixed Data'!$E$11 -> 0 | BY129: =$AP$91/'Fixed Data'!$E$11 -> 0 | BZ129: =$AP$91/'Fixed Data'!$E$11 -> 0 | CA129: =$AP$91/'Fixed Data'!$E$11 -> 0 | CB129: =$AP$91/'Fixed Data'!$E$11 -> 0 | CC129: =$AP$91/'Fixed Data'!$E$11 -> 0 | CD129: =$AP$91/'Fixed Data'!$E$11 -> 0 | CE129: =$AP$91/'Fixed Data'!$E$11 -> 0 | CF129: =$AP$91/'Fixed Data'!$E$11 -> 0 | CG129: =$AP$91/'Fixed Data'!$E$11 -> 0 | CH129: =$AP$91/'Fixed Data'!$E$11 -> 0
B130: 2057 Depreciation | C130: (5)2057=(3)2057*Dep_ratet | D130: £m | AR130: =$AQ$91/'Fixed Data'!$E$11 -> 0 | AS130: =$AQ$91/'Fixed Data'!$E$11 -> 0 | AT130: =$AQ$91/'Fixed Data'!$E$11 -> 0 | AU130: =$AQ$91/'Fixed Data'!$E$11 -> 0 | AV130: =$AQ$91/'Fixed Data'!$E$11 -> 0 | AW130: =$AQ$91/'Fixed Data'!$E$11 -> 0 | AX130: =$AQ$91/'Fixed Data'!$E$11 -> 0 | AY130: =$AQ$91/'Fixed Data'!$E$11 -> 0 | AZ130: =$AQ$91/'Fixed Data'!$E$11 -> 0 | BA130: =$AQ$91/'Fixed Data'!$E$11 -> 0 | BB130: =$AQ$91/'Fixed Data'!$E$11 -> 0 | BC130: =$AQ$91/'Fixed Data'!$E$11 -> 0 | BD130: =$AQ$91/'Fixed Data'!$E$11 -> 0 | BE130: =$AQ$91/'Fixed Data'!$E$11 -> 0 | BF130: =$AQ$91/'Fixed Data'!$E$11 -> 0 | BG130: =$AQ$91/'Fixed Data'!$E$11 -> 0 | BH130: =$AQ$91/'Fixed Data'!$E$11 -> 0 | BI130: =$AQ$91/'Fixed Data'!$E$11 -> 0 | BJ130: =$AQ$91/'Fixed Data'!$E$11 -> 0 | BK130: =$AQ$91/'Fixed Data'!$E$11 -> 0 | BL130: =$AQ$91/'Fixed Data'!$E$11 -> 0 | BM130: =$AQ$91/'Fixed Data'!$E$11 -> 0 | BN130: =$AQ$91/'Fixed Data'!$E$11 -> 0 | BO130: =$AQ$91/'Fixed Data'!$E$11 -> 0 | BP130: =$AQ$91/'Fixed Data'!$E$11 -> 0 | BQ130: =$AQ$91/'Fixed Data'!$E$11 -> 0 | BR130: =$AQ$91/'Fixed Data'!$E$11 -> 0 | BS130: =$AQ$91/'Fixed Data'!$E$11 -> 0 | BT130: =$AQ$91/'Fixed Data'!$E$11 -> 0 | BU130: =$AQ$91/'Fixed Data'!$E$11 -> 0 | BV130: =$AQ$91/'Fixed Data'!$E$11 -> 0 | BW130: =$AQ$91/'Fixed Data'!$E$11 -> 0 | BX130: =$AQ$91/'Fixed Data'!$E$11 -> 0 | BY130: =$AQ$91/'Fixed Data'!$E$11 -> 0 | BZ130: =$AQ$91/'Fixed Data'!$E$11 -> 0 | CA130: =$AQ$91/'Fixed Data'!$E$11 -> 0 | CB130: =$AQ$91/'Fixed Data'!$E$11 -> 0 | CC130: =$AQ$91/'Fixed Data'!$E$11 -> 0 | CD130: =$AQ$91/'Fixed Data'!$E$11 -> 0 | CE130: =$AQ$91/'Fixed Data'!$E$11 -> 0 | CF130: =$AQ$91/'Fixed Data'!$E$11 -> 0 | CG130: =$AQ$91/'Fixed Data'!$E$11 -> 0 | CH130: =$AQ$91/'Fixed Data'!$E$11 -> 0
B131: 2058 Depreciation | C131: (5)2058=(3)2058*Dep_ratet | D131: £m | AS131: =$AR$91/'Fixed Data'!$E$11 -> 0 | AT131: =$AR$91/'Fixed Data'!$E$11 -> 0 | AU131: =$AR$91/'Fixed Data'!$E$11 -> 0 | AV131: =$AR$91/'Fixed Data'!$E$11 -> 0 | AW131: =$AR$91/'Fixed Data'!$E$11 -> 0 | AX131: =$AR$91/'Fixed Data'!$E$11 -> 0 | AY131: =$AR$91/'Fixed Data'!$E$11 -> 0 | AZ131: =$AR$91/'Fixed Data'!$E$11 -> 0 | BA131: =$AR$91/'Fixed Data'!$E$11 -> 0 | BB131: =$AR$91/'Fixed Data'!$E$11 -> 0 | BC131: =$AR$91/'Fixed Data'!$E$11 -> 0 | BD131: =$AR$91/'Fixed Data'!$E$11 -> 0 | BE131: =$AR$91/'Fixed Data'!$E$11 -> 0 | BF131: =$AR$91/'Fixed Data'!$E$11 -> 0 | BG131: =$AR$91/'Fixed Data'!$E$11 -> 0 | BH131: =$AR$91/'Fixed Data'!$E$11 -> 0 | BI131: =$AR$91/'Fixed Data'!$E$11 -> 0 | BJ131: =$AR$91/'Fixed Data'!$E$11 -> 0 | BK131: =$AR$91/'Fixed Data'!$E$11 -> 0 | BL131: =$AR$91/'Fixed Data'!$E$11 -> 0 | BM131: =$AR$91/'Fixed Data'!$E$11 -> 0 | BN131: =$AR$91/'Fixed Data'!$E$11 -> 0 | BO131: =$AR$91/'Fixed Data'!$E$11 -> 0 | BP131: =$AR$91/'Fixed Data'!$E$11 -> 0 | BQ131: =$AR$91/'Fixed Data'!$E$11 -> 0 | BR131: =$AR$91/'Fixed Data'!$E$11 -> 0 | BS131: =$AR$91/'Fixed Data'!$E$11 -> 0 | BT131: =$AR$91/'Fixed Data'!$E$11 -> 0 | BU131: =$AR$91/'Fixed Data'!$E$11 -> 0 | BV131: =$AR$91/'Fixed Data'!$E$11 -> 0 | BW131: =$AR$91/'Fixed Data'!$E$11 -> 0 | BX131: =$AR$91/'Fixed Data'!$E$11 -> 0 | BY131: =$AR$91/'Fixed Data'!$E$11 -> 0 | BZ131: =$AR$91/'Fixed Data'!$E$11 -> 0 | CA131: =$AR$91/'Fixed Data'!$E$11 -> 0 | CB131: =$AR$91/'Fixed Data'!$E$11 -> 0 | CC131: =$AR$91/'Fixed Data'!$E$11 -> 0 | CD131: =$AR$91/'Fixed Data'!$E$11 -> 0 | CE131: =$AR$91/'Fixed Data'!$E$11 -> 0 | CF131: =$AR$91/'Fixed Data'!$E$11 -> 0 | CG131: =$AR$91/'Fixed Data'!$E$11 -> 0 | CH131: =$AR$91/'Fixed Data'!$E$11 -> 0
B132: 2059 Depreciation | C132: (5)2059=(3)2059*Dep_ratet | D132: £m | AT132: =$AS$91/'Fixed Data'!$E$11 -> 0 | AU132: =$AS$91/'Fixed Data'!$E$11 -> 0 | AV132: =$AS$91/'Fixed Data'!$E$11 -> 0 | AW132: =$AS$91/'Fixed Data'!$E$11 -> 0 | AX132: =$AS$91/'Fixed Data'!$E$11 -> 0 | AY132: =$AS$91/'Fixed Data'!$E$11 -> 0 | AZ132: =$AS$91/'Fixed Data'!$E$11 -> 0 | BA132: =$AS$91/'Fixed Data'!$E$11 -> 0 | BB132: =$AS$91/'Fixed Data'!$E$11 -> 0 | BC132: =$AS$91/'Fixed Data'!$E$11 -> 0 | BD132: =$AS$91/'Fixed Data'!$E$11 -> 0 | BE132: =$AS$91/'Fixed Data'!$E$11 -> 0 | BF132: =$AS$91/'Fixed Data'!$E$11 -> 0 | BG132: =$AS$91/'Fixed Data'!$E$11 -> 0 | BH132: =$AS$91/'Fixed Data'!$E$11 -> 0 | BI132: =$AS$91/'Fixed Data'!$E$11 -> 0 | BJ132: =$AS$91/'Fixed Data'!$E$11 -> 0 | BK132: =$AS$91/'Fixed Data'!$E$11 -> 0 | BL132: =$AS$91/'Fixed Data'!$E$11 -> 0 | BM132: =$AS$91/'Fixed Data'!$E$11 -> 0 | BN132: =$AS$91/'Fixed Data'!$E$11 -> 0 | BO132: =$AS$91/'Fixed Data'!$E$11 -> 0 | BP132: =$AS$91/'Fixed Data'!$E$11 -> 0 | BQ132: =$AS$91/'Fixed Data'!$E$11 -> 0 | BR132: =$AS$91/'Fixed Data'!$E$11 -> 0 | BS132: =$AS$91/'Fixed Data'!$E$11 -> 0 | BT132: =$AS$91/'Fixed Data'!$E$11 -> 0 | BU132: =$AS$91/'Fixed Data'!$E$11 -> 0 | BV132: =$AS$91/'Fixed Data'!$E$11 -> 0 | BW132: =$AS$91/'Fixed Data'!$E$11 -> 0 | BX132: =$AS$91/'Fixed Data'!$E$11 -> 0 | BY132: =$AS$91/'Fixed Data'!$E$11 -> 0 | BZ132: =$AS$91/'Fixed Data'!$E$11 -> 0 | CA132: =$AS$91/'Fixed Data'!$E$11 -> 0 | CB132: =$AS$91/'Fixed Data'!$E$11 -> 0 | CC132: =$AS$91/'Fixed Data'!$E$11 -> 0 | CD132: =$AS$91/'Fixed Data'!$E$11 -> 0 | CE132: =$AS$91/'Fixed Data'!$E$11 -> 0 | CF132: =$AS$91/'Fixed Data'!$E$11 -> 0 | CG132: =$AS$91/'Fixed Data'!$E$11 -> 0 | CH132: =$AS$91/'Fixed Data'!$E$11 -> 0
B133: 2060 Depreciation | C133: (5)2060=(3)2060*Dep_ratet | D133: £m | AU133: =$AT$91/'Fixed Data'!$E$11 -> 0 | AV133: =$AT$91/'Fixed Data'!$E$11 -> 0 | AW133: =$AT$91/'Fixed Data'!$E$11 -> 0 | AX133: =$AT$91/'Fixed Data'!$E$11 -> 0 | AY133: =$AT$91/'Fixed Data'!$E$11 -> 0 | AZ133: =$AT$91/'Fixed Data'!$E$11 -> 0 | BA133: =$AT$91/'Fixed Data'!$E$11 -> 0 | BB133: =$AT$91/'Fixed Data'!$E$11 -> 0 | BC133: =$AT$91/'Fixed Data'!$E$11 -> 0 | BD133: =$AT$91/'Fixed Data'!$E$11 -> 0 | BE133: =$AT$91/'Fixed Data'!$E$11 -> 0 | BF133: =$AT$91/'Fixed Data'!$E$11 -> 0 | BG133: =$AT$91/'Fixed Data'!$E$11 -> 0 | BH133: =$AT$91/'Fixed Data'!$E$11 -> 0 | BI133: =$AT$91/'Fixed Data'!$E$11 -> 0 | BJ133: =$AT$91/'Fixed Data'!$E$11 -> 0 | BK133: =$AT$91/'Fixed Data'!$E$11 -> 0 | BL133: =$AT$91/'Fixed Data'!$E$11 -> 0 | BM133: =$AT$91/'Fixed Data'!$E$11 -> 0 | BN133: =$AT$91/'Fixed Data'!$E$11 -> 0 | BO133: =$AT$91/'Fixed Data'!$E$11 -> 0 | BP133: =$AT$91/'Fixed Data'!$E$11 -> 0 | BQ133: =$AT$91/'Fixed Data'!$E$11 -> 0 | BR133: =$AT$91/'Fixed Data'!$E$11 -> 0 | BS133: =$AT$91/'Fixed Data'!$E$11 -> 0 | BT133: =$AT$91/'Fixed Data'!$E$11 -> 0 | BU133: =$AT$91/'Fixed Data'!$E$11 -> 0 | BV133: =$AT$91/'Fixed Data'!$E$11 -> 0 | BW133: =$AT$91/'Fixed Data'!$E$11 -> 0 | BX133: =$AT$91/'Fixed Data'!$E$11 -> 0 | BY133: =$AT$91/'Fixed Data'!$E$11 -> 0 | BZ133: =$AT$91/'Fixed Data'!$E$11 -> 0 | CA133: =$AT$91/'Fixed Data'!$E$11 -> 0 | CB133: =$AT$91/'Fixed Data'!$E$11 -> 0 | CC133: =$AT$91/'Fixed Data'!$E$11 -> 0 | CD133: =$AT$91/'Fixed Data'!$E$11 -> 0 | CE133: =$AT$91/'Fixed Data'!$E$11 -> 0 | CF133: =$AT$91/'Fixed Data'!$E$11 -> 0 | CG133: =$AT$91/'Fixed Data'!$E$11 -> 0 | CH133: =$AT$91/'Fixed Data'!$E$11 -> 0
B134: 2061 Depreciation | C134: (5)2061=(3)2061*Dep_ratet | D134: £m | AV134: =$AU$91/'Fixed Data'!$E$11 -> 0 | AW134: =$AU$91/'Fixed Data'!$E$11 -> 0 | AX134: =$AU$91/'Fixed Data'!$E$11 -> 0 | AY134: =$AU$91/'Fixed Data'!$E$11 -> 0 | AZ134: =$AU$91/'Fixed Data'!$E$11 -> 0 | BA134: =$AU$91/'Fixed Data'!$E$11 -> 0 | BB134: =$AU$91/'Fixed Data'!$E$11 -> 0 | BC134: =$AU$91/'Fixed Data'!$E$11 -> 0 | BD134: =$AU$91/'Fixed Data'!$E$11 -> 0 | BE134: =$AU$91/'Fixed Data'!$E$11 -> 0 | BF134: =$AU$91/'Fixed Data'!$E$11 -> 0 | BG134: =$AU$91/'Fixed Data'!$E$11 -> 0 | BH134: =$AU$91/'Fixed Data'!$E$11 -> 0 | BI134: =$AU$91/'Fixed Data'!$E$11 -> 0 | BJ134: =$AU$91/'Fixed Data'!$E$11 -> 0 | BK134: =$AU$91/'Fixed Data'!$E$11 -> 0 | BL134: =$AU$91/'Fixed Data'!$E$11 -> 0 | BM134: =$AU$91/'Fixed Data'!$E$11 -> 0 | BN134: =$AU$91/'Fixed Data'!$E$11 -> 0 | BO134: =$AU$91/'Fixed Data'!$E$11 -> 0 | BP134: =$AU$91/'Fixed Data'!$E$11 -> 0 | BQ134: =$AU$91/'Fixed Data'!$E$11 -> 0 | BR134: =$AU$91/'Fixed Data'!$E$11 -> 0 | BS134: =$AU$91/'Fixed Data'!$E$11 -> 0 | BT134: =$AU$91/'Fixed Data'!$E$11 -> 0 | BU134: =$AU$91/'Fixed Data'!$E$11 -> 0 | BV134: =$AU$91/'Fixed Data'!$E$11 -> 0 | BW134: =$AU$91/'Fixed Data'!$E$11 -> 0 | BX134: =$AU$91/'Fixed Data'!$E$11 -> 0 | BY134: =$AU$91/'Fixed Data'!$E$11 -> 0 | BZ134: =$AU$91/'Fixed Data'!$E$11 -> 0 | CA134: =$AU$91/'Fixed Data'!$E$11 -> 0 | CB134: =$AU$91/'Fixed Data'!$E$11 -> 0 | CC134: =$AU$91/'Fixed Data'!$E$11 -> 0 | CD134: =$AU$91/'Fixed Data'!$E$11 -> 0 | CE134: =$AU$91/'Fixed Data'!$E$11 -> 0 | CF134: =$AU$91/'Fixed Data'!$E$11 -> 0 | CG134: =$AU$91/'Fixed Data'!$E$11 -> 0 | CH134: =$AU$91/'Fixed Data'!$E$11 -> 0
B135: 2062 Depreciation | C135: (5)2062=(3)2062*Dep_ratet | D135: £m | AW135: =$AV$91/'Fixed Data'!$E$11 -> 0 | AX135: =$AV$91/'Fixed Data'!$E$11 -> 0 | AY135: =$AV$91/'Fixed Data'!$E$11 -> 0 | AZ135: =$AV$91/'Fixed Data'!$E$11 -> 0 | BA135: =$AV$91/'Fixed Data'!$E$11 -> 0 | BB135: =$AV$91/'Fixed Data'!$E$11 -> 0 | BC135: =$AV$91/'Fixed Data'!$E$11 -> 0 | BD135: =$AV$91/'Fixed Data'!$E$11 -> 0 | BE135: =$AV$91/'Fixed Data'!$E$11 -> 0 | BF135: =$AV$91/'Fixed Data'!$E$11 -> 0 | BG135: =$AV$91/'Fixed Data'!$E$11 -> 0 | BH135: =$AV$91/'Fixed Data'!$E$11 -> 0 | BI135: =$AV$91/'Fixed Data'!$E$11 -> 0 | BJ135: =$AV$91/'Fixed Data'!$E$11 -> 0 | BK135: =$AV$91/'Fixed Data'!$E$11 -> 0 | BL135: =$AV$91/'Fixed Data'!$E$11 -> 0 | BM135: =$AV$91/'Fixed Data'!$E$11 -> 0 | BN135: =$AV$91/'Fixed Data'!$E$11 -> 0 | BO135: =$AV$91/'Fixed Data'!$E$11 -> 0 | BP135: =$AV$91/'Fixed Data'!$E$11 -> 0 | BQ135: =$AV$91/'Fixed Data'!$E$11 -> 0 | BR135: =$AV$91/'Fixed Data'!$E$11 -> 0 | BS135: =$AV$91/'Fixed Data'!$E$11 -> 0 | BT135: =$AV$91/'Fixed Data'!$E$11 -> 0 | BU135: =$AV$91/'Fixed Data'!$E$11 -> 0 | BV135: =$AV$91/'Fixed Data'!$E$11 -> 0 | BW135: =$AV$91/'Fixed Data'!$E$11 -> 0 | BX135: =$AV$91/'Fixed Data'!$E$11 -> 0 | BY135: =$AV$91/'Fixed Data'!$E$11 -> 0 | BZ135: =$AV$91/'Fixed Data'!$E$11 -> 0 | CA135: =$AV$91/'Fixed Data'!$E$11 -> 0 | CB135: =$AV$91/'Fixed Data'!$E$11 -> 0 | CC135: =$AV$91/'Fixed Data'!$E$11 -> 0 | CD135: =$AV$91/'Fixed Data'!$E$11 -> 0 | CE135: =$AV$91/'Fixed Data'!$E$11 -> 0 | CF135: =$AV$91/'Fixed Data'!$E$11 -> 0 | CG135: =$AV$91/'Fixed Data'!$E$11 -> 0 | CH135: =$AV$91/'Fixed Data'!$E$11 -> 0
B136: 2063 Depreciation | C136: (5)2063=(3)2063*Dep_ratet | D136: £m | AX136: =$AW$91/'Fixed Data'!$E$11 -> 0 | AY136: =$AW$91/'Fixed Data'!$E$11 -> 0 | AZ136: =$AW$91/'Fixed Data'!$E$11 -> 0 | BA136: =$AW$91/'Fixed Data'!$E$11 -> 0 | BB136: =$AW$91/'Fixed Data'!$E$11 -> 0 | BC136: =$AW$91/'Fixed Data'!$E$11 -> 0 | BD136: =$AW$91/'Fixed Data'!$E$11 -> 0 | BE136: =$AW$91/'Fixed Data'!$E$11 -> 0 | BF136: =$AW$91/'Fixed Data'!$E$11 -> 0 | BG136: =$AW$91/'Fixed Data'!$E$11 -> 0 | BH136: =$AW$91/'Fixed Data'!$E$11 -> 0 | BI136: =$AW$91/'Fixed Data'!$E$11 -> 0 | BJ136: =$AW$91/'Fixed Data'!$E$11 -> 0 | BK136: =$AW$91/'Fixed Data'!$E$11 -> 0 | BL136: =$AW$91/'Fixed Data'!$E$11 -> 0 | BM136: =$AW$91/'Fixed Data'!$E$11 -> 0 | BN136: =$AW$91/'Fixed Data'!$E$11 -> 0 | BO136: =$AW$91/'Fixed Data'!$E$11 -> 0 | BP136: =$AW$91/'Fixed Data'!$E$11 -> 0 | BQ136: =$AW$91/'Fixed Data'!$E$11 -> 0 | BR136: =$AW$91/'Fixed Data'!$E$11 -> 0 | BS136: =$AW$91/'Fixed Data'!$E$11 -> 0 | BT136: =$AW$91/'Fixed Data'!$E$11 -> 0 | BU136: =$AW$91/'Fixed Data'!$E$11 -> 0 | BV136: =$AW$91/'Fixed Data'!$E$11 -> 0 | BW136: =$AW$91/'Fixed Data'!$E$11 -> 0 | BX136: =$AW$91/'Fixed Data'!$E$11 -> 0 | BY136: =$AW$91/'Fixed Data'!$E$11 -> 0 | BZ136: =$AW$91/'Fixed Data'!$E$11 -> 0 | CA136: =$AW$91/'Fixed Data'!$E$11 -> 0 | CB136: =$AW$91/'Fixed Data'!$E$11 -> 0 | CC136: =$AW$91/'Fixed Data'!$E$11 -> 0 | CD136: =$AW$91/'Fixed Data'!$E$11 -> 0 | CE136: =$AW$91/'Fixed Data'!$E$11 -> 0 | CF136: =$AW$91/'Fixed Data'!$E$11 -> 0 | CG136: =$AW$91/'Fixed Data'!$E$11 -> 0 | CH136: =$AW$91/'Fixed Data'!$E$11 -> 0
B137: 2064 Depreciation | C137: (5)2064=(3)2064*Dep_ratet | D137: £m | AY137: =$AX$91/'Fixed Data'!$E$11 -> 0 | AZ137: =$AX$91/'Fixed Data'!$E$11 -> 0 | BA137: =$AX$91/'Fixed Data'!$E$11 -> 0 | BB137: =$AX$91/'Fixed Data'!$E$11 -> 0 | BC137: =$AX$91/'Fixed Data'!$E$11 -> 0 | BD137: =$AX$91/'Fixed Data'!$E$11 -> 0 | BE137: =$AX$91/'Fixed Data'!$E$11 -> 0 | BF137: =$AX$91/'Fixed Data'!$E$11 -> 0 | BG137: =$AX$91/'Fixed Data'!$E$11 -> 0 | BH137: =$AX$91/'Fixed Data'!$E$11 -> 0 | BI137: =$AX$91/'Fixed Data'!$E$11 -> 0 | BJ137: =$AX$91/'Fixed Data'!$E$11 -> 0 | BK137: =$AX$91/'Fixed Data'!$E$11 -> 0 | BL137: =$AX$91/'Fixed Data'!$E$11 -> 0 | BM137: =$AX$91/'Fixed Data'!$E$11 -> 0 | BN137: =$AX$91/'Fixed Data'!$E$11 -> 0 | BO137: =$AX$91/'Fixed Data'!$E$11 -> 0 | BP137: =$AX$91/'Fixed Data'!$E$11 -> 0 | BQ137: =$AX$91/'Fixed Data'!$E$11 -> 0 | BR137: =$AX$91/'Fixed Data'!$E$11 -> 0 | BS137: =$AX$91/'Fixed Data'!$E$11 -> 0 | BT137: =$AX$91/'Fixed Data'!$E$11 -> 0 | BU137: =$AX$91/'Fixed Data'!$E$11 -> 0 | BV137: =$AX$91/'Fixed Data'!$E$11 -> 0 | BW137: =$AX$91/'Fixed Data'!$E$11 -> 0 | BX137: =$AX$91/'Fixed Data'!$E$11 -> 0 | BY137: =$AX$91/'Fixed Data'!$E$11 -> 0 | BZ137: =$AX$91/'Fixed Data'!$E$11 -> 0 | CA137: =$AX$91/'Fixed Data'!$E$11 -> 0 | CB137: =$AX$91/'Fixed Data'!$E$11 -> 0 | CC137: =$AX$91/'Fixed Data'!$E$11 -> 0 | CD137: =$AX$91/'Fixed Data'!$E$11 -> 0 | CE137: =$AX$91/'Fixed Data'!$E$11 -> 0 | CF137: =$AX$91/'Fixed Data'!$E$11 -> 0 | CG137: =$AX$91/'Fixed Data'!$E$11 -> 0 | CH137: =$AX$91/'Fixed Data'!$E$11 -> 0
B138: 2065 Depreciation | C138: (5)2065=(3)2065*Dep_ratet | D138: £m | AZ138: =$AY$91/'Fixed Data'!$E$11 -> 0 | BA138: =$AY$91/'Fixed Data'!$E$11 -> 0 | BB138: =$AY$91/'Fixed Data'!$E$11 -> 0 | BC138: =$AY$91/'Fixed Data'!$E$11 -> 0 | BD138: =$AY$91/'Fixed Data'!$E$11 -> 0 | BE138: =$AY$91/'Fixed Data'!$E$11 -> 0 | BF138: =$AY$91/'Fixed Data'!$E$11 -> 0 | BG138: =$AY$91/'Fixed Data'!$E$11 -> 0 | BH138: =$AY$91/'Fixed Data'!$E$11 -> 0 | BI138: =$AY$91/'Fixed Data'!$E$11 -> 0 | BJ138: =$AY$91/'Fixed Data'!$E$11 -> 0 | BK138: =$AY$91/'Fixed Data'!$E$11 -> 0 | BL138: =$AY$91/'Fixed Data'!$E$11 -> 0 | BM138: =$AY$91/'Fixed Data'!$E$11 -> 0 | BN138: =$AY$91/'Fixed Data'!$E$11 -> 0 | BO138: =$AY$91/'Fixed Data'!$E$11 -> 0 | BP138: =$AY$91/'Fixed Data'!$E$11 -> 0 | BQ138: =$AY$91/'Fixed Data'!$E$11 -> 0 | BR138: =$AY$91/'Fixed Data'!$E$11 -> 0 | BS138: =$AY$91/'Fixed Data'!$E$11 -> 0 | BT138: =$AY$91/'Fixed Data'!$E$11 -> 0 | BU138: =$AY$91/'Fixed Data'!$E$11 -> 0 | BV138: =$AY$91/'Fixed Data'!$E$11 -> 0 | BW138: =$AY$91/'Fixed Data'!$E$11 -> 0 | BX138: =$AY$91/'Fixed Data'!$E$11 -> 0 | BY138: =$AY$91/'Fixed Data'!$E$11 -> 0 | BZ138: =$AY$91/'Fixed Data'!$E$11 -> 0 | CA138: =$AY$91/'Fixed Data'!$E$11 -> 0 | CB138: =$AY$91/'Fixed Data'!$E$11 -> 0 | CC138: =$AY$91/'Fixed Data'!$E$11 -> 0 | CD138: =$AY$91/'Fixed Data'!$E$11 -> 0 | CE138: =$AY$91/'Fixed Data'!$E$11 -> 0 | CF138: =$AY$91/'Fixed Data'!$E$11 -> 0 | CG138: =$AY$91/'Fixed Data'!$E$11 -> 0 | CH138: =$AY$91/'Fixed Data'!$E$11 -> 0
B139: 2066 Depreciation | C139: (5)2066=(3)2066*Dep_ratet | D139: £m | BA139: =$AZ$91/'Fixed Data'!$E$11 -> 0 | BB139: =$AZ$91/'Fixed Data'!$E$11 -> 0 | BC139: =$AZ$91/'Fixed Data'!$E$11 -> 0 | BD139: =$AZ$91/'Fixed Data'!$E$11 -> 0 | BE139: =$AZ$91/'Fixed Data'!$E$11 -> 0 | BF139: =$AZ$91/'Fixed Data'!$E$11 -> 0 | BG139: =$AZ$91/'Fixed Data'!$E$11 -> 0 | BH139: =$AZ$91/'Fixed Data'!$E$11 -> 0 | BI139: =$AZ$91/'Fixed Data'!$E$11 -> 0 | BJ139: =$AZ$91/'Fixed Data'!$E$11 -> 0 | BK139: =$AZ$91/'Fixed Data'!$E$11 -> 0 | BL139: =$AZ$91/'Fixed Data'!$E$11 -> 0 | BM139: =$AZ$91/'Fixed Data'!$E$11 -> 0 | BN139: =$AZ$91/'Fixed Data'!$E$11 -> 0 | BO139: =$AZ$91/'Fixed Data'!$E$11 -> 0 | BP139: =$AZ$91/'Fixed Data'!$E$11 -> 0 | BQ139: =$AZ$91/'Fixed Data'!$E$11 -> 0 | BR139: =$AZ$91/'Fixed Data'!$E$11 -> 0 | BS139: =$AZ$91/'Fixed Data'!$E$11 -> 0 | BT139: =$AZ$91/'Fixed Data'!$E$11 -> 0 | BU139: =$AZ$91/'Fixed Data'!$E$11 -> 0 | BV139: =$AZ$91/'Fixed Data'!$E$11 -> 0 | BW139: =$AZ$91/'Fixed Data'!$E$11 -> 0 | BX139: =$AZ$91/'Fixed Data'!$E$11 -> 0 | BY139: =$AZ$91/'Fixed Data'!$E$11 -> 0 | BZ139: =$AZ$91/'Fixed Data'!$E$11 -> 0 | CA139: =$AZ$91/'Fixed Data'!$E$11 -> 0 | CB139: =$AZ$91/'Fixed Data'!$E$11 -> 0 | CC139: =$AZ$91/'Fixed Data'!$E$11 -> 0 | CD139: =$AZ$91/'Fixed Data'!$E$11 -> 0 | CE139: =$AZ$91/'Fixed Data'!$E$11 -> 0 | CF139: =$AZ$91/'Fixed Data'!$E$11 -> 0 | CG139: =$AZ$91/'Fixed Data'!$E$11 -> 0 | CH139: =$AZ$91/'Fixed Data'!$E$11 -> 0
B140: 2067 Depreciation | C140: (5)2067=(3)2067*Dep_ratet | D140: £m | BB140: =$BA$91/'Fixed Data'!$E$11 -> 0 | BC140: =$BA$91/'Fixed Data'!$E$11 -> 0 | BD140: =$BA$91/'Fixed Data'!$E$11 -> 0 | BE140: =$BA$91/'Fixed Data'!$E$11 -> 0 | BF140: =$BA$91/'Fixed Data'!$E$11 -> 0 | BG140: =$BA$91/'Fixed Data'!$E$11 -> 0 | BH140: =$BA$91/'Fixed Data'!$E$11 -> 0 | BI140: =$BA$91/'Fixed Data'!$E$11 -> 0 | BJ140: =$BA$91/'Fixed Data'!$E$11 -> 0 | BK140: =$BA$91/'Fixed Data'!$E$11 -> 0 | BL140: =$BA$91/'Fixed Data'!$E$11 -> 0 | BM140: =$BA$91/'Fixed Data'!$E$11 -> 0 | BN140: =$BA$91/'Fixed Data'!$E$11 -> 0 | BO140: =$BA$91/'Fixed Data'!$E$11 -> 0 | BP140: =$BA$91/'Fixed Data'!$E$11 -> 0 | BQ140: =$BA$91/'Fixed Data'!$E$11 -> 0 | BR140: =$BA$91/'Fixed Data'!$E$11 -> 0 | BS140: =$BA$91/'Fixed Data'!$E$11 -> 0 | BT140: =$BA$91/'Fixed Data'!$E$11 -> 0 | BU140: =$BA$91/'Fixed Data'!$E$11 -> 0 | BV140: =$BA$91/'Fixed Data'!$E$11 -> 0 | BW140: =$BA$91/'Fixed Data'!$E$11 -> 0 | BX140: =$BA$91/'Fixed Data'!$E$11 -> 0 | BY140: =$BA$91/'Fixed Data'!$E$11 -> 0 | BZ140: =$BA$91/'Fixed Data'!$E$11 -> 0 | CA140: =$BA$91/'Fixed Data'!$E$11 -> 0 | CB140: =$BA$91/'Fixed Data'!$E$11 -> 0 | CC140: =$BA$91/'Fixed Data'!$E$11 -> 0 | CD140: =$BA$91/'Fixed Data'!$E$11 -> 0 | CE140: =$BA$91/'Fixed Data'!$E$11 -> 0 | CF140: =$BA$91/'Fixed Data'!$E$11 -> 0 | CG140: =$BA$91/'Fixed Data'!$E$11 -> 0 | CH140: =$BA$91/'Fixed Data'!$E$11 -> 0
B141: 2068 Depreciation | C141: (5)2068=(3)2068*Dep_ratet | D141: £m | BC141: =$BB$91/'Fixed Data'!$E$11 -> 0 | BD141: =$BB$91/'Fixed Data'!$E$11 -> 0 | BE141: =$BB$91/'Fixed Data'!$E$11 -> 0 | BF141: =$BB$91/'Fixed Data'!$E$11 -> 0 | BG141: =$BB$91/'Fixed Data'!$E$11 -> 0 | BH141: =$BB$91/'Fixed Data'!$E$11 -> 0 | BI141: =$BB$91/'Fixed Data'!$E$11 -> 0 | BJ141: =$BB$91/'Fixed Data'!$E$11 -> 0 | BK141: =$BB$91/'Fixed Data'!$E$11 -> 0 | BL141: =$BB$91/'Fixed Data'!$E$11 -> 0 | BM141: =$BB$91/'Fixed Data'!$E$11 -> 0 | BN141: =$BB$91/'Fixed Data'!$E$11 -> 0 | BO141: =$BB$91/'Fixed Data'!$E$11 -> 0 | BP141: =$BB$91/'Fixed Data'!$E$11 -> 0 | BQ141: =$BB$91/'Fixed Data'!$E$11 -> 0 | BR141: =$BB$91/'Fixed Data'!$E$11 -> 0 | BS141: =$BB$91/'Fixed Data'!$E$11 -> 0 | BT141: =$BB$91/'Fixed Data'!$E$11 -> 0 | BU141: =$BB$91/'Fixed Data'!$E$11 -> 0 | BV141: =$BB$91/'Fixed Data'!$E$11 -> 0 | BW141: =$BB$91/'Fixed Data'!$E$11 -> 0 | BX141: =$BB$91/'Fixed Data'!$E$11 -> 0 | BY141: =$BB$91/'Fixed Data'!$E$11 -> 0 | BZ141: =$BB$91/'Fixed Data'!$E$11 -> 0 | CA141: =$BB$91/'Fixed Data'!$E$11 -> 0 | CB141: =$BB$91/'Fixed Data'!$E$11 -> 0 | CC141: =$BB$91/'Fixed Data'!$E$11 -> 0 | CD141: =$BB$91/'Fixed Data'!$E$11 -> 0 | CE141: =$BB$91/'Fixed Data'!$E$11 -> 0 | CF141: =$BB$91/'Fixed Data'!$E$11 -> 0 | CG141: =$BB$91/'Fixed Data'!$E$11 -> 0 | CH141: =$BB$91/'Fixed Data'!$E$11 -> 0
B142: 2069 Depreciation | C142: (5)2069=(3)2069*Dep_ratet | D142: £m | BD142: =$BC$91/'Fixed Data'!$E$11 -> 0 | BE142: =$BC$91/'Fixed Data'!$E$11 -> 0 | BF142: =$BC$91/'Fixed Data'!$E$11 -> 0 | BG142: =$BC$91/'Fixed Data'!$E$11 -> 0 | BH142: =$BC$91/'Fixed Data'!$E$11 -> 0 | BI142: =$BC$91/'Fixed Data'!$E$11 -> 0 | BJ142: =$BC$91/'Fixed Data'!$E$11 -> 0 | BK142: =$BC$91/'Fixed Data'!$E$11 -> 0 | BL142: =$BC$91/'Fixed Data'!$E$11 -> 0 | BM142: =$BC$91/'Fixed Data'!$E$11 -> 0 | BN142: =$BC$91/'Fixed Data'!$E$11 -> 0 | BO142: =$BC$91/'Fixed Data'!$E$11 -> 0 | BP142: =$BC$91/'Fixed Data'!$E$11 -> 0 | BQ142: =$BC$91/'Fixed Data'!$E$11 -> 0 | BR142: =$BC$91/'Fixed Data'!$E$11 -> 0 | BS142: =$BC$91/'Fixed Data'!$E$11 -> 0 | BT142: =$BC$91/'Fixed Data'!$E$11 -> 0 | BU142: =$BC$91/'Fixed Data'!$E$11 -> 0 | BV142: =$BC$91/'Fixed Data'!$E$11 -> 0 | BW142: =$BC$91/'Fixed Data'!$E$11 -> 0 | BX142: =$BC$91/'Fixed Data'!$E$11 -> 0 | BY142: =$BC$91/'Fixed Data'!$E$11 -> 0 | BZ142: =$BC$91/'Fixed Data'!$E$11 -> 0 | CA142: =$BC$91/'Fixed Data'!$E$11 -> 0 | CB142: =$BC$91/'Fixed Data'!$E$11 -> 0 | CC142: =$BC$91/'Fixed Data'!$E$11 -> 0 | CD142: =$BC$91/'Fixed Data'!$E$11 -> 0 | CE142: =$BC$91/'Fixed Data'!$E$11 -> 0 | CF142: =$BC$91/'Fixed Data'!$E$11 -> 0 | CG142: =$BC$91/'Fixed Data'!$E$11 -> 0 | CH142: =$BC$91/'Fixed Data'!$E$11 -> 0
B143: 2070 Depreciation | C143: (5)2070=(3)2070*Dep_ratet | D143: £m | BE143: =$BD$91/'Fixed Data'!$E$11 -> 0 | BF143: =$BD$91/'Fixed Data'!$E$11 -> 0 | BG143: =$BD$91/'Fixed Data'!$E$11 -> 0 | BH143: =$BD$91/'Fixed Data'!$E$11 -> 0 | BI143: =$BD$91/'Fixed Data'!$E$11 -> 0 | BJ143: =$BD$91/'Fixed Data'!$E$11 -> 0 | BK143: =$BD$91/'Fixed Data'!$E$11 -> 0 | BL143: =$BD$91/'Fixed Data'!$E$11 -> 0 | BM143: =$BD$91/'Fixed Data'!$E$11 -> 0 | BN143: =$BD$91/'Fixed Data'!$E$11 -> 0 | BO143: =$BD$91/'Fixed Data'!$E$11 -> 0 | BP143: =$BD$91/'Fixed Data'!$E$11 -> 0 | BQ143: =$BD$91/'Fixed Data'!$E$11 -> 0 | BR143: =$BD$91/'Fixed Data'!$E$11 -> 0 | BS143: =$BD$91/'Fixed Data'!$E$11 -> 0 | BT143: =$BD$91/'Fixed Data'!$E$11 -> 0 | BU143: =$BD$91/'Fixed Data'!$E$11 -> 0 | BV143: =$BD$91/'Fixed Data'!$E$11 -> 0 | BW143: =$BD$91/'Fixed Data'!$E$11 -> 0 | BX143: =$BD$91/'Fixed Data'!$E$11 -> 0 | BY143: =$BD$91/'Fixed Data'!$E$11 -> 0 | BZ143: =$BD$91/'Fixed Data'!$E$11 -> 0 | CA143: =$BD$91/'Fixed Data'!$E$11 -> 0 | CB143: =$BD$91/'Fixed Data'!$E$11 -> 0 | CC143: =$BD$91/'Fixed Data'!$E$11 -> 0 | CD143: =$BD$91/'Fixed Data'!$E$11 -> 0 | CE143: =$BD$91/'Fixed Data'!$E$11 -> 0 | CF143: =$BD$91/'Fixed Data'!$E$11 -> 0 | CG143: =$BD$91/'Fixed Data'!$E$11 -> 0 | CH143: =$BD$91/'Fixed Data'!$E$11 -> 0
B144: 2071 Depreciation | C144: (5)2071=(3)2071*Dep_ratet | D144: £m | BF144: =$BE$91/'Fixed Data'!$E$11 -> 0
B145: Depreciation | C145: (5)=∑(5)t | D145: £m | E145: =SUM(E93:E144) -> 0 | F145: =SUM(F93:F144) -> 0 | G145: 0 | H145: 0 | I145: 0 | J145: 0 | K145: 0 | L145: 0 | M145: 0 | N145: 0 | O145: 0 | P145: 0 | Q145: 0 | R145: 0 | S145: 0 | T145: 0 | U145: 0 | V145: 0 | W145: 0 | X145: 0 | Y145: 0 | Z145: 0 | AA145: 0 | AB145: 0 | AC145: 0 | AD145: 0 | AE145: 0 | AF145: 0 | AG145: 0 | AH145: 0 | AI145: 0 | AJ145: 0 | AK145: 0 | AL145: 0 | AM145: 0 | AN145: 0 | AO145: 0 | AP145: 0 | AQ145: 0 | AR145: 0 | AS145: 0 | AT145: 0 | AU145: 0 | AV145: 0 | AW145: 0 | AX145: 0 | AY145: 0 | AZ145: 0 | BA145: 0 | BB145: 0 | BC145: 0 | BD145: 0 | BE145: 0 | BF145: 0 | BG145: 0 | BH145: 0 | BI145: 0 | BJ145: 0 | BK145: 0 | BL145: 0 | BM145: 0 | BN145: 0 | BO145: 0 | BP145: 0 | BQ145: 0 | BR145: =SUM(BR93:BR144) -> 0 | BS145: 0 | BT145: 0 | BU145: 0 | BV145: 0 | BW145: 0 | BX145: 0 | BY145: 0 | BZ145: 0 | CA145: 0 | CB145: 0 | CC145: 0 | CD145: 0 | CE145: 0 | CF145: 0 | CG145: 0 | CH145: 0
B146: Opening RAV balance | C146: (6op)t=(6cl)t-1 | D146: £m | E146: 0 | F146: 0 | G146: =F147 -> 0 | H146: =G147 -> 0 | I146: =H147 -> 0 | J146: 0 | K146: 0 | L146: 0 | M146: 0 | N146: 0 | O146: 0 | P146: 0 | Q146: 0 | R146: 0 | S146: 0 | T146: 0 | U146: 0 | V146: 0 | W146: 0 | X146: 0 | Y146: 0 | Z146: 0 | AA146: 0 | AB146: 0 | AC146: 0 | AD146: 0 | AE146: 0 | AF146: 0 | AG146: 0 | AH146: 0 | AI146: 0 | AJ146: 0 | AK146: 0 | AL146: 0 | AM146: 0 | AN146: 0 | AO146: 0 | AP146: 0 | AQ146: 0 | AR146: 0 | AS146: 0 | AT146: 0 | AU146: 0 | AV146: 0 | AW146: 0 | AX146: 0 | AY146: 0 | AZ146: 0 | BA146: 0 | BB146: 0 | BC146: 0 | BD146: 0 | BE146: 0 | BF146: 0 | BG146: 0 | BH146: 0 | BI146: 0 | BJ146: 0 | BK146: 0 | BL146: 0 | BM146: 0 | BN146: 0 | BO146: 0 | BP146: 0 | BQ146: 0 | BR146: 0 | BS146: 0 | BT146: 0 | BU146: =BT147 -> 0 | BV146: 0 | BW146: 0 | BX146: 0 | BY146: 0 | BZ146: 0 | CA146: 0 | CB146: 0 | CC146: 0 | CD146: 0 | CE146: 0 | CF146: 0 | CG146: 0 | CH146: 0
B147: Closing RAV balance | C147: (6cl)=(3)-(5)+(6op) | D147: £m | E147: =E91-E145+E146 -> 0 | F147: 0 | G147: 0 | H147: 0 | I147: 0 | J147: 0 | K147: 0 | L147: 0 | M147: 0 | N147: 0 | O147: 0 | P147: 0 | Q147: 0 | R147: 0 | S147: 0 | T147: 0 | U147: 0 | V147: 0 | W147: 0 | X147: 0 | Y147: 0 | Z147: 0 | AA147: 0 | AB147: 0 | AC147: 0 | AD147: 0 | AE147: 0 | AF147: 0 | AG147: 0 | AH147: 0 | AI147: 0 | AJ147: 0 | AK147: 0 | AL147: 0 | AM147: 0 | AN147: 0 | AO147: 0 | AP147: 0 | AQ147: 0 | AR147: 0 | AS147: 0 | AT147: 0 | AU147: 0 | AV147: 0 | AW147: 0 | AX147: 0 | AY147: 0 | AZ147: 0 | BA147: 0 | BB147: 0 | BC147: 0 | BD147: 0 | BE147: 0 | BF147: 0 | BG147: 0 | BH147: 0 | BI147: 0 | BJ147: 0 | BK147: 0 | BL147: 0 | BM147: 0 | BN147: 0 | BO147: 0 | BP147: 0 | BQ147: =BQ91-BQ145+BQ146 -> 0 | BR147: 0 | BS147: 0 | BT147: 0 | BU147: 0 | BV147: 0 | BW147: 0 | BX147: 0 | BY147: 0 | BZ147: 0 | CA147: 0 | CB147: 0 | CC147: 0 | CD147: 0 | CE147: 0 | CF147: 0 | CG147: 0 | CH147: 0
B148: Discounted RAV balance | C148: (6D)=(6cl)*(1/(1+WACC)) | D148: £m | E148: =E147*(1/(1+'Fixed Data'!$E$6)) -> 0 | F148: =F147*(1/(1+'Fixed Data'!$E$6)) -> 0 | G148: =G147*(1/(1+'Fixed Data'!$E$6)) -> 0 | H148: =H147*(1/(1+'Fixed Data'!$E$6)) -> 0 | I148: =I147*(1/(1+'Fixed Data'!$E$6)) -> 0 | J148: =J147*(1/(1+'Fixed Data'!$E$6)) -> 0 | K148: =K147*(1/(1+'Fixed Data'!$E$6)) -> 0 | L148: =L147*(1/(1+'Fixed Data'!$E$6)) -> 0 | M148: =M147*(1/(1+'Fixed Data'!$E$6)) -> 0 | N148: =N147*(1/(1+'Fixed Data'!$E$6)) -> 0 | O148: =O147*(1/(1+'Fixed Data'!$E$6)) -> 0 | P148: =P147*(1/(1+'Fixed Data'!$E$6)) -> 0 | Q148: =Q147*(1/(1+'Fixed Data'!$E$6)) -> 0 | R148: =R147*(1/(1+'Fixed Data'!$E$6)) -> 0 | S148: =S147*(1/(1+'Fixed Data'!$E$6)) -> 0 | T148: =T147*(1/(1+'Fixed Data'!$E$6)) -> 0 | U148: =U147*(1/(1+'Fixed Data'!$E$6)) -> 0 | V148: =V147*(1/(1+'Fixed Data'!$E$6)) -> 0 | W148: =W147*(1/(1+'Fixed Data'!$E$6)) -> 0 | X148: =X147*(1/(1+'Fixed Data'!$E$6)) -> 0 | Y148: =Y147*(1/(1+'Fixed Data'!$E$6)) -> 0 | Z148: =Z147*(1/(1+'Fixed Data'!$E$6)) -> 0 | AA148: =AA147*(1/(1+'Fixed Data'!$E$6)) -> 0 | AB148: =AB147*(1/(1+'Fixed Data'!$E$6)) -> 0 | AC148: =AC147*(1/(1+'Fixed Data'!$E$6)) -> 0 | AD148: =AD147*(1/(1+'Fixed Data'!$E$6)) -> 0 | AE148: =AE147*(1/(1+'Fixed Data'!$E$6)) -> 0 | AF148: =AF147*(1/(1+'Fixed Data'!$E$6)) -> 0 | AG148: =AG147*(1/(1+'Fixed Data'!$E$6)) -> 0 | AH148: =AH147*(1/(1+'Fixed Data'!$E$6)) -> 0 | AI148: =AI147*(1/(1+'Fixed Data'!$E$6)) -> 0 | AJ148: =AJ147*(1/(1+'Fixed Data'!$E$6)) -> 0 | AK148: =AK147*(1/(1+'Fixed Data'!$E$6)) -> 0 | AL148: =AL147*(1/(1+'Fixed Data'!$E$6)) -> 0 | AM148: =AM147*(1/(1+'Fixed Data'!$E$6)) -> 0 | AN148: =AN147*(1/(1+'Fixed Data'!$E$6)) -> 0 | AO148: =AO147*(1/(1+'Fixed Data'!$E$6)) -> 0 | AP148: =AP147*(1/(1+'Fixed Data'!$E$6)) -> 0 | AQ148: =AQ147*(1/(1+'Fixed Data'!$E$6)) -> 0 | AR148: =AR147*(1/(1+'Fixed Data'!$E$6)) -> 0 | AS148: =AS147*(1/(1+'Fixed Data'!$E$6)) -> 0 | AT148: =AT147*(1/(1+'Fixed Data'!$E$6)) -> 0 | AU148: =AU147*(1/(1+'Fixed Data'!$E$6)) -> 0 | AV148: =AV147*(1/(1+'Fixed Data'!$E$6)) -> 0 | AW148: =AW147*(1/(1+'Fixed Data'!$E$6)) -> 0 | AX148: =AX147*(1/(1+'Fixed Data'!$E$6)) -> 0 | AY148: =AY147*(1/(1+'Fixed Data'!$E$6)) -> 0 | AZ148: =AZ147*(1/(1+'Fixed Data'!$E$6)) -> 0 | BA148: =BA147*(1/(1+'Fixed Data'!$E$6)) -> 0 | BB148: =BB147*(1/(1+'Fixed Data'!$E$6)) -> 0 | BC148: =BC147*(1/(1+'Fixed Data'!$E$6)) -> 0 | BD148: =BD147*(1/(1+'Fixed Data'!$E$6)) -> 0 | BE148: =BE147*(1/(1+'Fixed Data'!$E$6)) -> 0 | BF148: =BF147*(1/(1+'Fixed Data'!$E$6)) -> 0
B149: Cost of Capital | C149: (6)=avg[(6cl),(6op)]xWACC | D149: £m | E149: =AVERAGE(E146,E148)*'Fixed Data'!$E$6 -> 0 | F149: =AVERAGE(F146,F148)*'Fixed Data'!$E$6 -> 0 | G149: =AVERAGE(G146,G148)*'Fixed Data'!$E$6 -> 0 | H149: =AVERAGE(H146,H148)*'Fixed Data'!$E$6 -> 0 | I149: =AVERAGE(I146,I148)*'Fixed Data'!$E$6 -> 0 | J149: =AVERAGE(J146,J148)*'Fixed Data'!$E$6 -> 0 | K149: =AVERAGE(K146,K148)*'Fixed Data'!$E$6 -> 0 | L149: =AVERAGE(L146,L148)*'Fixed Data'!$E$6 -> 0 | M149: =AVERAGE(M146,M148)*'Fixed Data'!$E$6 -> 0 | N149: =AVERAGE(N146,N148)*'Fixed Data'!$E$6 -> 0 | O149: =AVERAGE(O146,O148)*'Fixed Data'!$E$6 -> 0 | P149: =AVERAGE(P146,P148)*'Fixed Data'!$E$6 -> 0 | Q149: =AVERAGE(Q146,Q148)*'Fixed Data'!$E$6 -> 0 | R149: =AVERAGE(R146,R148)*'Fixed Data'!$E$6 -> 0 | S149: =AVERAGE(S146,S148)*'Fixed Data'!$E$6 -> 0 | T149: =AVERAGE(T146,T148)*'Fixed Data'!$E$6 -> 0 | U149: =AVERAGE(U146,U148)*'Fixed Data'!$E$6 -> 0 | V149: =AVERAGE(V146,V148)*'Fixed Data'!$E$6 -> 0 | W149: =AVERAGE(W146,W148)*'Fixed Data'!$E$6 -> 0 | X149: =AVERAGE(X146,X148)*'Fixed Data'!$E$6 -> 0 | Y149: =AVERAGE(Y146,Y148)*'Fixed Data'!$E$6 -> 0 | Z149: =AVERAGE(Z146,Z148)*'Fixed Data'!$E$6 -> 0 | AA149: =AVERAGE(AA146,AA148)*'Fixed Data'!$E$6 -> 0 | AB149: =AVERAGE(AB146,AB148)*'Fixed Data'!$E$6 -> 0 | AC149: =AVERAGE(AC146,AC148)*'Fixed Data'!$E$6 -> 0 | AD149: =AVERAGE(AD146,AD148)*'Fixed Data'!$E$6 -> 0 | AE149: =AVERAGE(AE146,AE148)*'Fixed Data'!$E$6 -> 0 | AF149: =AVERAGE(AF146,AF148)*'Fixed Data'!$E$6 -> 0 | AG149: =AVERAGE(AG146,AG148)*'Fixed Data'!$E$6 -> 0 | AH149: =AVERAGE(AH146,AH148)*'Fixed Data'!$E$6 -> 0 | AI149: =AVERAGE(AI146,AI148)*'Fixed Data'!$E$6 -> 0 | AJ149: =AVERAGE(AJ146,AJ148)*'Fixed Data'!$E$6 -> 0 | AK149: =AVERAGE(AK146,AK148)*'Fixed Data'!$E$6 -> 0 | AL149: =AVERAGE(AL146,AL148)*'Fixed Data'!$E$6 -> 0 | AM149: =AVERAGE(AM146,AM148)*'Fixed Data'!$E$6 -> 0 | AN149: =AVERAGE(AN146,AN148)*'Fixed Data'!$E$6 -> 0 | AO149: =AVERAGE(AO146,AO148)*'Fixed Data'!$E$6 -> 0 | AP149: =AVERAGE(AP146,AP148)*'Fixed Data'!$E$6 -> 0 | AQ149: =AVERAGE(AQ146,AQ148)*'Fixed Data'!$E$6 -> 0 | AR149: =AVERAGE(AR146,AR148)*'Fixed Data'!$E$6 -> 0 | AS149: =AVERAGE(AS146,AS148)*'Fixed Data'!$E$6 -> 0 | AT149: =AVERAGE(AT146,AT148)*'Fixed Data'!$E$6 -> 0 | AU149: =AVERAGE(AU146,AU148)*'Fixed Data'!$E$6 -> 0 | AV149: =AVERAGE(AV146,AV148)*'Fixed Data'!$E$6 -> 0 | AW149: =AVERAGE(AW146,AW148)*'Fixed Data'!$E$6 -> 0 | AX149: =AVERAGE(AX146,AX148)*'Fixed Data'!$E$6 -> 0 | AY149: =AVERAGE(AY146,AY148)*'Fixed Data'!$E$6 -> 0 | AZ149: =AVERAGE(AZ146,AZ148)*'Fixed Data'!$E$6 -> 0 | BA149: =AVERAGE(BA146,BA148)*'Fixed Data'!$E$6 -> 0 | BB149: =AVERAGE(BB146,BB148)*'Fixed Data'!$E$6 -> 0 | BC149: =AVERAGE(BC146,BC148)*'Fixed Data'!$E$6 -> 0 | BD149: =AVERAGE(BD146,BD148)*'Fixed Data'!$E$6 -> 0 | BE149: =AVERAGE(BE146,BE148)*'Fixed Data'!$E$6 -> 0 | BF149: =AVERAGE(BF146,BF148)*'Fixed Data'!$E$6 -> 0 | BG149: =AVERAGE(BG146:BG147)*'Fixed Data'!$E$6 -> 0 | BH149: =AVERAGE(BH146:BH147)*'Fixed Data'!$E$6 -> 0 | BI149: =AVERAGE(BI146:BI147)*'Fixed Data'!$E$6 -> 0 | BJ149: =AVERAGE(BJ146:BJ147)*'Fixed Data'!$E$6 -> 0 | BK149: =AVERAGE(BK146:BK147)*'Fixed Data'!$E$6 -> 0 | BL149: =AVERAGE(BL146:BL147)*'Fixed Data'!$E$6 -> 0 | BM149: =AVERAGE(BM146:BM147)*'Fixed Data'!$E$6 -> 0 | BN149: =AVERAGE(BN146:BN147)*'Fixed Data'!$E$6 -> 0 | BO149: =AVERAGE(BO146:BO147)*'Fixed Data'!$E$6 -> 0 | BP149: =AVERAGE(BP146:BP147)*'Fixed Data'!$E$6 -> 0 | BQ149: =AVERAGE(BQ146:BQ147)*'Fixed Data'!$E$6 -> 0 | BR149: =AVERAGE(BR146:BR147)*'Fixed Data'!$E$6 -> 0 | BS149: =AVERAGE(BS146:BS147)*'Fixed Data'!$E$6 -> 0 | BT149: =AVERAGE(BT146:BT147)*'Fixed Data'!$E$6 -> 0 | BU149: =AVERAGE(BU146:BU147)*'Fixed Data'!$E$6 -> 0 | BV149: =AVERAGE(BV146:BV147)*'Fixed Data'!$E$6 -> 0 | BW149: =AVERAGE(BW146:BW147)*'Fixed Data'!$E$6 -> 0 | BX149: =AVERAGE(BX146:BX147)*'Fixed Data'!$E$6 -> 0 | BY149: =AVERAGE(BY146:BY147)*'Fixed Data'!$E$6 -> 0 | BZ149: =AVERAGE(BZ146:BZ147)*'Fixed Data'!$E$6 -> 0 | CA149: =AVERAGE(CA146:CA147)*'Fixed Data'!$E$6 -> 0 | CB149: =AVERAGE(CB146:CB147)*'Fixed Data'!$E$6 -> 0 | CC149: =AVERAGE(CC146:CC147)*'Fixed Data'!$E$6 -> 0 | CD149: =AVERAGE(CD146:CD147)*'Fixed Data'!$E$6 -> 0 | CE149: =AVERAGE(CE146:CE147)*'Fixed Data'!$E$6 -> 0 | CF149: =AVERAGE(CF146:CF147)*'Fixed Data'!$E$6 -> 0 | CG149: =AVERAGE(CG146:CG147)*'Fixed Data'!$E$6 -> 0 | CH149: =AVERAGE(CH146:CH147)*'Fixed Data'!$E$6 -> 0
B150: Total Net TO benefits | C150: (7)=(4)+(5)+(6) | D150: £m | E150: =E92+E145+E149 -> 0 | F150: 0 | G150: 0 | H150: 0 | I150: 0 | J150: 0 | K150: 0 | L150: 0 | M150: 0 | N150: 0 | O150: 0 | P150: 0 | Q150: 0 | R150: 0 | S150: 0 | T150: 0 | U150: 0 | V150: 0 | W150: 0 | X150: 0 | Y150: 0 | Z150: 0 | AA150: 0 | AB150: 0 | AC150: 0 | AD150: 0 | AE150: 0 | AF150: 0 | AG150: 0 | AH150: 0 | AI150: 0 | AJ150: 0 | AK150: =AK92+AK145+AK149 -> 0 | AL150: 0 | AM150: 0 | AN150: 0 | AO150: 0 | AP150: 0 | AQ150: 0 | AR150: 0 | AS150: 0 | AT150: 0 | AU150: 0 | AV150: 0 | AW150: 0 | AX150: 0 | AY150: 0 | AZ150: 0 | BA150: 0 | BB150: 0 | BC150: 0 | BD150: 0 | BE150: 0 | BF150: 0 | BG150: 0 | BH150: 0 | BI150: 0 | BJ150: 0 | BK150: 0 | BL150: 0 | BM150: 0 | BN150: 0 | BO150: 0 | BP150: 0 | BQ150: =BQ92+BQ145+BQ149 -> 0 | BR150: 0 | BS150: 0 | BT150: 0 | BU150: 0 | BV150: 0 | BW150: 0 | BX150: 0 | BY150: 0 | BZ150: 0 | CA150: 0 | CB150: 0 | CC150: 0 | CD150: 0 | CE150: 0 | CF150: 0 | CG150: 0 | CH150: 0
A153: Societal benefits (£m) | B153: NOx Emissions | D153: £m | E153: ='Fixed Data'!$K$7*E166/1000000 -> 0 | F153: ='Fixed Data'!$K$5*F166/1000000 -> 0 | G153: ='Fixed Data'!$K$5*G166/1000000 -> 0 | H153: ='Fixed Data'!$K$5*H166/1000000 -> 0 | I153: ='Fixed Data'!$K$5*I166/1000000 -> 0 | J153: ='Fixed Data'!$K$5*J166/1000000 -> 0 | K153: ='Fixed Data'!$K$5*K166/1000000 -> 0 | L153: ='Fixed Data'!$K$5*L166/1000000 -> 0 | M153: ='Fixed Data'!$K$5*M166/1000000 -> 0 | N153: ='Fixed Data'!$K$5*N166/1000000 -> 0 | O153: ='Fixed Data'!$K$5*O166/1000000 -> 0 | P153: ='Fixed Data'!$K$5*P166/1000000 -> 0 | Q153: ='Fixed Data'!$K$5*Q166/1000000 -> 0 | R153: ='Fixed Data'!$K$5*R166/1000000 -> 0 | S153: ='Fixed Data'!$K$5*S166/1000000 -> 0 | T153: ='Fixed Data'!$K$5*T166/1000000 -> 0 | U153: ='Fixed Data'!$K$5*U166/1000000 -> 0 | V153: ='Fixed Data'!$K$5*V166/1000000 -> 0 | W153: ='Fixed Data'!$K$5*W166/1000000 -> 0 | X153: ='Fixed Data'!$K$5*X166/1000000 -> 0 | Y153: ='Fixed Data'!$K$5*Y166/1000000 -> 0 | Z153: ='Fixed Data'!$K$5*Z166/1000000 -> 0 | AA153: ='Fixed Data'!$K$5*AA166/1000000 -> 0 | AB153: ='Fixed Data'!$K$5*AB166/1000000 -> 0 | AC153: ='Fixed Data'!$K$5*AC166/1000000 -> 0 | AD153: ='Fixed Data'!$K$5*AD166/1000000 -> 0 | AE153: ='Fixed Data'!$K$5*AE166/1000000 -> 0 | AF153: ='Fixed Data'!$K$5*AF166/1000000 -> 0 | AG153: ='Fixed Data'!$K$5*AG166/1000000 -> 0 | AH153: ='Fixed Data'!$K$5*AH166/1000000 -> 0 | AI153: ='Fixed Data'!$K$5*AI166/1000000 -> 0 | AJ153: ='Fixed Data'!$K$5*AJ166/1000000 -> 0 | AK153: ='Fixed Data'!$K$5*AK166/1000000 -> 0 | AL153: ='Fixed Data'!$K$5*AL166/1000000 -> 0 | AM153: ='Fixed Data'!$K$5*AM166/1000000 -> 0 | AN153: ='Fixed Data'!$K$5*AN166/1000000 -> 0 | AO153: ='Fixed Data'!$K$5*AO166/1000000 -> 0 | AP153: ='Fixed Data'!$K$5*AP166/1000000 -> 0 | AQ153: ='Fixed Data'!$K$5*AQ166/1000000 -> 0 | AR153: ='Fixed Data'!$K$5*AR166/1000000 -> 0 | AS153: ='Fixed Data'!$K$5*AS166/1000000 -> 0 | AT153: ='Fixed Data'!$K$5*AT166/1000000 -> 0 | AU153: ='Fixed Data'!$K$5*AU166/1000000 -> 0 | AV153: ='Fixed Data'!$K$5*AV166/1000000 -> 0 | AW153: ='Fixed Data'!$K$5*AW166/1000000 -> 0 | AX153: ='Fixed Data'!$K$5*AX166/1000000 -> 0 | AY153: ='Fixed Data'!$K$5*AY166/1000000 -> 0 | AZ153: ='Fixed Data'!$K$5*AZ166/1000000 -> 0 | BA153: ='Fixed Data'!$K$5*BA166/1000000 -> 0 | BB153: ='Fixed Data'!$K$5*BB166/1000000 -> 0 | BC153: ='Fixed Data'!$K$5*BC166/1000000 -> 0 | BD153: ='Fixed Data'!$K$5*BD166/1000000 -> 0 | BE153: ='Fixed Data'!$K$5*BE166/1000000 -> 0 | BF153: ='Fixed Data'!$K$5*BF166/1000000 -> 0 | BG153: ='Fixed Data'!$K$7*BG166/1000000 -> 0 | BH153: ='Fixed Data'!$K$7*BH166/1000000 -> 0 | BI153: ='Fixed Data'!$K$7*BI166/1000000 -> 0 | BJ153: ='Fixed Data'!$K$7*BJ166/1000000 -> 0 | BK153: ='Fixed Data'!$K$7*BK166/1000000 -> 0 | BL153: ='Fixed Data'!$K$7*BL166/1000000 -> 0 | BM153: ='Fixed Data'!$K$7*BM166/1000000 -> 0 | BN153: ='Fixed Data'!$K$7*BN166/1000000 -> 0 | BO153: ='Fixed Data'!$K$7*BO166/1000000 -> 0 | BP153: ='Fixed Data'!$K$7*BP166/1000000 -> 0 | BQ153: ='Fixed Data'!$K$7*BQ166/1000000 -> 0 | BR153: ='Fixed Data'!$K$7*BR166/1000000 -> 0 | BS153: ='Fixed Data'!$K$7*BS166/1000000 -> 0 | BT153: ='Fixed Data'!$K$7*BT166/1000000 -> 0 | BU153: ='Fixed Data'!$K$7*BU166/1000000 -> 0 | BV153: ='Fixed Data'!$K$7*BV166/1000000 -> 0 | BW153: ='Fixed Data'!$K$7*BW166/1000000 -> 0 | BX153: ='Fixed Data'!$K$7*BX166/1000000 -> 0 | BY153: ='Fixed Data'!$K$7*BY166/1000000 -> 0 | BZ153: ='Fixed Data'!$K$7*BZ166/1000000 -> 0 | CA153: ='Fixed Data'!$K$7*CA166/1000000 -> 0 | CB153: ='Fixed Data'!$K$7*CB166/1000000 -> 0 | CC153: ='Fixed Data'!$K$7*CC166/1000000 -> 0 | CD153: ='Fixed Data'!$K$7*CD166/1000000 -> 0 | CE153: ='Fixed Data'!$K$7*CE166/1000000 -> 0 | CF153: ='Fixed Data'!$K$7*CF166/1000000 -> 0 | CG153: ='Fixed Data'!$K$7*CG166/1000000 -> 0 | CH153: ='Fixed Data'!$K$7*CH166/1000000 -> 0
B154: CO2 Emissions | D154: £m | E154: =E168*(VLOOKUP($F51,'Fixed Data'!$B$16:$F$107,5,FALSE)/1000000) -> 0 | F154: =F168*(VLOOKUP($F51,'Fixed Data'!$B$16:$F$107,5,FALSE)/1000000) -> 0 | G154: =G168*(VLOOKUP($F51,'Fixed Data'!$B$16:$F$107,5,FALSE)/1000000) -> 0 | H154: =H168*(VLOOKUP($F51,'Fixed Data'!$B$16:$F$107,5,FALSE)/1000000) -> 0 | I154: =I168*(VLOOKUP($F51,'Fixed Data'!$B$16:$F$107,5,FALSE)/1000000) -> 0 | J154: =J168*(VLOOKUP($F51,'Fixed Data'!$B$16:$F$107,5,FALSE)/1000000) -> 0 | K154: =K168*(VLOOKUP($F51,'Fixed Data'!$B$16:$F$107,5,FALSE)/1000000) -> 0 | L154: =L168*(VLOOKUP($F51,'Fixed Data'!$B$16:$F$107,5,FALSE)/1000000) -> 0 | M154: =M168*(VLOOKUP($F51,'Fixed Data'!$B$16:$F$107,5,FALSE)/1000000) -> 0 | N154: =N168*(VLOOKUP($F51,'Fixed Data'!$B$16:$F$107,5,FALSE)/1000000) -> 0 | O154: =O168*(VLOOKUP($F51,'Fixed Data'!$B$16:$F$107,5,FALSE)/1000000) -> 0 | P154: =P168*(VLOOKUP($F51,'Fixed Data'!$B$16:$F$107,5,FALSE)/1000000) -> 0 | Q154: =Q168*(VLOOKUP($F51,'Fixed Data'!$B$16:$F$107,5,FALSE)/1000000) -> 0 | R154: =R168*(VLOOKUP($F51,'Fixed Data'!$B$16:$F$107,5,FALSE)/1000000) -> 0 | S154: =S168*(VLOOKUP($F51,'Fixed Data'!$B$16:$F$107,5,FALSE)/1000000) -> 0 | T154: =T168*(VLOOKUP($F51,'Fixed Data'!$B$16:$F$107,5,FALSE)/1000000) -> 0 | U154: =U168*(VLOOKUP($F51,'Fixed Data'!$B$16:$F$107,5,FALSE)/1000000) -> 0 | V154: =V168*(VLOOKUP($F51,'Fixed Data'!$B$16:$F$107,5,FALSE)/1000000) -> 0 | W154: =W168*(VLOOKUP($F51,'Fixed Data'!$B$16:$F$107,5,FALSE)/1000000) -> 0 | X154: =X168*(VLOOKUP($F51,'Fixed Data'!$B$16:$F$107,5,FALSE)/1000000) -> 0 | Y154: =Y168*(VLOOKUP($F51,'Fixed Data'!$B$16:$F$107,5,FALSE)/1000000) -> 0 | Z154: =Z168*(VLOOKUP($F51,'Fixed Data'!$B$16:$F$107,5,FALSE)/1000000) -> 0 | AA154: =AA168*(VLOOKUP($F51,'Fixed Data'!$B$16:$F$107,5,FALSE)/1000000) -> 0 | AB154: =AB168*(VLOOKUP($F51,'Fixed Data'!$B$16:$F$107,5,FALSE)/1000000) -> 0 | AC154: =AC168*(VLOOKUP($F51,'Fixed Data'!$B$16:$F$107,5,FALSE)/1000000) -> 0 | AD154: =AD168*(VLOOKUP($F51,'Fixed Data'!$B$16:$F$107,5,FALSE)/1000000) -> 0 | AE154: =AE168*(VLOOKUP($F51,'Fixed Data'!$B$16:$F$107,5,FALSE)/1000000) -> 0 | AF154: =AF168*(VLOOKUP($F51,'Fixed Data'!$B$16:$F$107,5,FALSE)/1000000) -> 0 | AG154: =AG168*(VLOOKUP($F51,'Fixed Data'!$B$16:$F$107,5,FALSE)/1000000) -> 0 | AH154: =AH168*(VLOOKUP($F51,'Fixed Data'!$B$16:$F$107,5,FALSE)/1000000) -> 0 | AI154: =AI168*(VLOOKUP($F51,'Fixed Data'!$B$16:$F$107,5,FALSE)/1000000) -> 0 | AJ154: =AJ168*(VLOOKUP($F51,'Fixed Data'!$B$16:$F$107,5,FALSE)/1000000) -> 0 | AK154: =AK168*(VLOOKUP($F51,'Fixed Data'!$B$16:$F$107,5,FALSE)/1000000) -> 0 | AL154: =AL168*(VLOOKUP($F51,'Fixed Data'!$B$16:$F$107,5,FALSE)/1000000) -> 0 | AM154: =AM168*(VLOOKUP($F51,'Fixed Data'!$B$16:$F$107,5,FALSE)/1000000) -> 0 | AN154: =AN168*(VLOOKUP($F51,'Fixed Data'!$B$16:$F$107,5,FALSE)/1000000) -> 0 | AO154: =AO168*(VLOOKUP($F51,'Fixed Data'!$B$16:$F$107,5,FALSE)/1000000) -> 0 | AP154: =AP168*(VLOOKUP($F51,'Fixed Data'!$B$16:$F$107,5,FALSE)/1000000) -> 0 | AQ154: =AQ168*(VLOOKUP($F51,'Fixed Data'!$B$16:$F$107,5,FALSE)/1000000) -> 0 | AR154: =AR168*(VLOOKUP($F51,'Fixed Data'!$B$16:$F$107,5,FALSE)/1000000) -> 0 | AS154: =AS168*(VLOOKUP($F51,'Fixed Data'!$B$16:$F$107,5,FALSE)/1000000) -> 0 | AT154: =AT168*(VLOOKUP($F51,'Fixed Data'!$B$16:$F$107,5,FALSE)/1000000) -> 0 | AU154: =AU168*(VLOOKUP($F51,'Fixed Data'!$B$16:$F$107,5,FALSE)/1000000) -> 0 | AV154: =AV168*(VLOOKUP($F51,'Fixed Data'!$B$16:$F$107,5,FALSE)/1000000) -> 0 | AW154: =AW168*(VLOOKUP($F51,'Fixed Data'!$B$16:$F$107,5,FALSE)/1000000) -> 0 | AX154: =AX168*(VLOOKUP($F51,'Fixed Data'!$B$16:$F$107,5,FALSE)/1000000) -> 0 | AY154: =AY168*(VLOOKUP($F51,'Fixed Data'!$B$16:$F$107,5,FALSE)/1000000) -> 0 | AZ154: =AZ168*(VLOOKUP($F51,'Fixed Data'!$B$16:$F$107,5,FALSE)/1000000) -> 0 | BA154: =BA168*(VLOOKUP($F51,'Fixed Data'!$B$16:$F$107,5,FALSE)/1000000) -> 0 | BB154: =BB168*(VLOOKUP($F51,'Fixed Data'!$B$16:$F$107,5,FALSE)/1000000) -> 0 | BC154: =BC168*(VLOOKUP($F51,'Fixed Data'!$B$16:$F$107,5,FALSE)/1000000) -> 0 | BD154: =BD168*(VLOOKUP($F51,'Fixed Data'!$B$16:$F$107,5,FALSE)/1000000) -> 0 | BE154: =BE168*(VLOOKUP($F51,'Fixed Data'!$B$16:$F$107,5,FALSE)/1000000) -> 0 | BF154: =BF168*(VLOOKUP($F51,'Fixed Data'!$B$16:$F$107,5,FALSE)/1000000) -> 0 | BG154: =BG167*(VLOOKUP($F51,'Fixed Data'!$B$16:$F$107,5,FALSE)/1000000) -> 0 | BH154: =BH167*(VLOOKUP($F51,'Fixed Data'!$B$16:$F$107,5,FALSE)/1000000) -> 0 | BI154: =BI167*(VLOOKUP($F51,'Fixed Data'!$B$16:$F$107,5,FALSE)/1000000) -> 0 | BJ154: =BJ167*(VLOOKUP($F51,'Fixed Data'!$B$16:$F$107,5,FALSE)/1000000) -> 0 | BK154: =BK167*(VLOOKUP($F51,'Fixed Data'!$B$16:$F$107,5,FALSE)/1000000) -> 0 | BL154: =BL167*(VLOOKUP($F51,'Fixed Data'!$B$16:$F$107,5,FALSE)/1000000) -> 0 | BM154: =BM167*(VLOOKUP($F51,'Fixed Data'!$B$16:$F$107,5,FALSE)/1000000) -> 0 | BN154: =BN167*(VLOOKUP($F51,'Fixed Data'!$B$16:$F$107,5,FALSE)/1000000) -> 0 | BO154: =BO167*(VLOOKUP($F51,'Fixed Data'!$B$16:$F$107,5,FALSE)/1000000) -> 0 | BP154: =BP167*(VLOOKUP($F51,'Fixed Data'!$B$16:$F$107,5,FALSE)/1000000) -> 0 | BQ154: =BQ167*(VLOOKUP($F51,'Fixed Data'!$B$16:$F$107,5,FALSE)/1000000) -> 0 | BR154: =BR167*(VLOOKUP($F51,'Fixed Data'!$B$16:$F$107,5,FALSE)/1000000) -> 0 | BS154: =BS167*(VLOOKUP($F51,'Fixed Data'!$B$16:$F$107,5,FALSE)/1000000) -> 0 | BT154: =BT167*(VLOOKUP($F51,'Fixed Data'!$B$16:$F$107,5,FALSE)/1000000) -> 0 | BU154: =BU167*(VLOOKUP($F51,'Fixed Data'!$B$16:$F$107,5,FALSE)/1000000) -> 0 | BV154: =BV167*(VLOOKUP($F51,'Fixed Data'!$B$16:$F$107,5,FALSE)/1000000) -> 0 | BW154: =BW167*(VLOOKUP($F51,'Fixed Data'!$B$16:$F$107,5,FALSE)/1000000) -> 0 | BX154: =BX167*(VLOOKUP($F51,'Fixed Data'!$B$16:$F$107,5,FALSE)/1000000) -> 0 | BY154: =BY167*(VLOOKUP($F51,'Fixed Data'!$B$16:$F$107,5,FALSE)/1000000) -> 0 | BZ154: =BZ167*(VLOOKUP($F51,'Fixed Data'!$B$16:$F$107,5,FALSE)/1000000) -> 0 | CA154: =CA167*(VLOOKUP($F51,'Fixed Data'!$B$16:$F$107,5,FALSE)/1000000) -> 0 | CB154: =CB167*(VLOOKUP($F51,'Fixed Data'!$B$16:$F$107,5,FALSE)/1000000) -> 0 | CC154: =CC167*(VLOOKUP($F51,'Fixed Data'!$B$16:$F$107,5,FALSE)/1000000) -> 0 | CD154: =CD167*(VLOOKUP($F51,'Fixed Data'!$B$16:$F$107,5,FALSE)/1000000) -> 0 | CE154: =CE167*(VLOOKUP($F51,'Fixed Data'!$B$16:$F$107,5,FALSE)/1000000) -> 0 | CF154: =CF167*(VLOOKUP($F51,'Fixed Data'!$B$16:$F$107,5,FALSE)/1000000) -> 0 | CG154: =CG167*(VLOOKUP($F51,'Fixed Data'!$B$16:$F$107,5,FALSE)/1000000) -> 0 | CH154: =CH167*(VLOOKUP($F51,'Fixed Data'!$B$16:$F$107,5,FALSE)/1000000) -> 0
B155: Other GHG emissions (CO2e) - Methane | D155: £m | E155: =E169*(VLOOKUP($F51,'Fixed Data'!$B$16:$I$80,8,FALSE)/1000000) -> 0 | F155: =F169*(VLOOKUP($F51,'Fixed Data'!$B$16:$I$80,8,FALSE)/1000000) -> 0 | G155: =G169*(VLOOKUP($F51,'Fixed Data'!$B$16:$I$80,8,FALSE)/1000000) -> 0 | H155: =H169*(VLOOKUP($F51,'Fixed Data'!$B$16:$I$80,8,FALSE)/1000000) -> 0 | I155: =I169*(VLOOKUP($F51,'Fixed Data'!$B$16:$I$80,8,FALSE)/1000000) -> 0 | J155: =J169*(VLOOKUP($F51,'Fixed Data'!$B$16:$I$80,8,FALSE)/1000000) -> 0 | K155: =K169*(VLOOKUP($F51,'Fixed Data'!$B$16:$I$80,8,FALSE)/1000000) -> 0 | L155: =L169*(VLOOKUP($F51,'Fixed Data'!$B$16:$I$80,8,FALSE)/1000000) -> 0 | M155: =M169*(VLOOKUP($F51,'Fixed Data'!$B$16:$I$80,8,FALSE)/1000000) -> 0 | N155: =N169*(VLOOKUP($F51,'Fixed Data'!$B$16:$I$80,8,FALSE)/1000000) -> 0 | O155: =O169*(VLOOKUP($F51,'Fixed Data'!$B$16:$I$80,8,FALSE)/1000000) -> 0 | P155: =P169*(VLOOKUP($F51,'Fixed Data'!$B$16:$I$80,8,FALSE)/1000000) -> 0 | Q155: =Q169*(VLOOKUP($F51,'Fixed Data'!$B$16:$I$80,8,FALSE)/1000000) -> 0 | R155: =R169*(VLOOKUP($F51,'Fixed Data'!$B$16:$I$80,8,FALSE)/1000000) -> 0 | S155: =S169*(VLOOKUP($F51,'Fixed Data'!$B$16:$I$80,8,FALSE)/1000000) -> 0 | T155: =T169*(VLOOKUP($F51,'Fixed Data'!$B$16:$I$80,8,FALSE)/1000000) -> 0 | U155: =U169*(VLOOKUP($F51,'Fixed Data'!$B$16:$I$80,8,FALSE)/1000000) -> 0 | V155: =V169*(VLOOKUP($F51,'Fixed Data'!$B$16:$I$80,8,FALSE)/1000000) -> 0 | W155: =W169*(VLOOKUP($F51,'Fixed Data'!$B$16:$I$80,8,FALSE)/1000000) -> 0 | X155: =X169*(VLOOKUP($F51,'Fixed Data'!$B$16:$I$80,8,FALSE)/1000000) -> 0 | Y155: =Y169*(VLOOKUP($F51,'Fixed Data'!$B$16:$I$80,8,FALSE)/1000000) -> 0 | Z155: =Z169*(VLOOKUP($F51,'Fixed Data'!$B$16:$I$80,8,FALSE)/1000000) -> 0 | AA155: =AA169*(VLOOKUP($F51,'Fixed Data'!$B$16:$I$80,8,FALSE)/1000000) -> 0 | AB155: =AB169*(VLOOKUP($F51,'Fixed Data'!$B$16:$I$80,8,FALSE)/1000000) -> 0 | AC155: =AC169*(VLOOKUP($F51,'Fixed Data'!$B$16:$I$80,8,FALSE)/1000000) -> 0 | AD155: =AD169*(VLOOKUP($F51,'Fixed Data'!$B$16:$I$80,8,FALSE)/1000000) -> 0 | AE155: =AE169*(VLOOKUP($F51,'Fixed Data'!$B$16:$I$80,8,FALSE)/1000000) -> 0 | AF155: =AF169*(VLOOKUP($F51,'Fixed Data'!$B$16:$I$80,8,FALSE)/1000000) -> 0 | AG155: =AG169*(VLOOKUP($F51,'Fixed Data'!$B$16:$I$80,8,FALSE)/1000000) -> 0 | AH155: =AH169*(VLOOKUP($F51,'Fixed Data'!$B$16:$I$80,8,FALSE)/1000000) -> 0 | AI155: =AI169*(VLOOKUP($F51,'Fixed Data'!$B$16:$I$80,8,FALSE)/1000000) -> 0 | AJ155: =AJ169*(VLOOKUP($F51,'Fixed Data'!$B$16:$I$80,8,FALSE)/1000000) -> 0 | AK155: =AK169*(VLOOKUP($F51,'Fixed Data'!$B$16:$I$80,8,FALSE)/1000000) -> 0 | AL155: =AL169*(VLOOKUP($F51,'Fixed Data'!$B$16:$I$80,8,FALSE)/1000000) -> 0 | AM155: =AM169*(VLOOKUP($F51,'Fixed Data'!$B$16:$I$80,8,FALSE)/1000000) -> 0 | AN155: =AN169*(VLOOKUP($F51,'Fixed Data'!$B$16:$I$80,8,FALSE)/1000000) -> 0 | AO155: =AO169*(VLOOKUP($F51,'Fixed Data'!$B$16:$I$80,8,FALSE)/1000000) -> 0 | AP155: =AP169*(VLOOKUP($F51,'Fixed Data'!$B$16:$I$80,8,FALSE)/1000000) -> 0 | AQ155: =AQ169*(VLOOKUP($F51,'Fixed Data'!$B$16:$I$80,8,FALSE)/1000000) -> 0 | AR155: =AR169*(VLOOKUP($F51,'Fixed Data'!$B$16:$I$80,8,FALSE)/1000000) -> 0 | AS155: =AS169*(VLOOKUP($F51,'Fixed Data'!$B$16:$I$80,8,FALSE)/1000000) -> 0 | AT155: =AT169*(VLOOKUP($F51,'Fixed Data'!$B$16:$I$80,8,FALSE)/1000000) -> 0 | AU155: =AU169*(VLOOKUP($F51,'Fixed Data'!$B$16:$I$80,8,FALSE)/1000000) -> 0 | AV155: =AV169*(VLOOKUP($F51,'Fixed Data'!$B$16:$I$80,8,FALSE)/1000000) -> 0 | AW155: =AW169*(VLOOKUP($F51,'Fixed Data'!$B$16:$I$80,8,FALSE)/1000000) -> 0 | AX155: =AX169*(VLOOKUP($F51,'Fixed Data'!$B$16:$I$80,8,FALSE)/1000000) -> 0 | AY155: =AY169*(VLOOKUP($F51,'Fixed Data'!$B$16:$I$80,8,FALSE)/1000000) -> 0 | AZ155: =AZ169*(VLOOKUP($F51,'Fixed Data'!$B$16:$I$80,8,FALSE)/1000000) -> 0 | BA155: =BA169*(VLOOKUP($F51,'Fixed Data'!$B$16:$I$80,8,FALSE)/1000000) -> 0 | BB155: =BB169*(VLOOKUP($F51,'Fixed Data'!$B$16:$I$80,8,FALSE)/1000000) -> 0 | BC155: =BC169*(VLOOKUP($F51,'Fixed Data'!$B$16:$I$80,8,FALSE)/1000000) -> 0 | BD155: =BD169*(VLOOKUP($F51,'Fixed Data'!$B$16:$I$80,8,FALSE)/1000000) -> 0 | BE155: =BE169*(VLOOKUP($F51,'Fixed Data'!$B$16:$I$80,8,FALSE)/1000000) -> 0 | BF155: =BF169*(VLOOKUP($F51,'Fixed Data'!$B$16:$I$80,8,FALSE)/1000000) -> 0 | BG155: =BG169*(VLOOKUP($F51,'Fixed Data'!$B$16:$I$80,8,FALSE)/1000000) -> 0 | BH155: =BH169*(VLOOKUP($F51,'Fixed Data'!$B$16:$I$80,8,FALSE)/1000000) -> 0 | BI155: =BI169*(VLOOKUP($F51,'Fixed Data'!$B$16:$I$80,8,FALSE)/1000000) -> 0 | BJ155: =BJ169*(VLOOKUP($F51,'Fixed Data'!$B$16:$I$80,8,FALSE)/1000000) -> 0 | BK155: =BK169*(VLOOKUP($F51,'Fixed Data'!$B$16:$I$80,8,FALSE)/1000000) -> 0 | BL155: =BL169*(VLOOKUP($F51,'Fixed Data'!$B$16:$I$80,8,FALSE)/1000000) -> 0 | BM155: =BM169*(VLOOKUP($F51,'Fixed Data'!$B$16:$I$80,8,FALSE)/1000000) -> 0 | BN155: =BN169*(VLOOKUP($F51,'Fixed Data'!$B$16:$I$80,8,FALSE)/1000000) -> 0 | BO155: =BO169*(VLOOKUP($F51,'Fixed Data'!$B$16:$I$80,8,FALSE)/1000000) -> 0 | BP155: =BP169*(VLOOKUP($F51,'Fixed Data'!$B$16:$I$80,8,FALSE)/1000000) -> 0 | BQ155: =BQ169*(VLOOKUP($F51,'Fixed Data'!$B$16:$I$80,8,FALSE)/1000000) -> 0 | BR155: =BR169*(VLOOKUP($F51,'Fixed Data'!$B$16:$I$80,8,FALSE)/1000000) -> 0 | BS155: =BS169*(VLOOKUP($F51,'Fixed Data'!$B$16:$I$80,8,FALSE)/1000000) -> 0 | BT155: =BT169*(VLOOKUP($F51,'Fixed Data'!$B$16:$I$80,8,FALSE)/1000000) -> 0 | BU155: =BU169*(VLOOKUP($F51,'Fixed Data'!$B$16:$I$80,8,FALSE)/1000000) -> 0 | BV155: =BV169*(VLOOKUP($F51,'Fixed Data'!$B$16:$I$80,8,FALSE)/1000000) -> 0 | BW155: =BW169*(VLOOKUP($F51,'Fixed Data'!$B$16:$I$80,8,FALSE)/1000000) -> 0 | BX155: =BX169*(VLOOKUP($F51,'Fixed Data'!$B$16:$I$80,8,FALSE)/1000000) -> 0 | BY155: =BY169*(VLOOKUP($F51,'Fixed Data'!$B$16:$I$80,8,FALSE)/1000000) -> 0 | BZ155: =BZ169*(VLOOKUP($F51,'Fixed Data'!$B$16:$I$80,8,FALSE)/1000000) -> 0 | CA155: =CA169*(VLOOKUP($F51,'Fixed Data'!$B$16:$I$80,8,FALSE)/1000000) -> 0 | CB155: =CB169*(VLOOKUP($F51,'Fixed Data'!$B$16:$I$80,8,FALSE)/1000000) -> 0 | CC155: =CC169*(VLOOKUP($F51,'Fixed Data'!$B$16:$I$80,8,FALSE)/1000000) -> 0 | CD155: =CD169*(VLOOKUP($F51,'Fixed Data'!$B$16:$I$80,8,FALSE)/1000000) -> 0 | CE155: =CE169*(VLOOKUP($F51,'Fixed Data'!$B$16:$I$80,8,FALSE)/1000000) -> 0 | CF155: =CF169*(VLOOKUP($F51,'Fixed Data'!$B$16:$I$80,8,FALSE)/1000000) -> 0 | CG155: =CG169*(VLOOKUP($F51,'Fixed Data'!$B$16:$I$80,8,FALSE)/1000000) -> 0 | CH155: =CH169*(VLOOKUP($F51,'Fixed Data'!$B$16:$I$80,8,FALSE)/1000000) -> 0
BG156: =BG171*(VLOOKUP($F51,'Fixed Data'!$B$16:$F$107,5,FALSE)/1000000) -> 0 | BH156: =BH171*(VLOOKUP($F51,'Fixed Data'!$B$16:$F$107,5,FALSE)/1000000) -> 0 | BI156: =BI171*(VLOOKUP($F51,'Fixed Data'!$B$16:$F$107,5,FALSE)/1000000) -> 0 | BJ156: =BJ171*(VLOOKUP($F51,'Fixed Data'!$B$16:$F$107,5,FALSE)/1000000) -> 0 | BK156: =BK171*(VLOOKUP($F51,'Fixed Data'!$B$16:$F$107,5,FALSE)/1000000) -> 0 | BL156: =BL171*(VLOOKUP($F51,'Fixed Data'!$B$16:$F$107,5,FALSE)/1000000) -> 0 | BM156: =BM171*(VLOOKUP($F51,'Fixed Data'!$B$16:$F$107,5,FALSE)/1000000) -> 0 | BN156: =BN171*(VLOOKUP($F51,'Fixed Data'!$B$16:$F$107,5,FALSE)/1000000) -> 0 | BO156: =BO171*(VLOOKUP($F51,'Fixed Data'!$B$16:$F$107,5,FALSE)/1000000) -> 0 | BP156: =BP171*(VLOOKUP($F51,'Fixed Data'!$B$16:$F$107,5,FALSE)/1000000) -> 0 | BQ156: =BQ171*(VLOOKUP($F51,'Fixed Data'!$B$16:$F$107,5,FALSE)/1000000) -> 0 | BR156: =BR171*(VLOOKUP($F51,'Fixed Data'!$B$16:$F$107,5,FALSE)/1000000) -> 0 | BS156: =BS171*(VLOOKUP($F51,'Fixed Data'!$B$16:$F$107,5,FALSE)/1000000) -> 0 | BT156: =BT171*(VLOOKUP($F51,'Fixed Data'!$B$16:$F$107,5,FALSE)/1000000) -> 0 | BU156: =BU171*(VLOOKUP($F51,'Fixed Data'!$B$16:$F$107,5,FALSE)/1000000) -> 0 | BV156: =BV171*(VLOOKUP($F51,'Fixed Data'!$B$16:$F$107,5,FALSE)/1000000) -> 0 | BW156: =BW171*(VLOOKUP($F51,'Fixed Data'!$B$16:$F$107,5,FALSE)/1000000) -> 0 | BX156: =BX171*(VLOOKUP($F51,'Fixed Data'!$B$16:$F$107,5,FALSE)/1000000) -> 0 | BY156: =BY171*(VLOOKUP($F51,'Fixed Data'!$B$16:$F$107,5,FALSE)/1000000) -> 0 | BZ156: =BZ171*(VLOOKUP($F51,'Fixed Data'!$B$16:$F$107,5,FALSE)/1000000) -> 0 | CA156: =CA171*(VLOOKUP($F51,'Fixed Data'!$B$16:$F$107,5,FALSE)/1000000) -> 0 | CB156: =CB171*(VLOOKUP($F51,'Fixed Data'!$B$16:$F$107,5,FALSE)/1000000) -> 0 | CC156: =CC171*(VLOOKUP($F51,'Fixed Data'!$B$16:$F$107,5,FALSE)/1000000) -> 0 | CD156: =CD171*(VLOOKUP($F51,'Fixed Data'!$B$16:$F$107,5,FALSE)/1000000) -> 0 | CE156: =CE171*(VLOOKUP($F51,'Fixed Data'!$B$16:$F$107,5,FALSE)/1000000) -> 0 | CF156: =CF171*(VLOOKUP($F51,'Fixed Data'!$B$16:$F$107,5,FALSE)/1000000) -> 0 | CG156: =CG171*(VLOOKUP($F51,'Fixed Data'!$B$16:$F$107,5,FALSE)/1000000) -> 0 | CH156: =CH171*(VLOOKUP($F51,'Fixed Data'!$B$16:$F$107,5,FALSE)/1000000) -> 0
BG157: =BG173*(VLOOKUP($F51,'Fixed Data'!$B$16:$F$107,5,FALSE)/1000000) -> 0 | BH157: =BH173*(VLOOKUP($F51,'Fixed Data'!$B$16:$F$107,5,FALSE)/1000000) -> 0 | BI157: =BI173*(VLOOKUP($F51,'Fixed Data'!$B$16:$F$107,5,FALSE)/1000000) -> 0 | BJ157: =BJ173*(VLOOKUP($F51,'Fixed Data'!$B$16:$F$107,5,FALSE)/1000000) -> 0 | BK157: =BK173*(VLOOKUP($F51,'Fixed Data'!$B$16:$F$107,5,FALSE)/1000000) -> 0 | BL157: =BL173*(VLOOKUP($F51,'Fixed Data'!$B$16:$F$107,5,FALSE)/1000000) -> 0 | BM157: =BM173*(VLOOKUP($F51,'Fixed Data'!$B$16:$F$107,5,FALSE)/1000000) -> 0 | BN157: =BN173*(VLOOKUP($F51,'Fixed Data'!$B$16:$F$107,5,FALSE)/1000000) -> 0 | BO157: =BO173*(VLOOKUP($F51,'Fixed Data'!$B$16:$F$107,5,FALSE)/1000000) -> 0 | BP157: =BP173*(VLOOKUP($F51,'Fixed Data'!$B$16:$F$107,5,FALSE)/1000000) -> 0 | BQ157: =BQ173*(VLOOKUP($F51,'Fixed Data'!$B$16:$F$107,5,FALSE)/1000000) -> 0 | BR157: =BR173*(VLOOKUP($F51,'Fixed Data'!$B$16:$F$107,5,FALSE)/1000000) -> 0 | BS157: =BS173*(VLOOKUP($F51,'Fixed Data'!$B$16:$F$107,5,FALSE)/1000000) -> 0 | BT157: =BT173*(VLOOKUP($F51,'Fixed Data'!$B$16:$F$107,5,FALSE)/1000000) -> 0 | BU157: =BU173*(VLOOKUP($F51,'Fixed Data'!$B$16:$F$107,5,FALSE)/1000000) -> 0 | BV157: =BV173*(VLOOKUP($F51,'Fixed Data'!$B$16:$F$107,5,FALSE)/1000000) -> 0 | BW157: =BW173*(VLOOKUP($F51,'Fixed Data'!$B$16:$F$107,5,FALSE)/1000000) -> 0 | BX157: =BX173*(VLOOKUP($F51,'Fixed Data'!$B$16:$F$107,5,FALSE)/1000000) -> 0 | BY157: =BY173*(VLOOKUP($F51,'Fixed Data'!$B$16:$F$107,5,FALSE)/1000000) -> 0 | BZ157: =BZ173*(VLOOKUP($F51,'Fixed Data'!$B$16:$F$107,5,FALSE)/1000000) -> 0 | CA157: =CA173*(VLOOKUP($F51,'Fixed Data'!$B$16:$F$107,5,FALSE)/1000000) -> 0 | CB157: =CB173*(VLOOKUP($F51,'Fixed Data'!$B$16:$F$107,5,FALSE)/1000000) -> 0 | CC157: =CC173*(VLOOKUP($F51,'Fixed Data'!$B$16:$F$107,5,FALSE)/1000000) -> 0 | CD157: =CD173*(VLOOKUP($F51,'Fixed Data'!$B$16:$F$107,5,FALSE)/1000000) -> 0 | CE157: =CE173*(VLOOKUP($F51,'Fixed Data'!$B$16:$F$107,5,FALSE)/1000000) -> 0 | CF157: =CF173*(VLOOKUP($F51,'Fixed Data'!$B$16:$F$107,5,FALSE)/1000000) -> 0 | CG157: =CG173*(VLOOKUP($F51,'Fixed Data'!$B$16:$F$107,5,FALSE)/1000000) -> 0 | CH157: =CH173*(VLOOKUP($F51,'Fixed Data'!$B$16:$F$107,5,FALSE)/1000000) -> 0
BG158: =BG175*(VLOOKUP($F51,'Fixed Data'!$B$16:$F$107,5,FALSE)/1000000) -> 0 | BH158: =BH175*(VLOOKUP($F51,'Fixed Data'!$B$16:$F$107,5,FALSE)/1000000) -> 0 | BI158: =BI175*(VLOOKUP($F51,'Fixed Data'!$B$16:$F$107,5,FALSE)/1000000) -> 0 | BJ158: =BJ175*(VLOOKUP($F51,'Fixed Data'!$B$16:$F$107,5,FALSE)/1000000) -> 0 | BK158: =BK175*(VLOOKUP($F51,'Fixed Data'!$B$16:$F$107,5,FALSE)/1000000) -> 0 | BL158: =BL175*(VLOOKUP($F51,'Fixed Data'!$B$16:$F$107,5,FALSE)/1000000) -> 0 | BM158: =BM175*(VLOOKUP($F51,'Fixed Data'!$B$16:$F$107,5,FALSE)/1000000) -> 0 | BN158: =BN175*(VLOOKUP($F51,'Fixed Data'!$B$16:$F$107,5,FALSE)/1000000) -> 0 | BO158: =BO175*(VLOOKUP($F51,'Fixed Data'!$B$16:$F$107,5,FALSE)/1000000) -> 0 | BP158: =BP175*(VLOOKUP($F51,'Fixed Data'!$B$16:$F$107,5,FALSE)/1000000) -> 0 | BQ158: =BQ175*(VLOOKUP($F51,'Fixed Data'!$B$16:$F$107,5,FALSE)/1000000) -> 0 | BR158: =BR175*(VLOOKUP($F51,'Fixed Data'!$B$16:$F$107,5,FALSE)/1000000) -> 0 | BS158: =BS175*(VLOOKUP($F51,'Fixed Data'!$B$16:$F$107,5,FALSE)/1000000) -> 0 | BT158: =BT175*(VLOOKUP($F51,'Fixed Data'!$B$16:$F$107,5,FALSE)/1000000) -> 0 | BU158: =BU175*(VLOOKUP($F51,'Fixed Data'!$B$16:$F$107,5,FALSE)/1000000) -> 0 | BV158: =BV175*(VLOOKUP($F51,'Fixed Data'!$B$16:$F$107,5,FALSE)/1000000) -> 0 | BW158: =BW175*(VLOOKUP($F51,'Fixed Data'!$B$16:$F$107,5,FALSE)/1000000) -> 0 | BX158: =BX175*(VLOOKUP($F51,'Fixed Data'!$B$16:$F$107,5,FALSE)/1000000) -> 0 | BY158: =BY175*(VLOOKUP($F51,'Fixed Data'!$B$16:$F$107,5,FALSE)/1000000) -> 0 | BZ158: =BZ175*(VLOOKUP($F51,'Fixed Data'!$B$16:$F$107,5,FALSE)/1000000) -> 0 | CA158: =CA175*(VLOOKUP($F51,'Fixed Data'!$B$16:$F$107,5,FALSE)/1000000) -> 0 | CB158: =CB175*(VLOOKUP($F51,'Fixed Data'!$B$16:$F$107,5,FALSE)/1000000) -> 0 | CC158: =CC175*(VLOOKUP($F51,'Fixed Data'!$B$16:$F$107,5,FALSE)/1000000) -> 0 | CD158: =CD175*(VLOOKUP($F51,'Fixed Data'!$B$16:$F$107,5,FALSE)/1000000) -> 0 | CE158: =CE175*(VLOOKUP($F51,'Fixed Data'!$B$16:$F$107,5,FALSE)/1000000) -> 0 | CF158: =CF175*(VLOOKUP($F51,'Fixed Data'!$B$16:$F$107,5,FALSE)/1000000) -> 0 | CG158: =CG175*(VLOOKUP($F51,'Fixed Data'!$B$16:$F$107,5,FALSE)/1000000) -> 0 | CH158: =CH175*(VLOOKUP($F51,'Fixed Data'!$B$16:$F$107,5,FALSE)/1000000) -> 0
E159: ='Fixed Data'!$K$6*E178/1000000 -> 0 | F159: ='Fixed Data'!$K$6*F178/1000000 -> 0 | G159: ='Fixed Data'!$K$6*G178/1000000 -> 0 | H159: ='Fixed Data'!$K$6*H178/1000000 -> 0 | I159: ='Fixed Data'!$K$6*I178/1000000 -> 0 | J159: ='Fixed Data'!$K$6*J178/1000000 -> 0 | K159: ='Fixed Data'!$K$6*K178/1000000 -> 0 | L159: ='Fixed Data'!$K$6*L178/1000000 -> 0 | M159: ='Fixed Data'!$K$6*M178/1000000 -> 0 | N159: ='Fixed Data'!$K$6*N178/1000000 -> 0 | O159: ='Fixed Data'!$K$6*O178/1000000 -> 0 | P159: ='Fixed Data'!$K$6*P178/1000000 -> 0 | Q159: ='Fixed Data'!$K$6*Q178/1000000 -> 0 | R159: ='Fixed Data'!$K$6*R178/1000000 -> 0 | S159: ='Fixed Data'!$K$6*S178/1000000 -> 0 | T159: ='Fixed Data'!$K$6*T178/1000000 -> 0 | U159: ='Fixed Data'!$K$6*U178/1000000 -> 0 | V159: ='Fixed Data'!$K$6*V178/1000000 -> 0 | W159: ='Fixed Data'!$K$6*W178/1000000 -> 0 | X159: ='Fixed Data'!$K$6*X178/1000000 -> 0 | Y159: ='Fixed Data'!$K$6*Y178/1000000 -> 0 | Z159: ='Fixed Data'!$K$6*Z178/1000000 -> 0 | AA159: ='Fixed Data'!$K$6*AA178/1000000 -> 0 | AB159: ='Fixed Data'!$K$6*AB178/1000000 -> 0 | AC159: ='Fixed Data'!$K$6*AC178/1000000 -> 0 | AD159: ='Fixed Data'!$K$6*AD178/1000000 -> 0 | AE159: ='Fixed Data'!$K$6*AE178/1000000 -> 0 | AF159: ='Fixed Data'!$K$6*AF178/1000000 -> 0 | AG159: ='Fixed Data'!$K$6*AG178/1000000 -> 0 | AH159: ='Fixed Data'!$K$6*AH178/1000000 -> 0 | AI159: ='Fixed Data'!$K$6*AI178/1000000 -> 0 | AJ159: ='Fixed Data'!$K$6*AJ178/1000000 -> 0 | AK159: ='Fixed Data'!$K$6*AK178/1000000 -> 0 | AL159: ='Fixed Data'!$K$6*AL178/1000000 -> 0 | AM159: ='Fixed Data'!$K$6*AM178/1000000 -> 0 | AN159: ='Fixed Data'!$K$6*AN178/1000000 -> 0 | AO159: ='Fixed Data'!$K$6*AO178/1000000 -> 0 | AP159: ='Fixed Data'!$K$6*AP178/1000000 -> 0 | AQ159: ='Fixed Data'!$K$6*AQ178/1000000 -> 0 | AR159: ='Fixed Data'!$K$6*AR178/1000000 -> 0 | AS159: ='Fixed Data'!$K$6*AS178/1000000 -> 0 | AT159: ='Fixed Data'!$K$6*AT178/1000000 -> 0 | AU159: ='Fixed Data'!$K$6*AU178/1000000 -> 0 | AV159: ='Fixed Data'!$K$6*AV178/1000000 -> 0 | AW159: ='Fixed Data'!$K$6*AW178/1000000 -> 0 | AX159: ='Fixed Data'!$K$6*AX178/1000000 -> 0 | AY159: ='Fixed Data'!$K$6*AY178/1000000 -> 0 | AZ159: ='Fixed Data'!$K$6*AZ178/1000000 -> 0 | BA159: ='Fixed Data'!$K$6*BA178/1000000 -> 0 | BB159: ='Fixed Data'!$K$6*BB178/1000000 -> 0 | BC159: ='Fixed Data'!$K$6*BC178/1000000 -> 0 | BD159: ='Fixed Data'!$K$6*BD178/1000000 -> 0 | BE159: ='Fixed Data'!$K$6*BE178/1000000 -> 0 | BF159: ='Fixed Data'!$K$6*BF178/1000000 -> 0 | BG159: ='Fixed Data'!$K$6*BG178/1000000 -> 0 | BH159: ='Fixed Data'!$K$6*BH178/1000000 -> 0 | BI159: ='Fixed Data'!$K$6*BI178/1000000 -> 0 | BJ159: ='Fixed Data'!$K$6*BJ178/1000000 -> 0 | BK159: ='Fixed Data'!$K$6*BK178/1000000 -> 0 | BL159: ='Fixed Data'!$K$6*BL178/1000000 -> 0 | BM159: ='Fixed Data'!$K$6*BM178/1000000 -> 0 | BN159: ='Fixed Data'!$K$6*BN178/1000000 -> 0 | BO159: ='Fixed Data'!$K$6*BO178/1000000 -> 0 | BP159: ='Fixed Data'!$K$6*BP178/1000000 -> 0 | BQ159: ='Fixed Data'!$K$6*BQ178/1000000 -> 0 | BR159: ='Fixed Data'!$K$6*BR178/1000000 -> 0 | BS159: ='Fixed Data'!$K$6*BS178/1000000 -> 0 | BT159: ='Fixed Data'!$K$6*BT178/1000000 -> 0 | BU159: ='Fixed Data'!$K$6*BU178/1000000 -> 0 | BV159: ='Fixed Data'!$K$6*BV178/1000000 -> 0 | BW159: ='Fixed Data'!$K$6*BW178/1000000 -> 0 | BX159: ='Fixed Data'!$K$6*BX178/1000000 -> 0 | BY159: ='Fixed Data'!$K$6*BY178/1000000 -> 0 | BZ159: ='Fixed Data'!$K$6*BZ178/1000000 -> 0 | CA159: ='Fixed Data'!$K$6*CA178/1000000 -> 0 | CB159: ='Fixed Data'!$K$6*CB178/1000000 -> 0 | CC159: ='Fixed Data'!$K$6*CC178/1000000 -> 0 | CD159: ='Fixed Data'!$K$6*CD178/1000000 -> 0 | CE159: ='Fixed Data'!$K$6*CE178/1000000 -> 0 | CF159: ='Fixed Data'!$K$6*CF178/1000000 -> 0 | CG159: ='Fixed Data'!$K$6*CG178/1000000 -> 0 | CH159: ='Fixed Data'!$K$6*CH178/1000000 -> 0
B160: Fatality | D160: £m | E160: =E176*'Fixed Data'!$E$12 -> 0 | F160: =F176*'Fixed Data'!$E$12 -> 0 | G160: =G176*'Fixed Data'!$E$12 -> 0 | H160: =H176*'Fixed Data'!$E$12 -> 0 | I160: =I176*'Fixed Data'!$E$12 -> 0 | J160: =J176*'Fixed Data'!$E$12 -> 0 | K160: =K176*'Fixed Data'!$E$12 -> 0 | L160: =L176*'Fixed Data'!$E$12 -> 0 | M160: =M176*'Fixed Data'!$E$12 -> 0 | N160: =N176*'Fixed Data'!$E$12 -> 0 | O160: =O176*'Fixed Data'!$E$12 -> 0 | P160: =P176*'Fixed Data'!$E$12 -> 0 | Q160: =Q176*'Fixed Data'!$E$12 -> 0 | R160: =R176*'Fixed Data'!$E$12 -> 0 | S160: =S176*'Fixed Data'!$E$12 -> 0 | T160: =T176*'Fixed Data'!$E$12 -> 0 | U160: =U176*'Fixed Data'!$E$12 -> 0 | V160: =V176*'Fixed Data'!$E$12 -> 0 | W160: =W176*'Fixed Data'!$E$12 -> 0 | X160: =X176*'Fixed Data'!$E$12 -> 0 | Y160: =Y176*'Fixed Data'!$E$12 -> 0 | Z160: =Z176*'Fixed Data'!$E$12 -> 0 | AA160: =AA176*'Fixed Data'!$E$12 -> 0 | AB160: =AB176*'Fixed Data'!$E$12 -> 0 | AC160: =AC176*'Fixed Data'!$E$12 -> 0 | AD160: =AD176*'Fixed Data'!$E$12 -> 0 | AE160: =AE176*'Fixed Data'!$E$12 -> 0 | AF160: =AF176*'Fixed Data'!$E$12 -> 0 | AG160: =AG176*'Fixed Data'!$E$12 -> 0 | AH160: =AH176*'Fixed Data'!$E$12 -> 0 | AI160: =AI176*'Fixed Data'!$E$12 -> 0 | AJ160: =AJ176*'Fixed Data'!$E$12 -> 0 | AK160: =AK176*'Fixed Data'!$E$12 -> 0 | AL160: =AL176*'Fixed Data'!$E$12 -> 0 | AM160: =AM176*'Fixed Data'!$E$12 -> 0 | AN160: =AN176*'Fixed Data'!$E$12 -> 0 | AO160: =AO176*'Fixed Data'!$E$12 -> 0 | AP160: =AP176*'Fixed Data'!$E$12 -> 0 | AQ160: =AQ176*'Fixed Data'!$E$12 -> 0 | AR160: =AR176*'Fixed Data'!$E$12 -> 0 | AS160: =AS176*'Fixed Data'!$E$12 -> 0 | AT160: =AT176*'Fixed Data'!$E$12 -> 0 | AU160: =AU176*'Fixed Data'!$E$12 -> 0 | AV160: =AV176*'Fixed Data'!$E$12 -> 0 | AW160: =AW176*'Fixed Data'!$E$12 -> 0 | AX160: =AX176*'Fixed Data'!$E$12 -> 0 | AY160: =AY176*'Fixed Data'!$E$12 -> 0 | AZ160: =AZ176*'Fixed Data'!$E$12 -> 0 | BA160: =BA176*'Fixed Data'!$E$12 -> 0 | BB160: =BB176*'Fixed Data'!$E$12 -> 0 | BC160: =BC176*'Fixed Data'!$E$12 -> 0 | BD160: =BD176*'Fixed Data'!$E$12 -> 0 | BE160: =BE176*'Fixed Data'!$E$12 -> 0 | BF160: =BF176*'Fixed Data'!$E$12 -> 0 | BG160: =BG176*'Fixed Data'!$E$12 -> 0 | BH160: =BH176*'Fixed Data'!$E$12 -> 0 | BI160: =BI176*'Fixed Data'!$E$12 -> 0 | BJ160: =BJ176*'Fixed Data'!$E$12 -> 0 | BK160: =BK176*'Fixed Data'!$E$12 -> 0 | BL160: =BL176*'Fixed Data'!$E$12 -> 0 | BM160: =BM176*'Fixed Data'!$E$12 -> 0 | BN160: =BN176*'Fixed Data'!$E$12 -> 0 | BO160: =BO176*'Fixed Data'!$E$12 -> 0 | BP160: =BP176*'Fixed Data'!$E$12 -> 0 | BQ160: =BQ176*'Fixed Data'!$E$12 -> 0 | BR160: =BR176*'Fixed Data'!$E$12 -> 0 | BS160: =BS176*'Fixed Data'!$E$12 -> 0 | BT160: =BT176*'Fixed Data'!$E$12 -> 0 | BU160: =BU176*'Fixed Data'!$E$12 -> 0 | BV160: =BV176*'Fixed Data'!$E$12 -> 0 | BW160: =BW176*'Fixed Data'!$E$12 -> 0 | BX160: =BX176*'Fixed Data'!$E$12 -> 0 | BY160: =BY176*'Fixed Data'!$E$12 -> 0 | BZ160: =BZ176*'Fixed Data'!$E$12 -> 0 | CA160: =CA176*'Fixed Data'!$E$12 -> 0 | CB160: =CB176*'Fixed Data'!$E$12 -> 0 | CC160: =CC176*'Fixed Data'!$E$12 -> 0 | CD160: =CD176*'Fixed Data'!$E$12 -> 0 | CE160: =CE176*'Fixed Data'!$E$12 -> 0 | CF160: =CF176*'Fixed Data'!$E$12 -> 0 | CG160: =CG176*'Fixed Data'!$E$12 -> 0 | CH160: =CH176*'Fixed Data'!$E$12 -> 0
B161: Non-Fatal Injury | D161: £m | E161: =E177*'Fixed Data'!$E$13 -> 0 | F161: =F177*'Fixed Data'!$E$13 -> 0 | G161: =G177*'Fixed Data'!$E$13 -> 0 | H161: =H177*'Fixed Data'!$E$13 -> 0 | I161: =I177*'Fixed Data'!$E$13 -> 0 | J161: =J177*'Fixed Data'!$E$13 -> 0 | K161: =K177*'Fixed Data'!$E$13 -> 0 | L161: =L177*'Fixed Data'!$E$13 -> 0 | M161: =M177*'Fixed Data'!$E$13 -> 0 | N161: =N177*'Fixed Data'!$E$13 -> 0 | O161: =O177*'Fixed Data'!$E$13 -> 0 | P161: =P177*'Fixed Data'!$E$13 -> 0 | Q161: =Q177*'Fixed Data'!$E$13 -> 0 | R161: =R177*'Fixed Data'!$E$13 -> 0 | S161: =S177*'Fixed Data'!$E$13 -> 0 | T161: =T177*'Fixed Data'!$E$13 -> 0 | U161: =U177*'Fixed Data'!$E$13 -> 0 | V161: =V177*'Fixed Data'!$E$13 -> 0 | W161: =W177*'Fixed Data'!$E$13 -> 0 | X161: =X177*'Fixed Data'!$E$13 -> 0 | Y161: =Y177*'Fixed Data'!$E$13 -> 0 | Z161: =Z177*'Fixed Data'!$E$13 -> 0 | AA161: =AA177*'Fixed Data'!$E$13 -> 0 | AB161: =AB177*'Fixed Data'!$E$13 -> 0 | AC161: =AC177*'Fixed Data'!$E$13 -> 0 | AD161: =AD177*'Fixed Data'!$E$13 -> 0 | AE161: =AE177*'Fixed Data'!$E$13 -> 0 | AF161: =AF177*'Fixed Data'!$E$13 -> 0 | AG161: =AG177*'Fixed Data'!$E$13 -> 0 | AH161: =AH177*'Fixed Data'!$E$13 -> 0 | AI161: =AI177*'Fixed Data'!$E$13 -> 0 | AJ161: =AJ177*'Fixed Data'!$E$13 -> 0 | AK161: =AK177*'Fixed Data'!$E$13 -> 0 | AL161: =AL177*'Fixed Data'!$E$13 -> 0 | AM161: =AM177*'Fixed Data'!$E$13 -> 0 | AN161: =AN177*'Fixed Data'!$E$13 -> 0 | AO161: =AO177*'Fixed Data'!$E$13 -> 0 | AP161: =AP177*'Fixed Data'!$E$13 -> 0 | AQ161: =AQ177*'Fixed Data'!$E$13 -> 0 | AR161: =AR177*'Fixed Data'!$E$13 -> 0 | AS161: =AS177*'Fixed Data'!$E$13 -> 0 | AT161: =AT177*'Fixed Data'!$E$13 -> 0 | AU161: =AU177*'Fixed Data'!$E$13 -> 0 | AV161: =AV177*'Fixed Data'!$E$13 -> 0 | AW161: =AW177*'Fixed Data'!$E$13 -> 0 | AX161: =AX177*'Fixed Data'!$E$13 -> 0 | AY161: =AY177*'Fixed Data'!$E$13 -> 0 | AZ161: =AZ177*'Fixed Data'!$E$13 -> 0 | BA161: =BA177*'Fixed Data'!$E$13 -> 0 | BB161: =BB177*'Fixed Data'!$E$13 -> 0 | BC161: =BC177*'Fixed Data'!$E$13 -> 0 | BD161: =BD177*'Fixed Data'!$E$13 -> 0 | BE161: =BE177*'Fixed Data'!$E$13 -> 0 | BF161: =BF177*'Fixed Data'!$E$13 -> 0 | BG161: =BG177*'Fixed Data'!$E$13 -> 0 | BH161: =BH177*'Fixed Data'!$E$13 -> 0 | BI161: =BI177*'Fixed Data'!$E$13 -> 0 | BJ161: =BJ177*'Fixed Data'!$E$13 -> 0 | BK161: =BK177*'Fixed Data'!$E$13 -> 0 | BL161: =BL177*'Fixed Data'!$E$13 -> 0 | BM161: =BM177*'Fixed Data'!$E$13 -> 0 | BN161: =BN177*'Fixed Data'!$E$13 -> 0 | BO161: =BO177*'Fixed Data'!$E$13 -> 0 | BP161: =BP177*'Fixed Data'!$E$13 -> 0 | BQ161: =BQ177*'Fixed Data'!$E$13 -> 0 | BR161: =BR177*'Fixed Data'!$E$13 -> 0 | BS161: =BS177*'Fixed Data'!$E$13 -> 0 | BT161: =BT177*'Fixed Data'!$E$13 -> 0 | BU161: =BU177*'Fixed Data'!$E$13 -> 0 | BV161: =BV177*'Fixed Data'!$E$13 -> 0 | BW161: =BW177*'Fixed Data'!$E$13 -> 0 | BX161: =BX177*'Fixed Data'!$E$13 -> 0 | BY161: =BY177*'Fixed Data'!$E$13 -> 0 | BZ161: =BZ177*'Fixed Data'!$E$13 -> 0 | CA161: =CA177*'Fixed Data'!$E$13 -> 0 | CB161: =CB177*'Fixed Data'!$E$13 -> 0 | CC161: =CC177*'Fixed Data'!$E$13 -> 0 | CD161: =CD177*'Fixed Data'!$E$13 -> 0 | CE161: =CE177*'Fixed Data'!$E$13 -> 0 | CF161: =CF177*'Fixed Data'!$E$13 -> 0 | CG161: =CG177*'Fixed Data'!$E$13 -> 0 | CH161: =CH177*'Fixed Data'!$E$13 -> 0
B162: Other 1 (Specify) | D162: £m
B163: Other 2 (Specify) | D163: £m
B164: Other 3 (Specify) | D164: £m
B165: Total societal net benefits | D165: £m | E165: =SUM(E153:E164) -> 0 | F165: =SUM(F153:F164) -> 0 | G165: =SUM(G153:G164) -> 0 | H165: 0 | I165: 0 | J165: 0 | K165: 0 | L165: 0 | M165: 0 | N165: 0 | O165: 0 | P165: 0 | Q165: 0 | R165: 0 | S165: 0 | T165: 0 | U165: 0 | V165: 0 | W165: 0 | X165: 0 | Y165: 0 | Z165: 0 | AA165: 0 | AB165: 0 | AC165: 0 | AD165: 0 | AE165: 0 | AF165: 0 | AG165: 0 | AH165: 0 | AI165: 0 | AJ165: 0 | AK165: 0 | AL165: 0 | AM165: 0 | AN165: 0 | AO165: 0 | AP165: 0 | AQ165: 0 | AR165: 0 | AS165: 0 | AT165: 0 | AU165: 0 | AV165: 0 | AW165: 0 | AX165: 0 | AY165: 0 | AZ165: 0 | BA165: 0 | BB165: 0 | BC165: 0 | BD165: 0 | BE165: 0 | BF165: =SUM(BF153:BF164) -> 0 | BG165: 0 | BH165: 0 | BI165: 0 | BJ165: 0 | BK165: 0 | BL165: 0 | BM165: 0 | BN165: 0 | BO165: 0 | BP165: 0 | BQ165: 0 | BR165: 0 | BS165: =SUM(BS153:BS164) -> 0 | BT165: 0 | BU165: 0 | BV165: 0 | BW165: 0 | BX165: 0 | BY165: 0 | BZ165: 0 | CA165: 0 | CB165: 0 | CC165: 0 | CD165: 0 | CE165: 0 | CF165: 0 | CG165: 0 | CH165: 0
A166: Societal net benefits (impact relative to business as usual scenario) | B166: Reduced Emissions | D166: t
B167: NOx Emissions uplift Factor * | E167: 1 | F167: 1.06 | G167: =F167+0.02 -> 1.08 | H167: =G167+0.02 -> 1.1 | I167: 1.12 | J167: 1.14 | K167: 1.16 | L167: 1.18 | M167: 1.2 | N167: 1.22 | O167: 1.24 | P167: 1.26 | Q167: 1.28 | R167: 1.3 | S167: 1.32 | T167: 1.34 | U167: 1.36 | V167: 1.38 | W167: 1.4 | X167: 1.42 | Y167: 1.44 | Z167: 1.46 | AA167: 1.48 | AB167: 1.5 | AC167: 1.52 | AD167: 1.54 | AE167: 1.56 | AF167: 1.58 | AG167: 1.6 | AH167: 1.62 | AI167: 1.64 | AJ167: 1.66 | AK167: 1.68 | AL167: 1.7 | AM167: 1.72 | AN167: 1.74 | AO167: 1.76 | AP167: 1.78 | AQ167: 1.8 | AR167: 1.82 | AS167: 1.84 | AT167: 1.86 | AU167: 1.88 | AV167: 1.9 | AW167: 1.92 | AX167: 1.94 | AY167: 1.96 | AZ167: 1.98 | BA167: 2 | BB167: 2.02 | BC167: 2.04 | BD167: 2.06 | BE167: 2.08 | BF167: 2.1 | BG167: =BG166*(VLOOKUP(BG51,'Fixed Data'!$B$16:$G$107,6,FALSE)) -> 0 | BH167: =BH166*(VLOOKUP(BH51,'Fixed Data'!$B$16:$G$107,6,FALSE)) -> 0 | BI167: =BI166*(VLOOKUP(BI51,'Fixed Data'!$B$16:$G$107,6,FALSE)) -> 0 | BJ167: =BJ166*(VLOOKUP(BJ51,'Fixed Data'!$B$16:$G$107,6,FALSE)) -> 0 | BK167: =BK166*(VLOOKUP(BK51,'Fixed Data'!$B$16:$G$107,6,FALSE)) -> 0 | BL167: =BL166*(VLOOKUP(BL51,'Fixed Data'!$B$16:$G$107,6,FALSE)) -> 0 | BM167: =BM166*(VLOOKUP(BM51,'Fixed Data'!$B$16:$G$107,6,FALSE)) -> 0 | BN167: =BN166*(VLOOKUP(BN51,'Fixed Data'!$B$16:$G$107,6,FALSE)) -> 0 | BO167: =BO166*(VLOOKUP(BO51,'Fixed Data'!$B$16:$G$107,6,FALSE)) -> 0 | BP167: =BP166*(VLOOKUP(BP51,'Fixed Data'!$B$16:$G$107,6,FALSE)) -> 0 | BQ167: =BQ166*(VLOOKUP(BQ51,'Fixed Data'!$B$16:$G$107,6,FALSE)) -> 0 | BR167: =BR166*(VLOOKUP(BR51,'Fixed Data'!$B$16:$G$107,6,FALSE)) -> 0 | BS167: =BS166*(VLOOKUP(BS51,'Fixed Data'!$B$16:$G$107,6,FALSE)) -> 0 | BT167: =BT166*(VLOOKUP(BT51,'Fixed Data'!$B$16:$G$107,6,FALSE)) -> 0 | BU167: =BU166*(VLOOKUP(BU51,'Fixed Data'!$B$16:$G$107,6,FALSE)) -> 0 | BV167: =BV166*(VLOOKUP(BV51,'Fixed Data'!$B$16:$G$107,6,FALSE)) -> 0 | BW167: =BW166*(VLOOKUP(BW51,'Fixed Data'!$B$16:$G$107,6,FALSE)) -> 0 | BX167: =BX166*(VLOOKUP(BX51,'Fixed Data'!$B$16:$G$107,6,FALSE)) -> 0 | BY167: =BY166*(VLOOKUP(BY51,'Fixed Data'!$B$16:$G$107,6,FALSE)) -> 0 | BZ167: =BZ166*(VLOOKUP(BZ51,'Fixed Data'!$B$16:$G$107,6,FALSE)) -> 0 | CA167: =CA166*(VLOOKUP(CA51,'Fixed Data'!$B$16:$G$107,6,FALSE)) -> 0 | CB167: =CB166*(VLOOKUP(CB51,'Fixed Data'!$B$16:$G$107,6,FALSE)) -> 0 | CC167: =CC166*(VLOOKUP(CC51,'Fixed Data'!$B$16:$G$107,6,FALSE)) -> 0 | CD167: =CD166*(VLOOKUP(CD51,'Fixed Data'!$B$16:$G$107,6,FALSE)) -> 0 | CE167: =CE166*(VLOOKUP(CE51,'Fixed Data'!$B$16:$G$107,6,FALSE)) -> 0 | CF167: =CF166*(VLOOKUP(CF51,'Fixed Data'!$B$16:$G$107,6,FALSE)) -> 0 | CG167: =CG166*(VLOOKUP(CG51,'Fixed Data'!$B$16:$G$107,6,FALSE)) -> 0 | CH167: =CH166*(VLOOKUP(CH51,'Fixed Data'!$B$16:$G$107,6,FALSE)) -> 0
B168: Reduced emissions - CO2 | D168: t
B169: Reduced emissions - Methane | D169: t | BG169: =(BG168/1000)*'Fixed Data'!$K$8 -> 0 | BH169: =(BH168/1000)*'Fixed Data'!$K$8 -> 0 | BI169: =(BI168/1000)*'Fixed Data'!$K$8 -> 0 | BJ169: =(BJ168/1000)*'Fixed Data'!$K$8 -> 0 | BK169: =(BK168/1000)*'Fixed Data'!$K$8 -> 0 | BL169: =(BL168/1000)*'Fixed Data'!$K$8 -> 0 | BM169: =(BM168/1000)*'Fixed Data'!$K$8 -> 0 | BN169: =(BN168/1000)*'Fixed Data'!$K$8 -> 0 | BO169: =(BO168/1000)*'Fixed Data'!$K$8 -> 0 | BP169: =(BP168/1000)*'Fixed Data'!$K$8 -> 0 | BQ169: =(BQ168/1000)*'Fixed Data'!$K$8 -> 0 | BR169: =(BR168/1000)*'Fixed Data'!$K$8 -> 0 | BS169: =(BS168/1000)*'Fixed Data'!$K$8 -> 0 | BT169: =(BT168/1000)*'Fixed Data'!$K$8 -> 0 | BU169: =(BU168/1000)*'Fixed Data'!$K$8 -> 0 | BV169: =(BV168/1000)*'Fixed Data'!$K$8 -> 0 | BW169: =(BW168/1000)*'Fixed Data'!$K$8 -> 0 | BX169: =(BX168/1000)*'Fixed Data'!$K$8 -> 0 | BY169: =(BY168/1000)*'Fixed Data'!$K$8 -> 0 | BZ169: =(BZ168/1000)*'Fixed Data'!$K$8 -> 0 | CA169: =(CA168/1000)*'Fixed Data'!$K$8 -> 0 | CB169: =(CB168/1000)*'Fixed Data'!$K$8 -> 0 | CC169: =(CC168/1000)*'Fixed Data'!$K$8 -> 0 | CD169: =(CD168/1000)*'Fixed Data'!$K$8 -> 0 | CE169: =(CE168/1000)*'Fixed Data'!$K$8 -> 0 | CF169: =(CF168/1000)*'Fixed Data'!$K$8 -> 0 | CG169: =(CG168/1000)*'Fixed Data'!$K$8 -> 0 | CH169: =(CH168/1000)*'Fixed Data'!$K$8 -> 0
B170: Reduced emissions - Methane (converstion) | D170: tCO2e | E170: =(E169/1000)*'Fixed Data'!$K$8 -> 0 | F170: =(F169/1000)*'Fixed Data'!$K$8 -> 0 | G170: =(G169/1000)*'Fixed Data'!$K$8 -> 0 | H170: =(H169/1000)*'Fixed Data'!$K$8 -> 0 | I170: =(I169/1000)*'Fixed Data'!$K$8 -> 0 | J170: =(J169/1000)*'Fixed Data'!$K$8 -> 0 | K170: =(K169/1000)*'Fixed Data'!$K$8 -> 0 | L170: =(L169/1000)*'Fixed Data'!$K$8 -> 0 | M170: =(M169/1000)*'Fixed Data'!$K$8 -> 0 | N170: =(N169/1000)*'Fixed Data'!$K$8 -> 0 | O170: =(O169/1000)*'Fixed Data'!$K$8 -> 0 | P170: =(P169/1000)*'Fixed Data'!$K$8 -> 0 | Q170: =(Q169/1000)*'Fixed Data'!$K$8 -> 0 | R170: =(R169/1000)*'Fixed Data'!$K$8 -> 0 | S170: =(S169/1000)*'Fixed Data'!$K$8 -> 0 | T170: =(T169/1000)*'Fixed Data'!$K$8 -> 0 | U170: =(U169/1000)*'Fixed Data'!$K$8 -> 0 | V170: =(V169/1000)*'Fixed Data'!$K$8 -> 0 | W170: =(W169/1000)*'Fixed Data'!$K$8 -> 0 | X170: =(X169/1000)*'Fixed Data'!$K$8 -> 0 | Y170: =(Y169/1000)*'Fixed Data'!$K$8 -> 0 | Z170: =(Z169/1000)*'Fixed Data'!$K$8 -> 0 | AA170: =(AA169/1000)*'Fixed Data'!$K$8 -> 0 | AB170: =(AB169/1000)*'Fixed Data'!$K$8 -> 0 | AC170: =(AC169/1000)*'Fixed Data'!$K$8 -> 0 | AD170: =(AD169/1000)*'Fixed Data'!$K$8 -> 0 | AE170: =(AE169/1000)*'Fixed Data'!$K$8 -> 0 | AF170: =(AF169/1000)*'Fixed Data'!$K$8 -> 0 | AG170: =(AG169/1000)*'Fixed Data'!$K$8 -> 0 | AH170: =(AH169/1000)*'Fixed Data'!$K$8 -> 0 | AI170: =(AI169/1000)*'Fixed Data'!$K$8 -> 0 | AJ170: =(AJ169/1000)*'Fixed Data'!$K$8 -> 0 | AK170: =(AK169/1000)*'Fixed Data'!$K$8 -> 0 | AL170: =(AL169/1000)*'Fixed Data'!$K$8 -> 0 | AM170: =(AM169/1000)*'Fixed Data'!$K$8 -> 0 | AN170: =(AN169/1000)*'Fixed Data'!$K$8 -> 0 | AO170: =(AO169/1000)*'Fixed Data'!$K$8 -> 0 | AP170: =(AP169/1000)*'Fixed Data'!$K$8 -> 0 | AQ170: =(AQ169/1000)*'Fixed Data'!$K$8 -> 0 | AR170: =(AR169/1000)*'Fixed Data'!$K$8 -> 0 | AS170: =(AS169/1000)*'Fixed Data'!$K$8 -> 0 | AT170: =(AT169/1000)*'Fixed Data'!$K$8 -> 0 | AU170: =(AU169/1000)*'Fixed Data'!$K$8 -> 0 | AV170: =(AV169/1000)*'Fixed Data'!$K$8 -> 0 | AW170: =(AW169/1000)*'Fixed Data'!$K$8 -> 0 | AX170: =(AX169/1000)*'Fixed Data'!$K$8 -> 0 | AY170: =(AY169/1000)*'Fixed Data'!$K$8 -> 0 | AZ170: =(AZ169/1000)*'Fixed Data'!$K$8 -> 0 | BA170: =(BA169/1000)*'Fixed Data'!$K$8 -> 0 | BB170: =(BB169/1000)*'Fixed Data'!$K$8 -> 0 | BC170: =(BC169/1000)*'Fixed Data'!$K$8 -> 0 | BD170: =(BD169/1000)*'Fixed Data'!$K$8 -> 0 | BE170: =(BE169/1000)*'Fixed Data'!$K$8 -> 0 | BF170: =(BF169/1000)*'Fixed Data'!$K$8 -> 0
BG171: =(BG170/1000)*'Fixed Data'!$K$9 -> 0 | BH171: =(BH170/1000)*'Fixed Data'!$K$9 -> 0 | BI171: =(BI170/1000)*'Fixed Data'!$K$9 -> 0 | BJ171: =(BJ170/1000)*'Fixed Data'!$K$9 -> 0 | BK171: =(BK170/1000)*'Fixed Data'!$K$9 -> 0 | BL171: =(BL170/1000)*'Fixed Data'!$K$9 -> 0 | BM171: =(BM170/1000)*'Fixed Data'!$K$9 -> 0 | BN171: =(BN170/1000)*'Fixed Data'!$K$9 -> 0 | BO171: =(BO170/1000)*'Fixed Data'!$K$9 -> 0 | BP171: =(BP170/1000)*'Fixed Data'!$K$9 -> 0 | BQ171: =(BQ170/1000)*'Fixed Data'!$K$9 -> 0 | BR171: =(BR170/1000)*'Fixed Data'!$K$9 -> 0 | BS171: =(BS170/1000)*'Fixed Data'!$K$9 -> 0 | BT171: =(BT170/1000)*'Fixed Data'!$K$9 -> 0 | BU171: =(BU170/1000)*'Fixed Data'!$K$9 -> 0 | BV171: =(BV170/1000)*'Fixed Data'!$K$9 -> 0 | BW171: =(BW170/1000)*'Fixed Data'!$K$9 -> 0 | BX171: =(BX170/1000)*'Fixed Data'!$K$9 -> 0 | BY171: =(BY170/1000)*'Fixed Data'!$K$9 -> 0 | BZ171: =(BZ170/1000)*'Fixed Data'!$K$9 -> 0 | CA171: =(CA170/1000)*'Fixed Data'!$K$9 -> 0 | CB171: =(CB170/1000)*'Fixed Data'!$K$9 -> 0 | CC171: =(CC170/1000)*'Fixed Data'!$K$9 -> 0 | CD171: =(CD170/1000)*'Fixed Data'!$K$9 -> 0 | CE171: =(CE170/1000)*'Fixed Data'!$K$9 -> 0 | CF171: =(CF170/1000)*'Fixed Data'!$K$9 -> 0 | CG171: =(CG170/1000)*'Fixed Data'!$K$9 -> 0 | CH171: =(CH170/1000)*'Fixed Data'!$K$9 -> 0
BG173: =(BG172/1000)*'Fixed Data'!$K$10 -> 0 | BH173: =(BH172/1000)*'Fixed Data'!$K$10 -> 0 | BI173: =(BI172/1000)*'Fixed Data'!$K$10 -> 0 | BJ173: =(BJ172/1000)*'Fixed Data'!$K$10 -> 0 | BK173: =(BK172/1000)*'Fixed Data'!$K$10 -> 0 | BL173: =(BL172/1000)*'Fixed Data'!$K$10 -> 0 | BM173: =(BM172/1000)*'Fixed Data'!$K$10 -> 0 | BN173: =(BN172/1000)*'Fixed Data'!$K$10 -> 0 | BO173: =(BO172/1000)*'Fixed Data'!$K$10 -> 0 | BP173: =(BP172/1000)*'Fixed Data'!$K$10 -> 0 | BQ173: =(BQ172/1000)*'Fixed Data'!$K$10 -> 0 | BR173: =(BR172/1000)*'Fixed Data'!$K$10 -> 0 | BS173: =(BS172/1000)*'Fixed Data'!$K$10 -> 0 | BT173: =(BT172/1000)*'Fixed Data'!$K$10 -> 0 | BU173: =(BU172/1000)*'Fixed Data'!$K$10 -> 0 | BV173: =(BV172/1000)*'Fixed Data'!$K$10 -> 0 | BW173: =(BW172/1000)*'Fixed Data'!$K$10 -> 0 | BX173: =(BX172/1000)*'Fixed Data'!$K$10 -> 0 | BY173: =(BY172/1000)*'Fixed Data'!$K$10 -> 0 | BZ173: =(BZ172/1000)*'Fixed Data'!$K$10 -> 0 | CA173: =(CA172/1000)*'Fixed Data'!$K$10 -> 0 | CB173: =(CB172/1000)*'Fixed Data'!$K$10 -> 0 | CC173: =(CC172/1000)*'Fixed Data'!$K$10 -> 0 | CD173: =(CD172/1000)*'Fixed Data'!$K$10 -> 0 | CE173: =(CE172/1000)*'Fixed Data'!$K$10 -> 0 | CF173: =(CF172/1000)*'Fixed Data'!$K$10 -> 0 | CG173: =(CG172/1000)*'Fixed Data'!$K$10 -> 0 | CH173: =(CH172/1000)*'Fixed Data'!$K$10 -> 0
BG175: =(BG174/1000)*'Fixed Data'!$K$11 -> 0 | BH175: =(BH174/1000)*'Fixed Data'!$K$11 -> 0 | BI175: =(BI174/1000)*'Fixed Data'!$K$11 -> 0 | BJ175: =(BJ174/1000)*'Fixed Data'!$K$11 -> 0 | BK175: =(BK174/1000)*'Fixed Data'!$K$11 -> 0 | BL175: =(BL174/1000)*'Fixed Data'!$K$11 -> 0 | BM175: =(BM174/1000)*'Fixed Data'!$K$11 -> 0 | BN175: =(BN174/1000)*'Fixed Data'!$K$11 -> 0 | BO175: =(BO174/1000)*'Fixed Data'!$K$11 -> 0 | BP175: =(BP174/1000)*'Fixed Data'!$K$11 -> 0 | BQ175: =(BQ174/1000)*'Fixed Data'!$K$11 -> 0 | BR175: =(BR174/1000)*'Fixed Data'!$K$11 -> 0 | BS175: =(BS174/1000)*'Fixed Data'!$K$11 -> 0 | BT175: =(BT174/1000)*'Fixed Data'!$K$11 -> 0 | BU175: =(BU174/1000)*'Fixed Data'!$K$11 -> 0 | BV175: =(BV174/1000)*'Fixed Data'!$K$11 -> 0 | BW175: =(BW174/1000)*'Fixed Data'!$K$11 -> 0 | BX175: =(BX174/1000)*'Fixed Data'!$K$11 -> 0 | BY175: =(BY174/1000)*'Fixed Data'!$K$11 -> 0 | BZ175: =(BZ174/1000)*'Fixed Data'!$K$11 -> 0 | CA175: =(CA174/1000)*'Fixed Data'!$K$11 -> 0 | CB175: =(CB174/1000)*'Fixed Data'!$K$11 -> 0 | CC175: =(CC174/1000)*'Fixed Data'!$K$11 -> 0 | CD175: =(CD174/1000)*'Fixed Data'!$K$11 -> 0 | CE175: =(CE174/1000)*'Fixed Data'!$K$11 -> 0 | CF175: =(CF174/1000)*'Fixed Data'!$K$11 -> 0 | CG175: =(CG174/1000)*'Fixed Data'!$K$11 -> 0 | CH175: =(CH174/1000)*'Fixed Data'!$K$11 -> 0
B176: Reduced prob of Fatality | D176: %
B177: Reduced prob of Non Fatal Injury | D177: %
B180: Net benefits (excl. Safety) | D180: £m | E180: =E72+E150+SUM(E153:E159,E162:E164) -> 0 | F180: =F72+F150+SUM(F153:F159,F162:F164) -> 0 | G180: 0 | H180: 0 | I180: 0 | J180: 0 | K180: 0 | L180: 0 | M180: 0 | N180: 0 | O180: 0 | P180: 0 | Q180: 0 | R180: 0 | S180: 0 | T180: 0 | U180: 0 | V180: 0 | W180: 0 | X180: 0 | Y180: 0 | Z180: 0 | AA180: 0 | AB180: 0 | AC180: 0 | AD180: 0 | AE180: 0 | AF180: 0 | AG180: 0 | AH180: 0 | AI180: 0 | AJ180: 0 | AK180: 0 | AL180: 0 | AM180: 0 | AN180: 0 | AO180: 0 | AP180: 0 | AQ180: 0 | AR180: 0 | AS180: 0 | AT180: 0 | AU180: 0 | AV180: 0 | AW180: 0 | AX180: 0 | AY180: 0 | AZ180: 0 | BA180: 0 | BB180: 0 | BC180: 0 | BD180: 0 | BE180: 0 | BF180: 0 | BG180: =IF($E$3=FALSE,BG150+BG165,BG150) -> 0 | BH180: 0 | BI180: 0 | BJ180: 0 | BK180: 0 | BL180: 0 | BM180: 0 | BN180: 0 | BO180: 0 | BP180: 0 | BQ180: 0 | BR180: 0 | BS180: 0 | BT180: =IF($E$3=FALSE,BT150+BT165,BT150) -> 0 | BU180: 0 | BV180: 0 | BW180: 0 | BX180: 0 | BY180: 0 | BZ180: 0 | CA180: 0 | CB180: 0 | CC180: 0 | CD180: 0 | CE180: 0 | CF180: 0 | CG180: 0 | CH180: 0
B181: Net benefits (Safety) | D181: £m | E181: =SUM(E160:E161) -> 0 | F181: =SUM(F160:F161) -> 0 | G181: 0 | H181: 0 | I181: 0 | J181: 0 | K181: 0 | L181: 0 | M181: 0 | N181: 0 | O181: 0 | P181: 0 | Q181: 0 | R181: 0 | S181: 0 | T181: 0 | U181: 0 | V181: 0 | W181: 0 | X181: 0 | Y181: 0 | Z181: 0 | AA181: 0 | AB181: 0 | AC181: 0 | AD181: 0 | AE181: 0 | AF181: 0 | AG181: 0 | AH181: 0 | AI181: 0 | AJ181: 0 | AK181: 0 | AL181: 0 | AM181: 0 | AN181: 0 | AO181: 0 | AP181: 0 | AQ181: 0 | AR181: 0 | AS181: 0 | AT181: 0 | AU181: 0 | AV181: 0 | AW181: 0 | AX181: 0 | AY181: 0 | AZ181: 0 | BA181: 0 | BB181: 0 | BC181: 0 | BD181: 0 | BE181: 0 | BF181: 0 | BG181: =SUM(BG160:BG161) -> 0 | BH181: 0 | BI181: 0 | BJ181: 0 | BK181: 0 | BL181: 0 | BM181: 0 | BN181: 0 | BO181: 0 | BP181: 0 | BQ181: =SUM(BQ160:BQ161) -> 0 | BR181: 0 | BS181: 0 | BT181: 0 | BU181: 0 | BV181: 0 | BW181: 0 | BX181: 0 | BY181: 0 | BZ181: 0 | CA181: 0 | CB181: 0 | CC181: 0 | CD181: 0 | CE181: 0 | CF181: 0 | CG181: 0 | CH181: 0
B182: Discount factor | C182: =1/[(1+SRTP)^n] | D182: % | E182: =IFERROR(IF(E50<($B$12-2018),1,IF((E50-($B$12-2018))>30,(D$182/(1+'Fixed Data'!$E$8)),(1/(1+'Fixed Data'!$E$7)^(E50-($B$12-2018))))),0) -> 0 | F182: =IFERROR(IF(F50<($B$12-2018),1,IF((F50-($B$12-2018))>30,(E$182/(1+'Fixed Data'!$E$8)),(1/(1+'Fixed Data'!$E$7)^(F50-($B$12-2018))))),0) -> 0 | G182: =IFERROR(IF(G50<($B$12-2018),1,IF((G50-($B$12-2018))>30,(F$182/(1+'Fixed Data'!$E$8)),(1/(1+'Fixed Data'!$E$7)^(G50-($B$12-2018))))),0) -> 0 | H182: =IFERROR(IF(H50<($B$12-2018),1,IF((H50-($B$12-2018))>30,(G$182/(1+'Fixed Data'!$E$8)),(1/(1+'Fixed Data'!$E$7)^(H50-($B$12-2018))))),0) -> 0 | I182: =IFERROR(IF(I50<($B$12-2018),1,IF((I50-($B$12-2018))>30,(H$182/(1+'Fixed Data'!$E$8)),(1/(1+'Fixed Data'!$E$7)^(I50-($B$12-2018))))),0) -> 0 | J182: =IFERROR(IF(J50<($B$12-2018),1,IF((J50-($B$12-2018))>30,(I$182/(1+'Fixed Data'!$E$8)),(1/(1+'Fixed Data'!$E$7)^(J50-($B$12-2018))))),0) -> 0 | K182: =IFERROR(IF(K50<($B$12-2018),1,IF((K50-($B$12-2018))>30,(J$182/(1+'Fixed Data'!$E$8)),(1/(1+'Fixed Data'!$E$7)^(K50-($B$12-2018))))),0) -> 0 | L182: =IFERROR(IF(L50<($B$12-2018),1,IF((L50-($B$12-2018))>30,(K$182/(1+'Fixed Data'!$E$8)),(1/(1+'Fixed Data'!$E$7)^(L50-($B$12-2018))))),0) -> 0 | M182: =IFERROR(IF(M50<($B$12-2018),1,IF((M50-($B$12-2018))>30,(L$182/(1+'Fixed Data'!$E$8)),(1/(1+'Fixed Data'!$E$7)^(M50-($B$12-2018))))),0) -> 0 | N182: =IFERROR(IF(N50<($B$12-2018),1,IF((N50-($B$12-2018))>30,(M$182/(1+'Fixed Data'!$E$8)),(1/(1+'Fixed Data'!$E$7)^(N50-($B$12-2018))))),0) -> 0 | O182: =IFERROR(IF(O50<($B$12-2018),1,IF((O50-($B$12-2018))>30,(N$182/(1+'Fixed Data'!$E$8)),(1/(1+'Fixed Data'!$E$7)^(O50-($B$12-2018))))),0) -> 0 | P182: =IFERROR(IF(P50<($B$12-2018),1,IF((P50-($B$12-2018))>30,(O$182/(1+'Fixed Data'!$E$8)),(1/(1+'Fixed Data'!$E$7)^(P50-($B$12-2018))))),0) -> 0 | Q182: =IFERROR(IF(Q50<($B$12-2018),1,IF((Q50-($B$12-2018))>30,(P$182/(1+'Fixed Data'!$E$8)),(1/(1+'Fixed Data'!$E$7)^(Q50-($B$12-2018))))),0) -> 0 | R182: =IFERROR(IF(R50<($B$12-2018),1,IF((R50-($B$12-2018))>30,(Q$182/(1+'Fixed Data'!$E$8)),(1/(1+'Fixed Data'!$E$7)^(R50-($B$12-2018))))),0) -> 0 | S182: =IFERROR(IF(S50<($B$12-2018),1,IF((S50-($B$12-2018))>30,(R$182/(1+'Fixed Data'!$E$8)),(1/(1+'Fixed Data'!$E$7)^(S50-($B$12-2018))))),0) -> 0 | T182: =IFERROR(IF(T50<($B$12-2018),1,IF((T50-($B$12-2018))>30,(S$182/(1+'Fixed Data'!$E$8)),(1/(1+'Fixed Data'!$E$7)^(T50-($B$12-2018))))),0) -> 0 | U182: =IFERROR(IF(U50<($B$12-2018),1,IF((U50-($B$12-2018))>30,(T$182/(1+'Fixed Data'!$E$8)),(1/(1+'Fixed Data'!$E$7)^(U50-($B$12-2018))))),0) -> 0 | V182: =IFERROR(IF(V50<($B$12-2018),1,IF((V50-($B$12-2018))>30,(U$182/(1+'Fixed Data'!$E$8)),(1/(1+'Fixed Data'!$E$7)^(V50-($B$12-2018))))),0) -> 0 | W182: =IFERROR(IF(W50<($B$12-2018),1,IF((W50-($B$12-2018))>30,(V$182/(1+'Fixed Data'!$E$8)),(1/(1+'Fixed Data'!$E$7)^(W50-($B$12-2018))))),0) -> 0 | X182: =IFERROR(IF(X50<($B$12-2018),1,IF((X50-($B$12-2018))>30,(W$182/(1+'Fixed Data'!$E$8)),(1/(1+'Fixed Data'!$E$7)^(X50-($B$12-2018))))),0) -> 0 | Y182: =IFERROR(IF(Y50<($B$12-2018),1,IF((Y50-($B$12-2018))>30,(X$182/(1+'Fixed Data'!$E$8)),(1/(1+'Fixed Data'!$E$7)^(Y50-($B$12-2018))))),0) -> 0 | Z182: =IFERROR(IF(Z50<($B$12-2018),1,IF((Z50-($B$12-2018))>30,(Y$182/(1+'Fixed Data'!$E$8)),(1/(1+'Fixed Data'!$E$7)^(Z50-($B$12-2018))))),0) -> 0 | AA182: =IFERROR(IF(AA50<($B$12-2018),1,IF((AA50-($B$12-2018))>30,(Z$182/(1+'Fixed Data'!$E$8)),(1/(1+'Fixed Data'!$E$7)^(AA50-($B$12-2018))))),0) -> 0 | AB182: =IFERROR(IF(AB50<($B$12-2018),1,IF((AB50-($B$12-2018))>30,(AA$182/(1+'Fixed Data'!$E$8)),(1/(1+'Fixed Data'!$E$7)^(AB50-($B$12-2018))))),0) -> 0 | AC182: =IFERROR(IF(AC50<($B$12-2018),1,IF((AC50-($B$12-2018))>30,(AB$182/(1+'Fixed Data'!$E$8)),(1/(1+'Fixed Data'!$E$7)^(AC50-($B$12-2018))))),0) -> 0 | AD182: =IFERROR(IF(AD50<($B$12-2018),1,IF((AD50-($B$12-2018))>30,(AC$182/(1+'Fixed Data'!$E$8)),(1/(1+'Fixed Data'!$E$7)^(AD50-($B$12-2018))))),0) -> 0 | AE182: =IFERROR(IF(AE50<($B$12-2018),1,IF((AE50-($B$12-2018))>30,(AD$182/(1+'Fixed Data'!$E$8)),(1/(1+'Fixed Data'!$E$7)^(AE50-($B$12-2018))))),0) -> 0 | AF182: =IFERROR(IF(AF50<($B$12-2018),1,IF((AF50-($B$12-2018))>30,(AE$182/(1+'Fixed Data'!$E$8)),(1/(1+'Fixed Data'!$E$7)^(AF50-($B$12-2018))))),0) -> 0 | AG182: =IFERROR(IF(AG50<($B$12-2018),1,IF((AG50-($B$12-2018))>30,(AF$182/(1+'Fixed Data'!$E$8)),(1/(1+'Fixed Data'!$E$7)^(AG50-($B$12-2018))))),0) -> 0 | AH182: =IFERROR(IF(AH50<($B$12-2018),1,IF((AH50-($B$12-2018))>30,(AG$182/(1+'Fixed Data'!$E$8)),(1/(1+'Fixed Data'!$E$7)^(AH50-($B$12-2018))))),0) -> 0 | AI182: =IFERROR(IF(AI50<($B$12-2018),1,IF((AI50-($B$12-2018))>30,(AH$182/(1+'Fixed Data'!$E$8)),(1/(1+'Fixed Data'!$E$7)^(AI50-($B$12-2018))))),0) -> 0 | AJ182: =IFERROR(IF(AJ50<($B$12-2018),1,IF((AJ50-($B$12-2018))>30,(AI$182/(1+'Fixed Data'!$E$8)),(1/(1+'Fixed Data'!$E$7)^(AJ50-($B$12-2018))))),0) -> 0 | AK182: =IFERROR(IF(AK50<($B$12-2018),1,IF((AK50-($B$12-2018))>30,(AJ$182/(1+'Fixed Data'!$E$8)),(1/(1+'Fixed Data'!$E$7)^(AK50-($B$12-2018))))),0) -> 0 | AL182: =IFERROR(IF(AL50<($B$12-2018),1,IF((AL50-($B$12-2018))>30,(AK$182/(1+'Fixed Data'!$E$8)),(1/(1+'Fixed Data'!$E$7)^(AL50-($B$12-2018))))),0) -> 0 | AM182: =IFERROR(IF(AM50<($B$12-2018),1,IF((AM50-($B$12-2018))>30,(AL$182/(1+'Fixed Data'!$E$8)),(1/(1+'Fixed Data'!$E$7)^(AM50-($B$12-2018))))),0) -> 0 | AN182: =IFERROR(IF(AN50<($B$12-2018),1,IF((AN50-($B$12-2018))>30,(AM$182/(1+'Fixed Data'!$E$8)),(1/(1+'Fixed Data'!$E$7)^(AN50-($B$12-2018))))),0) -> 0 | AO182: =IFERROR(IF(AO50<($B$12-2018),1,IF((AO50-($B$12-2018))>30,(AN$182/(1+'Fixed Data'!$E$8)),(1/(1+'Fixed Data'!$E$7)^(AO50-($B$12-2018))))),0) -> 0 | AP182: =IFERROR(IF(AP50<($B$12-2018),1,IF((AP50-($B$12-2018))>30,(AO$182/(1+'Fixed Data'!$E$8)),(1/(1+'Fixed Data'!$E$7)^(AP50-($B$12-2018))))),0) -> 0 | AQ182: =IFERROR(IF(AQ50<($B$12-2018),1,IF((AQ50-($B$12-2018))>30,(AP$182/(1+'Fixed Data'!$E$8)),(1/(1+'Fixed Data'!$E$7)^(AQ50-($B$12-2018))))),0) -> 0 | AR182: =IFERROR(IF(AR50<($B$12-2018),1,IF((AR50-($B$12-2018))>30,(AQ$182/(1+'Fixed Data'!$E$8)),(1/(1+'Fixed Data'!$E$7)^(AR50-($B$12-2018))))),0) -> 0 | AS182: =IFERROR(IF(AS50<($B$12-2018),1,IF((AS50-($B$12-2018))>30,(AR$182/(1+'Fixed Data'!$E$8)),(1/(1+'Fixed Data'!$E$7)^(AS50-($B$12-2018))))),0) -> 0 | AT182: =IFERROR(IF(AT50<($B$12-2018),1,IF((AT50-($B$12-2018))>30,(AS$182/(1+'Fixed Data'!$E$8)),(1/(1+'Fixed Data'!$E$7)^(AT50-($B$12-2018))))),0) -> 0 | AU182: =IFERROR(IF(AU50<($B$12-2018),1,IF((AU50-($B$12-2018))>30,(AT$182/(1+'Fixed Data'!$E$8)),(1/(1+'Fixed Data'!$E$7)^(AU50-($B$12-2018))))),0) -> 0 | AV182: =IFERROR(IF(AV50<($B$12-2018),1,IF((AV50-($B$12-2018))>30,(AU$182/(1+'Fixed Data'!$E$8)),(1/(1+'Fixed Data'!$E$7)^(AV50-($B$12-2018))))),0) -> 0 | AW182: =IFERROR(IF(AW50<($B$12-2018),1,IF((AW50-($B$12-2018))>30,(AV$182/(1+'Fixed Data'!$E$8)),(1/(1+'Fixed Data'!$E$7)^(AW50-($B$12-2018))))),0) -> 0 | AX182: =IFERROR(IF(AX50<($B$12-2018),1,IF((AX50-($B$12-2018))>30,(AW$182/(1+'Fixed Data'!$E$8)),(1/(1+'Fixed Data'!$E$7)^(AX50-($B$12-2018))))),0) -> 0 | AY182: =IFERROR(IF(AY50<($B$12-2018),1,IF((AY50-($B$12-2018))>30,(AX$182/(1+'Fixed Data'!$E$8)),(1/(1+'Fixed Data'!$E$7)^(AY50-($B$12-2018))))),0) -> 0 | AZ182: =IFERROR(IF(AZ50<($B$12-2018),1,IF((AZ50-($B$12-2018))>30,(AY$182/(1+'Fixed Data'!$E$8)),(1/(1+'Fixed Data'!$E$7)^(AZ50-($B$12-2018))))),0) -> 0 | BA182: =IFERROR(IF(BA50<($B$12-2018),1,IF((BA50-($B$12-2018))>30,(AZ$182/(1+'Fixed Data'!$E$8)),(1/(1+'Fixed Data'!$E$7)^(BA50-($B$12-2018))))),0) -> 0 | BB182: =IFERROR(IF(BB50<($B$12-2018),1,IF((BB50-($B$12-2018))>30,(BA$182/(1+'Fixed Data'!$E$8)),(1/(1+'Fixed Data'!$E$7)^(BB50-($B$12-2018))))),0) -> 0 | BC182: =IFERROR(IF(BC50<($B$12-2018),1,IF((BC50-($B$12-2018))>30,(BB$182/(1+'Fixed Data'!$E$8)),(1/(1+'Fixed Data'!$E$7)^(BC50-($B$12-2018))))),0) -> 0 | BD182: =IFERROR(IF(BD50<($B$12-2018),1,IF((BD50-($B$12-2018))>30,(BC$182/(1+'Fixed Data'!$E$8)),(1/(1+'Fixed Data'!$E$7)^(BD50-($B$12-2018))))),0) -> 0 | BE182: =IFERROR(IF(BE50<($B$12-2018),1,IF((BE50-($B$12-2018))>30,(BD$182/(1+'Fixed Data'!$E$8)),(1/(1+'Fixed Data'!$E$7)^(BE50-($B$12-2018))))),0) -> 0 | BF182: =IFERROR(IF(BF50<($B$12-2018),1,IF((BF50-($B$12-2018))>30,(BE$182/(1+'Fixed Data'!$E$8)),(1/(1+'Fixed Data'!$E$7)^(BF50-($B$12-2018))))),0) -> 0 | BG182: =IF(BG50<$B$12,1,IF((BG50-$B$12)>30,(1/(1+'Fixed Data'!$E$8)^(BG50-$B$12)),(1/(1+'Fixed Data'!$E$7)^(BG50-$B$12)))) -> 0.1967671708 | BH182: =IF(BH50<$B$12,1,IF((BH50-$B$12)>30,(1/(1+'Fixed Data'!$E$8)^(BH50-$B$12)),(1/(1+'Fixed Data'!$E$7)^(BH50-$B$12)))) -> 0.1910360882 | BI182: =IF(BI50<$B$12,1,IF((BI50-$B$12)>30,(1/(1+'Fixed Data'!$E$8)^(BI50-$B$12)),(1/(1+'Fixed Data'!$E$7)^(BI50-$B$12)))) -> 0.1854719303 | BJ182: =IF(BJ50<$B$12,1,IF((BJ50-$B$12)>30,(1/(1+'Fixed Data'!$E$8)^(BJ50-$B$12)),(1/(1+'Fixed Data'!$E$7)^(BJ50-$B$12)))) -> 0.1800698352 | BK182: =IF(BK50<$B$12,1,IF((BK50-$B$12)>30,(1/(1+'Fixed Data'!$E$8)^(BK50-$B$12)),(1/(1+'Fixed Data'!$E$7)^(BK50-$B$12)))) -> 0.1748250827 | BL182: =IF(BL50<$B$12,1,IF((BL50-$B$12)>30,(1/(1+'Fixed Data'!$E$8)^(BL50-$B$12)),(1/(1+'Fixed Data'!$E$7)^(BL50-$B$12)))) -> 0.16973309 | BM182: =IF(BM50<$B$12,1,IF((BM50-$B$12)>30,(1/(1+'Fixed Data'!$E$8)^(BM50-$B$12)),(1/(1+'Fixed Data'!$E$7)^(BM50-$B$12)))) -> 0.1647894078 | BN182: =IF(BN50<$B$12,1,IF((BN50-$B$12)>30,(1/(1+'Fixed Data'!$E$8)^(BN50-$B$12)),(1/(1+'Fixed Data'!$E$7)^(BN50-$B$12)))) -> 0.1599897163 | BO182: =IF(BO50<$B$12,1,IF((BO50-$B$12)>30,(1/(1+'Fixed Data'!$E$8)^(BO50-$B$12)),(1/(1+'Fixed Data'!$E$7)^(BO50-$B$12)))) -> 0.1553298216 | BP182: =IF(BP50<$B$12,1,IF((BP50-$B$12)>30,(1/(1+'Fixed Data'!$E$8)^(BP50-$B$12)),(1/(1+'Fixed Data'!$E$7)^(BP50-$B$12)))) -> 0.1508056521 | BQ182: =IF(BQ50<$B$12,1,IF((BQ50-$B$12)>30,(1/(1+'Fixed Data'!$E$8)^(BQ50-$B$12)),(1/(1+'Fixed Data'!$E$7)^(BQ50-$B$12)))) -> 0.1464132544 | BR182: =IF(BR50<$B$12,1,IF((BR50-$B$12)>30,(1/(1+'Fixed Data'!$E$8)^(BR50-$B$12)),(1/(1+'Fixed Data'!$E$7)^(BR50-$B$12)))) -> 0.1421487907 | BS182: =IF(BS50<$B$12,1,IF((BS50-$B$12)>30,(1/(1+'Fixed Data'!$E$8)^(BS50-$B$12)),(1/(1+'Fixed Data'!$E$7)^(BS50-$B$12)))) -> 0.1380085347 | BT182: =IF(BT50<$B$12,1,IF((BT50-$B$12)>30,(1/(1+'Fixed Data'!$E$8)^(BT50-$B$12)),(1/(1+'Fixed Data'!$E$7)^(BT50-$B$12)))) -> 0.1339888686 | BU182: =IF(BU50<$B$12,1,IF((BU50-$B$12)>30,(1/(1+'Fixed Data'!$E$8)^(BU50-$B$12)),(1/(1+'Fixed Data'!$E$7)^(BU50-$B$12)))) -> 0.1300862802 | BV182: =IF(BV50<$B$12,1,IF((BV50-$B$12)>30,(1/(1+'Fixed Data'!$E$8)^(BV50-$B$12)),(1/(1+'Fixed Data'!$E$7)^(BV50-$B$12)))) -> 0.1262973594 | BW182: =IF(BW50<$B$12,1,IF((BW50-$B$12)>30,(1/(1+'Fixed Data'!$E$8)^(BW50-$B$12)),(1/(1+'Fixed Data'!$E$7)^(BW50-$B$12)))) -> 0.1226187956 | BX182: =IF(BX50<$B$12,1,IF((BX50-$B$12)>30,(1/(1+'Fixed Data'!$E$8)^(BX50-$B$12)),(1/(1+'Fixed Data'!$E$7)^(BX50-$B$12)))) -> 0.1190473743 | BY182: =IF(BY50<$B$12,1,IF((BY50-$B$12)>30,(1/(1+'Fixed Data'!$E$8)^(BY50-$B$12)),(1/(1+'Fixed Data'!$E$7)^(BY50-$B$12)))) -> 0.1155799751 | BZ182: =IF(BZ50<$B$12,1,IF((BZ50-$B$12)>30,(1/(1+'Fixed Data'!$E$8)^(BZ50-$B$12)),(1/(1+'Fixed Data'!$E$7)^(BZ50-$B$12)))) -> 0.112213568 | CA182: =IF(CA50<$B$12,1,IF((CA50-$B$12)>30,(1/(1+'Fixed Data'!$E$8)^(CA50-$B$12)),(1/(1+'Fixed Data'!$E$7)^(CA50-$B$12)))) -> 0.1089452117 | CB182: =IF(CB50<$B$12,1,IF((CB50-$B$12)>30,(1/(1+'Fixed Data'!$E$8)^(CB50-$B$12)),(1/(1+'Fixed Data'!$E$7)^(CB50-$B$12)))) -> 0.1057720502 | CC182: =IF(CC50<$B$12,1,IF((CC50-$B$12)>30,(1/(1+'Fixed Data'!$E$8)^(CC50-$B$12)),(1/(1+'Fixed Data'!$E$7)^(CC50-$B$12)))) -> 0.1026913109 | CD182: =IF(CD50<$B$12,1,IF((CD50-$B$12)>30,(1/(1+'Fixed Data'!$E$8)^(CD50-$B$12)),(1/(1+'Fixed Data'!$E$7)^(CD50-$B$12)))) -> 0.09970030181 | CE182: =IF(CE50<$B$12,1,IF((CE50-$B$12)>30,(1/(1+'Fixed Data'!$E$8)^(CE50-$B$12)),(1/(1+'Fixed Data'!$E$7)^(CE50-$B$12)))) -> 0.09679640952 | CF182: =IF(CF50<$B$12,1,IF((CF50-$B$12)>30,(1/(1+'Fixed Data'!$E$8)^(CF50-$B$12)),(1/(1+'Fixed Data'!$E$7)^(CF50-$B$12)))) -> 0.09397709663 | CG182: =IF(CG50<$B$12,1,IF((CG50-$B$12)>30,(1/(1+'Fixed Data'!$E$8)^(CG50-$B$12)),(1/(1+'Fixed Data'!$E$7)^(CG50-$B$12)))) -> 0.09123989964 | CH182: =IF(CH50<$B$12,1,IF((CH50-$B$12)>30,(1/(1+'Fixed Data'!$E$8)^(CH50-$B$12)),(1/(1+'Fixed Data'!$E$7)^(CH50-$B$12)))) -> 0.08858242683
B183: Discount factor (Safety) | C183: =1/[(1+HDR)^n] | D183: % | E183: =IFERROR(IF(E50<($B$12-2018),1,IF((E50-($B$12-2018))>30,(D$183/(1+'Fixed Data'!$E$10)),(1/(1+'Fixed Data'!$E$9)^(E50-($B$12-2018))))),0) -> 0 | F183: =IFERROR(IF(F50<($B$12-2018),1,IF((F50-($B$12-2018))>30,(E$183/(1+'Fixed Data'!$E$10)),(1/(1+'Fixed Data'!$E$9)^(F50-($B$12-2018))))),0) -> 0 | G183: =IFERROR(IF(G50<($B$12-2018),1,IF((G50-($B$12-2018))>30,(F$183/(1+'Fixed Data'!$E$10)),(1/(1+'Fixed Data'!$E$9)^(G50-($B$12-2018))))),0) -> 0 | H183: =IFERROR(IF(H50<($B$12-2018),1,IF((H50-($B$12-2018))>30,(G$183/(1+'Fixed Data'!$E$10)),(1/(1+'Fixed Data'!$E$9)^(H50-($B$12-2018))))),0) -> 0 | I183: =IFERROR(IF(I50<($B$12-2018),1,IF((I50-($B$12-2018))>30,(H$183/(1+'Fixed Data'!$E$10)),(1/(1+'Fixed Data'!$E$9)^(I50-($B$12-2018))))),0) -> 0 | J183: =IFERROR(IF(J50<($B$12-2018),1,IF((J50-($B$12-2018))>30,(I$183/(1+'Fixed Data'!$E$10)),(1/(1+'Fixed Data'!$E$9)^(J50-($B$12-2018))))),0) -> 0 | K183: =IFERROR(IF(K50<($B$12-2018),1,IF((K50-($B$12-2018))>30,(J$183/(1+'Fixed Data'!$E$10)),(1/(1+'Fixed Data'!$E$9)^(K50-($B$12-2018))))),0) -> 0 | L183: =IFERROR(IF(L50<($B$12-2018),1,IF((L50-($B$12-2018))>30,(K$183/(1+'Fixed Data'!$E$10)),(1/(1+'Fixed Data'!$E$9)^(L50-($B$12-2018))))),0) -> 0 | M183: =IFERROR(IF(M50<($B$12-2018),1,IF((M50-($B$12-2018))>30,(L$183/(1+'Fixed Data'!$E$10)),(1/(1+'Fixed Data'!$E$9)^(M50-($B$12-2018))))),0) -> 0 | N183: =IFERROR(IF(N50<($B$12-2018),1,IF((N50-($B$12-2018))>30,(M$183/(1+'Fixed Data'!$E$10)),(1/(1+'Fixed Data'!$E$9)^(N50-($B$12-2018))))),0) -> 0 | O183: =IFERROR(IF(O50<($B$12-2018),1,IF((O50-($B$12-2018))>30,(N$183/(1+'Fixed Data'!$E$10)),(1/(1+'Fixed Data'!$E$9)^(O50-($B$12-2018))))),0) -> 0 | P183: =IFERROR(IF(P50<($B$12-2018),1,IF((P50-($B$12-2018))>30,(O$183/(1+'Fixed Data'!$E$10)),(1/(1+'Fixed Data'!$E$9)^(P50-($B$12-2018))))),0) -> 0 | Q183: =IFERROR(IF(Q50<($B$12-2018),1,IF((Q50-($B$12-2018))>30,(P$183/(1+'Fixed Data'!$E$10)),(1/(1+'Fixed Data'!$E$9)^(Q50-($B$12-2018))))),0) -> 0 | R183: =IFERROR(IF(R50<($B$12-2018),1,IF((R50-($B$12-2018))>30,(Q$183/(1+'Fixed Data'!$E$10)),(1/(1+'Fixed Data'!$E$9)^(R50-($B$12-2018))))),0) -> 0 | S183: =IFERROR(IF(S50<($B$12-2018),1,IF((S50-($B$12-2018))>30,(R$183/(1+'Fixed Data'!$E$10)),(1/(1+'Fixed Data'!$E$9)^(S50-($B$12-2018))))),0) -> 0 | T183: =IFERROR(IF(T50<($B$12-2018),1,IF((T50-($B$12-2018))>30,(S$183/(1+'Fixed Data'!$E$10)),(1/(1+'Fixed Data'!$E$9)^(T50-($B$12-2018))))),0) -> 0 | U183: =IFERROR(IF(U50<($B$12-2018),1,IF((U50-($B$12-2018))>30,(T$183/(1+'Fixed Data'!$E$10)),(1/(1+'Fixed Data'!$E$9)^(U50-($B$12-2018))))),0) -> 0 | V183: =IFERROR(IF(V50<($B$12-2018),1,IF((V50-($B$12-2018))>30,(U$183/(1+'Fixed Data'!$E$10)),(1/(1+'Fixed Data'!$E$9)^(V50-($B$12-2018))))),0) -> 0 | W183: =IFERROR(IF(W50<($B$12-2018),1,IF((W50-($B$12-2018))>30,(V$183/(1+'Fixed Data'!$E$10)),(1/(1+'Fixed Data'!$E$9)^(W50-($B$12-2018))))),0) -> 0 | X183: =IFERROR(IF(X50<($B$12-2018),1,IF((X50-($B$12-2018))>30,(W$183/(1+'Fixed Data'!$E$10)),(1/(1+'Fixed Data'!$E$9)^(X50-($B$12-2018))))),0) -> 0 | Y183: =IFERROR(IF(Y50<($B$12-2018),1,IF((Y50-($B$12-2018))>30,(X$183/(1+'Fixed Data'!$E$10)),(1/(1+'Fixed Data'!$E$9)^(Y50-($B$12-2018))))),0) -> 0 | Z183: =IFERROR(IF(Z50<($B$12-2018),1,IF((Z50-($B$12-2018))>30,(Y$183/(1+'Fixed Data'!$E$10)),(1/(1+'Fixed Data'!$E$9)^(Z50-($B$12-2018))))),0) -> 0 | AA183: =IFERROR(IF(AA50<($B$12-2018),1,IF((AA50-($B$12-2018))>30,(Z$183/(1+'Fixed Data'!$E$10)),(1/(1+'Fixed Data'!$E$9)^(AA50-($B$12-2018))))),0) -> 0 | AB183: =IFERROR(IF(AB50<($B$12-2018),1,IF((AB50-($B$12-2018))>30,(AA$183/(1+'Fixed Data'!$E$10)),(1/(1+'Fixed Data'!$E$9)^(AB50-($B$12-2018))))),0) -> 0 | AC183: =IFERROR(IF(AC50<($B$12-2018),1,IF((AC50-($B$12-2018))>30,(AB$183/(1+'Fixed Data'!$E$10)),(1/(1+'Fixed Data'!$E$9)^(AC50-($B$12-2018))))),0) -> 0 | AD183: =IFERROR(IF(AD50<($B$12-2018),1,IF((AD50-($B$12-2018))>30,(AC$183/(1+'Fixed Data'!$E$10)),(1/(1+'Fixed Data'!$E$9)^(AD50-($B$12-2018))))),0) -> 0 | AE183: =IFERROR(IF(AE50<($B$12-2018),1,IF((AE50-($B$12-2018))>30,(AD$183/(1+'Fixed Data'!$E$10)),(1/(1+'Fixed Data'!$E$9)^(AE50-($B$12-2018))))),0) -> 0 | AF183: =IFERROR(IF(AF50<($B$12-2018),1,IF((AF50-($B$12-2018))>30,(AE$183/(1+'Fixed Data'!$E$10)),(1/(1+'Fixed Data'!$E$9)^(AF50-($B$12-2018))))),0) -> 0 | AG183: =IFERROR(IF(AG50<($B$12-2018),1,IF((AG50-($B$12-2018))>30,(AF$183/(1+'Fixed Data'!$E$10)),(1/(1+'Fixed Data'!$E$9)^(AG50-($B$12-2018))))),0) -> 0 | AH183: =IFERROR(IF(AH50<($B$12-2018),1,IF((AH50-($B$12-2018))>30,(AG$183/(1+'Fixed Data'!$E$10)),(1/(1+'Fixed Data'!$E$9)^(AH50-($B$12-2018))))),0) -> 0 | AI183: =IFERROR(IF(AI50<($B$12-2018),1,IF((AI50-($B$12-2018))>30,(AH$183/(1+'Fixed Data'!$E$10)),(1/(1+'Fixed Data'!$E$9)^(AI50-($B$12-2018))))),0) -> 0 | AJ183: =IFERROR(IF(AJ50<($B$12-2018),1,IF((AJ50-($B$12-2018))>30,(AI$183/(1+'Fixed Data'!$E$10)),(1/(1+'Fixed Data'!$E$9)^(AJ50-($B$12-2018))))),0) -> 0 | AK183: =IFERROR(IF(AK50<($B$12-2018),1,IF((AK50-($B$12-2018))>30,(AJ$183/(1+'Fixed Data'!$E$10)),(1/(1+'Fixed Data'!$E$9)^(AK50-($B$12-2018))))),0) -> 0 | AL183: =IFERROR(IF(AL50<($B$12-2018),1,IF((AL50-($B$12-2018))>30,(AK$183/(1+'Fixed Data'!$E$10)),(1/(1+'Fixed Data'!$E$9)^(AL50-($B$12-2018))))),0) -> 0 | AM183: =IFERROR(IF(AM50<($B$12-2018),1,IF((AM50-($B$12-2018))>30,(AL$183/(1+'Fixed Data'!$E$10)),(1/(1+'Fixed Data'!$E$9)^(AM50-($B$12-2018))))),0) -> 0 | AN183: =IFERROR(IF(AN50<($B$12-2018),1,IF((AN50-($B$12-2018))>30,(AM$183/(1+'Fixed Data'!$E$10)),(1/(1+'Fixed Data'!$E$9)^(AN50-($B$12-2018))))),0) -> 0 | AO183: =IFERROR(IF(AO50<($B$12-2018),1,IF((AO50-($B$12-2018))>30,(AN$183/(1+'Fixed Data'!$E$10)),(1/(1+'Fixed Data'!$E$9)^(AO50-($B$12-2018))))),0) -> 0 | AP183: =IFERROR(IF(AP50<($B$12-2018),1,IF((AP50-($B$12-2018))>30,(AO$183/(1+'Fixed Data'!$E$10)),(1/(1+'Fixed Data'!$E$9)^(AP50-($B$12-2018))))),0) -> 0 | AQ183: =IFERROR(IF(AQ50<($B$12-2018),1,IF((AQ50-($B$12-2018))>30,(AP$183/(1+'Fixed Data'!$E$10)),(1/(1+'Fixed Data'!$E$9)^(AQ50-($B$12-2018))))),0) -> 0 | AR183: =IFERROR(IF(AR50<($B$12-2018),1,IF((AR50-($B$12-2018))>30,(AQ$183/(1+'Fixed Data'!$E$10)),(1/(1+'Fixed Data'!$E$9)^(AR50-($B$12-2018))))),0) -> 0 | AS183: =IFERROR(IF(AS50<($B$12-2018),1,IF((AS50-($B$12-2018))>30,(AR$183/(1+'Fixed Data'!$E$10)),(1/(1+'Fixed Data'!$E$9)^(AS50-($B$12-2018))))),0) -> 0 | AT183: =IFERROR(IF(AT50<($B$12-2018),1,IF((AT50-($B$12-2018))>30,(AS$183/(1+'Fixed Data'!$E$10)),(1/(1+'Fixed Data'!$E$9)^(AT50-($B$12-2018))))),0) -> 0 | AU183: =IFERROR(IF(AU50<($B$12-2018),1,IF((AU50-($B$12-2018))>30,(AT$183/(1+'Fixed Data'!$E$10)),(1/(1+'Fixed Data'!$E$9)^(AU50-($B$12-2018))))),0) -> 0 | AV183: =IFERROR(IF(AV50<($B$12-2018),1,IF((AV50-($B$12-2018))>30,(AU$183/(1+'Fixed Data'!$E$10)),(1/(1+'Fixed Data'!$E$9)^(AV50-($B$12-2018))))),0) -> 0 | AW183: =IFERROR(IF(AW50<($B$12-2018),1,IF((AW50-($B$12-2018))>30,(AV$183/(1+'Fixed Data'!$E$10)),(1/(1+'Fixed Data'!$E$9)^(AW50-($B$12-2018))))),0) -> 0 | AX183: =IFERROR(IF(AX50<($B$12-2018),1,IF((AX50-($B$12-2018))>30,(AW$183/(1+'Fixed Data'!$E$10)),(1/(1+'Fixed Data'!$E$9)^(AX50-($B$12-2018))))),0) -> 0 | AY183: =IFERROR(IF(AY50<($B$12-2018),1,IF((AY50-($B$12-2018))>30,(AX$183/(1+'Fixed Data'!$E$10)),(1/(1+'Fixed Data'!$E$9)^(AY50-($B$12-2018))))),0) -> 0 | AZ183: =IFERROR(IF(AZ50<($B$12-2018),1,IF((AZ50-($B$12-2018))>30,(AY$183/(1+'Fixed Data'!$E$10)),(1/(1+'Fixed Data'!$E$9)^(AZ50-($B$12-2018))))),0) -> 0 | BA183: =IFERROR(IF(BA50<($B$12-2018),1,IF((BA50-($B$12-2018))>30,(AZ$183/(1+'Fixed Data'!$E$10)),(1/(1+'Fixed Data'!$E$9)^(BA50-($B$12-2018))))),0) -> 0 | BB183: =IFERROR(IF(BB50<($B$12-2018),1,IF((BB50-($B$12-2018))>30,(BA$183/(1+'Fixed Data'!$E$10)),(1/(1+'Fixed Data'!$E$9)^(BB50-($B$12-2018))))),0) -> 0 | BC183: =IFERROR(IF(BC50<($B$12-2018),1,IF((BC50-($B$12-2018))>30,(BB$183/(1+'Fixed Data'!$E$10)),(1/(1+'Fixed Data'!$E$9)^(BC50-($B$12-2018))))),0) -> 0 | BD183: =IFERROR(IF(BD50<($B$12-2018),1,IF((BD50-($B$12-2018))>30,(BC$183/(1+'Fixed Data'!$E$10)),(1/(1+'Fixed Data'!$E$9)^(BD50-($B$12-2018))))),0) -> 0 | BE183: =IFERROR(IF(BE50<($B$12-2018),1,IF((BE50-($B$12-2018))>30,(BD$183/(1+'Fixed Data'!$E$10)),(1/(1+'Fixed Data'!$E$9)^(BE50-($B$12-2018))))),0) -> 0 | BF183: =IFERROR(IF(BF50<($B$12-2018),1,IF((BF50-($B$12-2018))>30,(BE$183/(1+'Fixed Data'!$E$10)),(1/(1+'Fixed Data'!$E$9)^(BF50-($B$12-2018))))),0) -> 0 | BG183: =IF(BG50<$B$12,1,IF((BG50-$B$12)>30,(1/(1+'Fixed Data'!$E$10)^(BG50-$B$12)),(1/(1+'Fixed Data'!$E$9)^(BG50-$B$12)))) -> 0.4952782605 | BH183: =IF(BH50<$B$12,1,IF((BH50-$B$12)>30,(1/(1+'Fixed Data'!$E$10)^(BH50-$B$12)),(1/(1+'Fixed Data'!$E$9)^(BH50-$B$12)))) -> 0.4889912304 | BI183: =IF(BI50<$B$12,1,IF((BI50-$B$12)>30,(1/(1+'Fixed Data'!$E$10)^(BI50-$B$12)),(1/(1+'Fixed Data'!$E$9)^(BI50-$B$12)))) -> 0.4827840075 | BJ183: =IF(BJ50<$B$12,1,IF((BJ50-$B$12)>30,(1/(1+'Fixed Data'!$E$10)^(BJ50-$B$12)),(1/(1+'Fixed Data'!$E$9)^(BJ50-$B$12)))) -> 0.4766555786 | BK183: =IF(BK50<$B$12,1,IF((BK50-$B$12)>30,(1/(1+'Fixed Data'!$E$10)^(BK50-$B$12)),(1/(1+'Fixed Data'!$E$9)^(BK50-$B$12)))) -> 0.4706049436 | BL183: =IF(BL50<$B$12,1,IF((BL50-$B$12)>30,(1/(1+'Fixed Data'!$E$10)^(BL50-$B$12)),(1/(1+'Fixed Data'!$E$9)^(BL50-$B$12)))) -> 0.464631115 | BM183: =IF(BM50<$B$12,1,IF((BM50-$B$12)>30,(1/(1+'Fixed Data'!$E$10)^(BM50-$B$12)),(1/(1+'Fixed Data'!$E$9)^(BM50-$B$12)))) -> 0.4587331178 | BN183: =IF(BN50<$B$12,1,IF((BN50-$B$12)>30,(1/(1+'Fixed Data'!$E$10)^(BN50-$B$12)),(1/(1+'Fixed Data'!$E$9)^(BN50-$B$12)))) -> 0.4529099893 | BO183: =IF(BO50<$B$12,1,IF((BO50-$B$12)>30,(1/(1+'Fixed Data'!$E$10)^(BO50-$B$12)),(1/(1+'Fixed Data'!$E$9)^(BO50-$B$12)))) -> 0.4471607793 | BP183: =IF(BP50<$B$12,1,IF((BP50-$B$12)>30,(1/(1+'Fixed Data'!$E$10)^(BP50-$B$12)),(1/(1+'Fixed Data'!$E$9)^(BP50-$B$12)))) -> 0.4414845494 | BQ183: =IF(BQ50<$B$12,1,IF((BQ50-$B$12)>30,(1/(1+'Fixed Data'!$E$10)^(BQ50-$B$12)),(1/(1+'Fixed Data'!$E$9)^(BQ50-$B$12)))) -> 0.4358803732 | BR183: =IF(BR50<$B$12,1,IF((BR50-$B$12)>30,(1/(1+'Fixed Data'!$E$10)^(BR50-$B$12)),(1/(1+'Fixed Data'!$E$9)^(BR50-$B$12)))) -> 0.430347336 | BS183: =IF(BS50<$B$12,1,IF((BS50-$B$12)>30,(1/(1+'Fixed Data'!$E$10)^(BS50-$B$12)),(1/(1+'Fixed Data'!$E$9)^(BS50-$B$12)))) -> 0.4248845348 | BT183: =IF(BT50<$B$12,1,IF((BT50-$B$12)>30,(1/(1+'Fixed Data'!$E$10)^(BT50-$B$12)),(1/(1+'Fixed Data'!$E$9)^(BT50-$B$12)))) -> 0.4194910781 | BU183: =IF(BU50<$B$12,1,IF((BU50-$B$12)>30,(1/(1+'Fixed Data'!$E$10)^(BU50-$B$12)),(1/(1+'Fixed Data'!$E$9)^(BU50-$B$12)))) -> 0.4141660856 | BV183: =IF(BV50<$B$12,1,IF((BV50-$B$12)>30,(1/(1+'Fixed Data'!$E$10)^(BV50-$B$12)),(1/(1+'Fixed Data'!$E$9)^(BV50-$B$12)))) -> 0.4089086882 | BW183: =IF(BW50<$B$12,1,IF((BW50-$B$12)>30,(1/(1+'Fixed Data'!$E$10)^(BW50-$B$12)),(1/(1+'Fixed Data'!$E$9)^(BW50-$B$12)))) -> 0.4037180278 | BX183: =IF(BX50<$B$12,1,IF((BX50-$B$12)>30,(1/(1+'Fixed Data'!$E$10)^(BX50-$B$12)),(1/(1+'Fixed Data'!$E$9)^(BX50-$B$12)))) -> 0.3985932573 | BY183: =IF(BY50<$B$12,1,IF((BY50-$B$12)>30,(1/(1+'Fixed Data'!$E$10)^(BY50-$B$12)),(1/(1+'Fixed Data'!$E$9)^(BY50-$B$12)))) -> 0.3935335404 | BZ183: =IF(BZ50<$B$12,1,IF((BZ50-$B$12)>30,(1/(1+'Fixed Data'!$E$10)^(BZ50-$B$12)),(1/(1+'Fixed Data'!$E$9)^(BZ50-$B$12)))) -> 0.3885380512 | CA183: =IF(CA50<$B$12,1,IF((CA50-$B$12)>30,(1/(1+'Fixed Data'!$E$10)^(CA50-$B$12)),(1/(1+'Fixed Data'!$E$9)^(CA50-$B$12)))) -> 0.3836059744 | CB183: =IF(CB50<$B$12,1,IF((CB50-$B$12)>30,(1/(1+'Fixed Data'!$E$10)^(CB50-$B$12)),(1/(1+'Fixed Data'!$E$9)^(CB50-$B$12)))) -> 0.378736505 | CC183: =IF(CC50<$B$12,1,IF((CC50-$B$12)>30,(1/(1+'Fixed Data'!$E$10)^(CC50-$B$12)),(1/(1+'Fixed Data'!$E$9)^(CC50-$B$12)))) -> 0.3739288484 | CD183: =IF(CD50<$B$12,1,IF((CD50-$B$12)>30,(1/(1+'Fixed Data'!$E$10)^(CD50-$B$12)),(1/(1+'Fixed Data'!$E$9)^(CD50-$B$12)))) -> 0.3691822198 | CE183: =IF(CE50<$B$12,1,IF((CE50-$B$12)>30,(1/(1+'Fixed Data'!$E$10)^(CE50-$B$12)),(1/(1+'Fixed Data'!$E$9)^(CE50-$B$12)))) -> 0.3644958447 | CF183: =IF(CF50<$B$12,1,IF((CF50-$B$12)>30,(1/(1+'Fixed Data'!$E$10)^(CF50-$B$12)),(1/(1+'Fixed Data'!$E$9)^(CF50-$B$12)))) -> 0.3598689581 | CG183: =IF(CG50<$B$12,1,IF((CG50-$B$12)>30,(1/(1+'Fixed Data'!$E$10)^(CG50-$B$12)),(1/(1+'Fixed Data'!$E$9)^(CG50-$B$12)))) -> 0.3553008049 | CH183: =IF(CH50<$B$12,1,IF((CH50-$B$12)>30,(1/(1+'Fixed Data'!$E$10)^(CH50-$B$12)),(1/(1+'Fixed Data'!$E$9)^(CH50-$B$12)))) -> 0.3507906395
B184: Discounted net benefits | D184: £m | E184: =E180*E182 -> 0 | F184: 0 | G184: 0 | H184: 0 | I184: 0 | J184: 0 | K184: 0 | L184: 0 | M184: 0 | N184: 0 | O184: 0 | P184: 0 | Q184: 0 | R184: 0 | S184: 0 | T184: 0 | U184: 0 | V184: 0 | W184: 0 | X184: 0 | Y184: 0 | Z184: 0 | AA184: 0 | AB184: 0 | AC184: 0 | AD184: 0 | AE184: 0 | AF184: 0 | AG184: 0 | AH184: 0 | AI184: 0 | AJ184: 0 | AK184: 0 | AL184: 0 | AM184: 0 | AN184: 0 | AO184: 0 | AP184: 0 | AQ184: 0 | AR184: 0 | AS184: 0 | AT184: 0 | AU184: 0 | AV184: 0 | AW184: 0 | AX184: 0 | AY184: 0 | AZ184: 0 | BA184: 0 | BB184: 0 | BC184: 0 | BD184: 0 | BE184: 0 | BF184: 0 | BG184: 0 | BH184: 0 | BI184: 0 | BJ184: 0 | BK184: 0 | BL184: 0 | BM184: 0 | BN184: 0 | BO184: 0 | BP184: 0 | BQ184: =BQ180*BQ182 -> 0 | BR184: 0 | BS184: 0 | BT184: 0 | BU184: 0 | BV184: 0 | BW184: 0 | BX184: 0 | BY184: 0 | BZ184: 0 | CA184: 0 | CB184: 0 | CC184: 0 | CD184: 0 | CE184: 0 | CF184: 0 | CG184: 0 | CH184: 0
B185: Discounted net benefits (Safety) | D185: £m | E185: 0 | F185: 0 | G185: 0 | H185: 0 | I185: 0 | J185: 0 | K185: 0 | L185: 0 | M185: 0 | N185: 0 | O185: 0 | P185: 0 | Q185: 0 | R185: 0 | S185: 0 | T185: 0 | U185: 0 | V185: 0 | W185: 0 | X185: 0 | Y185: 0 | Z185: 0 | AA185: 0 | AB185: 0 | AC185: 0 | AD185: 0 | AE185: 0 | AF185: 0 | AG185: 0 | AH185: 0 | AI185: 0 | AJ185: 0 | AK185: 0 | AL185: 0 | AM185: 0 | AN185: 0 | AO185: 0 | AP185: 0 | AQ185: 0 | AR185: 0 | AS185: 0 | AT185: 0 | AU185: 0 | AV185: 0 | AW185: 0 | AX185: 0 | AY185: 0 | AZ185: 0 | BA185: 0 | BB185: 0 | BC185: 0 | BD185: 0 | BE185: 0 | BF185: 0 | BG185: 0 | BH185: 0 | BI185: 0 | BJ185: 0 | BK185: 0 | BL185: 0 | BM185: 0 | BN185: 0 | BO185: 0 | BP185: 0 | BQ185: 0 | BR185: 0 | BS185: 0 | BT185: 0 | BU185: 0 | BV185: 0 | BW185: 0 | BX185: 0 | BY185: 0 | BZ185: 0 | CA185: 0 | CB185: 0 | CC185: 0 | CD185: 0 | CE185: 0 | CF185: 0 | CG185: 0 | CH185: 0
B186: Cumulative discounted net benefits | D186: £m | E186: =+E184+E185 -> 0 | F186: =E186+F184+F185 -> 0 | G186: =F186+G184+G185 -> 0 | H186: 0 | I186: 0 | J186: 0 | K186: 0 | L186: 0 | M186: 0 | N186: 0 | O186: 0 | P186: 0 | Q186: 0 | R186: 0 | S186: 0 | T186: 0 | U186: 0 | V186: 0 | W186: 0 | X186: 0 | Y186: 0 | Z186: 0 | AA186: 0 | AB186: 0 | AC186: 0 | AD186: 0 | AE186: 0 | AF186: 0 | AG186: 0 | AH186: 0 | AI186: 0 | AJ186: 0 | AK186: 0 | AL186: 0 | AM186: 0 | AN186: 0 | AO186: 0 | AP186: 0 | AQ186: 0 | AR186: 0 | AS186: 0 | AT186: 0 | AU186: 0 | AV186: 0 | AW186: 0 | AX186: 0 | AY186: 0 | AZ186: 0 | BA186: 0 | BB186: 0 | BC186: 0 | BD186: 0 | BE186: 0 | BF186: 0 | BG186: 0 | BH186: 0 | BI186: 0 | BJ186: 0 | BK186: 0 | BL186: 0 | BM186: 0 | BN186: 0 | BO186: 0 | BP186: 0 | BQ186: 0 | BR186: 0 | BS186: =BR186+BS184+BS185 -> 0 | BT186: 0 | BU186: 0 | BV186: 0 | BW186: 0 | BX186: 0 | BY186: 0 | BZ186: 0 | CA186: 0 | CB186: 0 | CC186: 0 | CD186: 0 | CE186: 0 | CF186: 0 | CG186: 0 | CH186: 0
D188: * | E188: 2% cumulative uplift applied from 2018 to reflect the assumption that willingness to pay for health outcomes will rise in line with real per capita GDP growth.
A191: Engineering Justification Reference:
A193: Engineering Justification Summary - please provide a synopsis & share the document which articulates the full detailed explanation
A218: Stakeholder Support Summary - please provide a synopsis which details the feedback from stakeholder group(s)
A243: TO View - please provide a synopsis which details your view of how beneficial this option is.

Sheet Workings
B3: This sheet is to be used to provide detailed workings for any specific calculations and valuation methodologies used to support the figures in the CBA model itself
B5: NGGT may present the data in the most appropriate format subject to the following conditions
C6: It should be made clear to which options the workings apply
C7: The basis for any assumptions should be stated
C8: Workings should be layed out in a consistent format where possible
C9: There should be sufficienct detail to allow the headline figures in the CBA model to be understood and replicated
